BodyName,ServiceAreaCategorisation,ServiceDivisionCategorisation,ExpensesType,Date,TransactionNumber,Amount,CapitalorRevenue,SupplierName,MerchantCategory
Peterborough City Council,Adults,Independent Sector Placements,Services,01/03/2019,30205253,3036.98,Revenue,Healthcare Homes Group Ltd,Residential Care
Peterborough City Council,Adults,Independent Sector Placements,Services,01/03/2019,30208969,1239.22,Revenue,Hales Group Ltd,Home Care
Peterborough City Council,Public Health,PH Commissioning,Third Party Payments,01/03/2019,30212553,515.00,Revenue,Cambridgeshire Community Services,Third Party Payments - Contract
Peterborough City Council,Corporate,Corporate,Non Revenue,01/03/2019,30213470,7183.57,Capital,NPS Peterborough Ltd,Consultants Fees
Peterborough City Council,Corporate Property,Office Accomodation,Services,01/03/2019,30213471,11784.25,Revenue,NPS Peterborough Ltd,Consultants Fees
Peterborough City Council,Corporate Property,Commercial Propety,Third Party Payments,01/03/2019,30213478,4166.67,Revenue,NPS Peterborough Ltd,Third Party Payments - Contract
Peterborough City Council,Corporate Property,Commercial Propety,Third Party Payments,01/03/2019,30213480,6250.00,Revenue,NPS Peterborough Ltd,Third Party Payments - Contract
Peterborough City Council,Commissioning and Commercial Operations,Commissioning Team,Agency Staff,01/03/2019,30213558,13439.46,Revenue,Sanctuary Personnel Ltd,External Temporary Staff
Peterborough City Council,Children's & Safeguarding,Access to Resources & Specialist Commissioning,Services,01/03/2019,30213895,840.00,Revenue,Florinee Homes Ltd,Boarding Out Fees
Peterborough City Council,Children's & Safeguarding,Access to Resources & Specialist Commissioning,Services,01/03/2019,30213896,1980.00,Revenue,Florinee Homes Ltd,Boarding Out Fees
Peterborough City Council,Children's & Safeguarding,Access to Resources & Specialist Commissioning,Services,01/03/2019,30213900,1980.00,Revenue,Florinee Homes Ltd,Boarding Out Fees
Peterborough City Council,Children's & Safeguarding,Access to Resources & Specialist Commissioning,Services,01/03/2019,30213905,2400.00,Revenue,Florinee Homes Ltd,Boarding Out Fees
Peterborough City Council,Public Health,PH Commissioning,Third Party Payments,01/03/2019,30214051,1446.67,Revenue,Boots Queensgate,Third Party Payments - Contract
Peterborough City Council,Public Health,PH Commissioning,Third Party Payments,01/03/2019,30214057,1109.00,Revenue,Hampton Health,Third Party Payments - Contract
Peterborough City Council,Public Health,PH Commissioning,Third Party Payments,01/03/2019,30214058,713.00,Revenue,Thorpe Road Surgery,Third Party Payments - Contract
Peterborough City Council,Public Health,PH Commissioning,Third Party Payments,01/03/2019,30214060,1290.50,Revenue,Thomas Walker Surgery,Third Party Payments - Contract
Peterborough City Council,Public Health,PH Commissioning,Third Party Payments,01/03/2019,30214076,750.00,Revenue,Bretton Medical Practice,Third Party Payments - Contract
Peterborough City Council,Commissioning and Commercial Operations,Clare Lodge,Agency Staff,01/03/2019,30214088,1032.00,Revenue,Wrixon Care Services,External Temporary Staff
Peterborough City Council,Public Health,PH Commissioning,Third Party Payments,01/03/2019,30214130,3294.00,Revenue,Dr JD Modha and Partners (Thistlemoor),Third Party Payments - Contract
Peterborough City Council,Public Health,PH Commissioning,Third Party Payments,01/03/2019,30214135,928.34,Revenue,Mi Pharmacy Ltd - Werrington Branch,Third Party Payments - Contract
Peterborough City Council,Commissioning and Commercial Operations,Clare Lodge,Agency Staff,01/03/2019,30214244,1062.00,Revenue,Wrixon Care Services,External Temporary Staff
Peterborough City Council,Commissioning and Commercial Operations,Clare Lodge,Agency Staff,01/03/2019,30214249,1264.00,Revenue,Wrixon Care Services,External Temporary Staff
Peterborough City Council,Public Health,PH Commissioning,Third Party Payments,01/03/2019,30214373,63250.00,Revenue,Cambs & P'boro NHS Foundation Trust,Third Party Payments - Contract
Peterborough City Council,Commissioning and Commercial Operations,Commissioning,Third Party Payments,01/03/2019,30214374,9208.33,Revenue,Cambs & P'boro NHS Foundation Trust,Third Party Payments - Contract
Peterborough City Council,Public Health,PH Commissioning,Services,01/03/2019,30214375,244685.50,Revenue,Cambs & P'boro NHS Foundation Trust,Hired Services
Peterborough City Council,Adults,Mental Health,Third Party Payments,01/03/2019,30214376,103447.50,Revenue,Cambs & P'boro NHS Foundation Trust,Third Party Payments - Contract
Peterborough City Council,Public Health,PH Commissioning,Third Party Payments,01/03/2019,30214408,640.35,Revenue,West Town Chemist,Third Party Payments - Contract
Peterborough City Council,Public Health,PH Commissioning,Third Party Payments,01/03/2019,30214409,1261.20,Revenue,Newborough Pharmacy,Third Party Payments - Contract
Peterborough City Council,Public Health,PH Commissioning,Third Party Payments,01/03/2019,30214425,531.50,Revenue,Bretton Medical Practice,Third Party Payments - Contract
Peterborough City Council,Public Health,PH Commissioning,Third Party Payments,01/03/2019,30214426,1789.66,Revenue,Hampton Health,Third Party Payments - Contract
Peterborough City Council,Public Health,PH Commissioning,Third Party Payments,01/03/2019,30214428,1036.78,Revenue,Thomas Walker Surgery,Third Party Payments - Contract
Peterborough City Council,Public Health,PH Commissioning,Third Party Payments,01/03/2019,30214429,1873.92,Revenue,Bretton Medical Practice,Third Party Payments - Contract
Peterborough City Council,Adults,Independent Sector Placements,Services,01/03/2019,30214454,1630.00,Revenue,ABBEYGATE REST HOME,Residential Care
Peterborough City Council,Adults,Independent Sector Placements,Services,01/03/2019,30214615,603.00,Revenue,FIELD HOUSE (EYE) LTD,Day Care
Peterborough City Council,Communities,Housing,Services,01/03/2019,30214776,852.00,Revenue,Cross Keys Homes,Financial Assistance
Peterborough City Council,Communities,Housing,Services,01/03/2019,30214780,851.23,Revenue,Cross Keys Homes,Financial Assistance
Peterborough City Council,Communities,Housing,Services,01/03/2019,30214789,6445.97,Revenue,DA Rosalia Hotel,Temporary Accommodation Costs
Peterborough City Council,Adults,Independent Sector Placements,Services,01/03/2019,30214795,1776.24,Revenue,Goldcare Homes t/a The Tudors Care Home,Residential Care
Peterborough City Council,Adults,Independent Sector Placements,Services,01/03/2019,30214797,2300.00,Revenue,Goldcare Homes t/a The Tudors Care Home,Residential Care
Peterborough City Council,Adults,Independent Sector Placements,Services,01/03/2019,30214798,1703.04,Revenue,Goldcare Homes t/a The Tudors Care Home,Residential Care
Peterborough City Council,Adults,Independent Sector Placements,Services,01/03/2019,30214799,1517.28,Revenue,Goldcare Homes t/a The Tudors Care Home,Residential Care
Peterborough City Council,Adults,Independent Sector Placements,Services,01/03/2019,30214800,982.12,Revenue,Goldcare Homes t/a The Tudors Care Home,Residential Care
Peterborough City Council,Adults,Block Contracts,Third Party Payments,01/03/2019,30214843,6894.96,Revenue,Axiom Housing Association Ltd,Third Party Payments - Contract
Peterborough City Council,Education,Special Educational Needs / Inclusion,Services,01/03/2019,30214846,776.10,Revenue,Ewing Foundation,Hired Services
Peterborough City Council,Legal Services,Legal Services,Agency Staff,01/03/2019,30214938,1237.50,Revenue,Spinks Notary,External Temporary Staff
Peterborough City Council,Children's & Safeguarding,Children's Social Care,Services,01/03/2019,30214976,1379.95,Revenue,LGSS Law Ltd,Legal Costs
Peterborough City Council,Legal Services,Legal Services,Services,01/03/2019,30214981,650.00,Revenue,LGSS Law Ltd,Legal Costs
Peterborough City Council,Commissioning and Commercial Operations,Clare Lodge,Agency Staff,01/03/2019,30215090,536.00,Revenue,Wrixon Care Services,External Temporary Staff
Peterborough City Council,Children's & Safeguarding,Access to Resources & Specialist Commissioning,Services,01/03/2019,30215295,18200.00,Revenue,Hillcrest Children Serv(2)Ltd t/a Options BESD (1) Ltd,Boarding Out Fees
Peterborough City Council,Corporate,Corporate,Non Revenue,01/03/2019,30215384,5000.00,Capital,Warics Ltd,Grant Payment
Peterborough City Council,Corporate,Corporate,Non Revenue,01/03/2019,30215411,8000.00,Capital,Warics Ltd,Grant Payment
Peterborough City Council,Communities,Housing,Services,01/03/2019,30215488,9363.50,Revenue,Eastfield Guesthouse,Temporary Accommodation Costs
Peterborough City Council,Adults,Independent Sector Placements,Services,01/03/2019,30215971,4632.04,Revenue,PossAbilities CIC,Home Care
Peterborough City Council,Adults,Independent Sector Placements,Services,01/03/2019,30215972,4632.04,Revenue,PossAbilities CIC,Home Care
Peterborough City Council,Peterborough Serco Strategic Partnership,PSSP Retained Services,Services,01/03/2019,30216112,1452.01,Revenue,Whistl UK Ltd,Postage
Peterborough City Council,Corporate,Corporate,Non Revenue,01/03/2019,30216145,1650.00,Capital,Gladstone Connect Ltd,Furniture And Equipment Purchase
Peterborough City Council,Adults,OP/PD/SI,"Tools, Equipment, Furniture & Materials",01/03/2019,30216152,1739.78,Revenue,NRS Healthcare,Occupational Therapy Equipment
Peterborough City Council,Communities,Housing,Services,01/03/2019,30216276,1400.00,Revenue,Cross Keys Homes,Financial Assistance
Peterborough City Council,Communities,Housing,Services,01/03/2019,30216280,1500.00,Revenue,Record Property Solutions,Financial Assistance
Peterborough City Council,Adults,OP/PD/SI,"Tools, Equipment, Furniture & Materials",01/03/2019,30216351,112320.50,Revenue,NRS Healthcare,Occupational Therapy Equipment
Peterborough City Council,Westcombe Engineering,Westcombe Engineering,"Tools, Equipment, Furniture & Materials",01/03/2019,30216417,520.50,Revenue,Barron Clark Castings Ltd,Materials
Peterborough City Council,Corporate,Corporate,Non Revenue,01/03/2019,30216445,140120.87,Capital,R G Carter Cambridge Ltd,Building And Site Works
Peterborough City Council,Communities,Housing,Services,01/03/2019,30216532,10656.00,Revenue,Eastfield Guesthouse,Temporary Accommodation Costs
Peterborough City Council,Corporate,Corporate,Non Revenue,01/03/2019,30216711,1000.00,Capital,Salvation Army Peterborough,Grant Payment
Peterborough City Council,Children's & Safeguarding,Children's Social Care,Relocation,01/03/2019,30216713,1231.57,Revenue,Tripod Partners Ltd,Relocation Expenses
Peterborough City Council,Adults,Independent Sector Placements,Services,01/03/2019,30216740,1150.00,Revenue,Goldcare Homes t/a The Tudors Care Home,Residential Care
Peterborough City Council,Children's & Safeguarding,Access to Resources & Specialist Commissioning,Services,01/03/2019,30216904,-1142.40,Revenue,Fostering Solutions Limited,Boarding Out Fees
Peterborough City Council,Communities,Housing,Services,01/03/2019,30216927,888.46,Revenue,Property Line,Financial Assistance
Peterborough City Council,Adults,Independent Sector Placements,Services,01/03/2019,30216937,1224.00,Revenue,Sahara Community Care Services Limited,Home Care
Peterborough City Council,Adults,Independent Sector Placements,Services,01/03/2019,30216954,2227.68,Revenue,Axiom Housing Association Ltd,Home Care
Peterborough City Council,Adults,Independent Sector Placements,Services,01/03/2019,30216958,2628.36,Revenue,Hales Group Ltd,Home Care
Peterborough City Council,Legal Services,Legal Services,Agency Staff,01/03/2019,30216997,1079.00,Revenue,Giant Professional Limited,External Temporary Staff
Peterborough City Council,Financial Services,Finance,Agency Staff,01/03/2019,30217014,708.89,Revenue,Reed Specialist Recruitment Limited,External Temporary Staff
Peterborough City Council,Commissioning and Commercial Operations,Commissioning Team,Agency Staff,01/03/2019,30217027,648.15,Revenue,Reed Specialist Recruitment Limited,External Temporary Staff
Peterborough City Council,Commissioning and Commercial Operations,Commissioning Team,Agency Staff,01/03/2019,30217028,2243.60,Revenue,Reed Specialist Recruitment Limited,External Temporary Staff
Peterborough City Council,Communities,Housing,Agency Staff,01/03/2019,30217033,1659.93,Revenue,Reed Specialist Recruitment Limited,External Temporary Staff
Peterborough City Council,Communities,Housing,Services,01/03/2019,30217047,1326.00,Revenue,Redacted Personal Data,Financial Assistance
Peterborough City Council,Communities,Housing,Services,01/03/2019,30217111,1400.00,Revenue,PSK Property Development,Financial Assistance
Peterborough City Council,Corporate,Corporate,Non Revenue,01/03/2019,30217246,500.00,Capital,Cross Keys Homes,Grant Payment
Peterborough City Council,Corporate,Corporate,Non Revenue,01/03/2019,30217247,1000.00,Capital,Chimes Coffee Shop CIC,Grant Payment
Peterborough City Council,Corporate,Corporate,Non Revenue,01/03/2019,30217248,9683.57,Balance Sheet,Anglian Water,Refunds
Peterborough City Council,Adults,Independent Sector Placements,Services,01/03/2019,30217278,1626.84,Revenue,Augusta Care Ltd,Home Care
Peterborough City Council,Peterborough Highway Services,Network and Traffic Management,Services,01/03/2019,30217287,948.42,Revenue,JPIMedia Publishing Ltd,Advertising
Peterborough City Council,Children's & Safeguarding,Access to Resources & Specialist Commissioning,Services,01/03/2019,30217340,13330.00,Revenue,MJ Childrens Services,Boarding Out Fees
Peterborough City Council,Children's & Safeguarding,Access to Resources & Specialist Commissioning,Services,01/03/2019,30217430,3255.00,Revenue,National Fostering Agency,Boarding Out Fees
Peterborough City Council,Corporate,Corporate,Non Revenue,01/03/2019,30217467,1423.69,Capital,Lynch Healthcare Limited,Grant Payment
Peterborough City Council,Corporate,Corporate,Non Revenue,01/03/2019,30217473,1407.70,Capital,Lynch Healthcare Limited,Grant Payment
Peterborough City Council,Children's & Safeguarding,Access to Resources & Specialist Commissioning,Services,01/03/2019,30217483,3350.79,Revenue,National Fostering Agency,Boarding Out Fees
Peterborough City Council,Corporate,Corporate,Non Revenue,01/03/2019,30217563,714.24,Capital,Redacted Personal Data,Grant Payment
Peterborough City Council,Communities,Housing,Services,01/03/2019,30217565,650.00,Revenue,Bee Lettings Ltd,Financial Assistance
Peterborough City Council,Communities,Housing,Services,01/03/2019,30217567,1700.00,Revenue,South Cambs Ltd (Ermine Street Housing),Financial Assistance
Peterborough City Council,Adults,Independent Sector Placements,Services,01/03/2019,30217577,7385.62,Revenue,Acorn Homes UK Ltd,Residential Care
Peterborough City Council,Adults,Independent Sector Placements,Services,01/03/2019,30217578,9399.88,Revenue,Acorn Homes UK Ltd,Residential Care
Peterborough City Council,Adults,Independent Sector Placements,Services,01/03/2019,30217587,1079.99,Revenue,Barchester Healthcare (Werrington Lodge),Residential Care
Peterborough City Council,City Centre Management,"Markets, Tourism & Events",Services,01/03/2019,30217591,778.00,Revenue,The K A Wing Group Ltd,Infrastructure Repairs
Peterborough City Council,Adults,Independent Sector Placements,Services,01/03/2019,30217604,1244.76,Revenue,THE CLAIR FRANCIS RETIREMENT HOME,Residential Care
Peterborough City Council,Adults,Independent Sector Placements,Services,01/03/2019,30217613,811.00,Revenue,Richmond Fellowship (The),Residential Care
Peterborough City Council,Adults,Independent Sector Placements,Services,01/03/2019,30217623,2300.00,Revenue,Goldcare Homes t/a The Tudors Care Home,Residential Care
Peterborough City Council,Regulatory Services,Regulatory Services,Services,01/03/2019,30217627,1070.59,Revenue,LGSS Law Ltd,Legal Costs
Peterborough City Council,Corporate,Corporate,Non Revenue,01/03/2019,30217686,7685.68,Balance Sheet,British Heart Foundation,Insurance Claims
Peterborough City Council,Adults,Independent Sector Placements,Services,01/03/2019,30217687,1023.84,Revenue,Pilgrim Havens,Residential Care
Peterborough City Council,Education,Early Years & Quality Improvement,Services,01/03/2019,30217689,1480.79,Revenue,Redacted Personal Data,Grant Payment
Peterborough City Council,Adults,Independent Sector Placements,Services,01/03/2019,30217703,624.16,Revenue,Intrust Care Ltd,Home Care
Peterborough City Council,Adults,Independent Sector Placements,Services,01/03/2019,30217711,732.55,Revenue,Intrust Care Ltd,Home Care
Peterborough City Council,Adults,Independent Sector Placements,Services,01/03/2019,30217715,732.55,Revenue,Intrust Care Ltd,Home Care
Peterborough City Council,Adults,Independent Sector Placements,Services,01/03/2019,30217719,728.82,Revenue,Intrust Care Ltd,Home Care
Peterborough City Council,Adults,Independent Sector Placements,Services,01/03/2019,30217721,852.15,Revenue,Intrust Care Ltd,Home Care
Peterborough City Council,Adults,Block Contracts,Third Party Payments,01/03/2019,30217722,2318.36,Revenue,Park Vista Care Home,Third Party Payments - Contract
Peterborough City Council,Adults,Independent Sector Placements,Services,01/03/2019,30217723,852.15,Revenue,Intrust Care Ltd,Home Care
Peterborough City Council,Adults,Independent Sector Placements,Services,01/03/2019,30217724,605.48,Revenue,Intrust Care Ltd,Home Care
Peterborough City Council,Adults,Independent Sector Placements,Services,01/03/2019,30217730,506.16,Revenue,Sense,Home Care
Peterborough City Council,Adults,Independent Sector Placements,Services,01/03/2019,30217734,1401.00,Revenue,Sense,Day Care
Peterborough City Council,Adults,Independent Sector Placements,Services,01/03/2019,30217736,583.75,Revenue,Sense,Day Care
Peterborough City Council,Education,Early Years & Quality Improvement,Services,01/03/2019,30217745,1739.10,Revenue,Redacted Personal Data,Grant Payment
Peterborough City Council,Adults,Independent Sector Placements,Services,01/03/2019,30217751,1327.37,Revenue,Sense,Day Care
Peterborough City Council,Children's & Safeguarding,Access to Resources & Specialist Commissioning,Services,01/03/2019,30217756,844.44,Revenue,Fostering Solutions Limited,Boarding Out Fees
Peterborough City Council,Children's & Safeguarding,Access to Resources & Specialist Commissioning,Services,01/03/2019,30217758,1256.64,Revenue,Fostering Solutions Limited,Boarding Out Fees
Peterborough City Council,Children's & Safeguarding,Access to Resources & Specialist Commissioning,Services,01/03/2019,30217759,888.88,Revenue,Fostering Solutions Limited,Boarding Out Fees
Peterborough City Council,Public Health,PH Commissioning,Third Party Payments,01/03/2019,30217771,277592.50,Revenue,"CGL - Change, Grow, Live",Third Party Payments - Contract
Peterborough City Council,Public Health,PH Commissioning,Third Party Payments,01/03/2019,30217772,277592.50,Revenue,"CGL - Change, Grow, Live",Third Party Payments - Contract
Peterborough City Council,Adults,Independent Sector Placements,Services,01/03/2019,30217780,2548.12,Revenue,Sense,Day Care
Peterborough City Council,Corporate,Corporate,Non Revenue,01/03/2019,30217789,14565.60,Capital,M J Greaves,Grant Payment
Peterborough City Council,Corporate,Corporate,Non Revenue,01/03/2019,30217790,1523.47,Capital,Dolphin Mobility East Midlands Ltd,Grant Payment
Peterborough City Council,Corporate,Corporate,Non Revenue,01/03/2019,30217813,1000.00,Capital,Spotless {Cleaning Services},Grant Payment
Peterborough City Council,Adults,Block Contracts,Third Party Payments,01/03/2019,30217814,2318.36,Revenue,Park Vista Care Home,Third Party Payments - Contract
Peterborough City Council,Adults,Block Contracts,Third Party Payments,01/03/2019,30217815,2318.36,Revenue,Park Vista Care Home,Third Party Payments - Contract
Peterborough City Council,Adults,Block Contracts,Third Party Payments,01/03/2019,30217820,2318.36,Revenue,Park Vista Care Home,Third Party Payments - Contract
Peterborough City Council,Adults,Block Contracts,Third Party Payments,01/03/2019,30217825,2318.36,Revenue,Park Vista Care Home,Third Party Payments - Contract
Peterborough City Council,Public Health,PH Commissioning,"Tools, Equipment, Furniture & Materials",01/03/2019,30217878,1980.00,Revenue,Cardiac Science Holdings (UK) Limited,Equipment Purchase
Peterborough City Council,Education,School Standards & Effectiveness,Services,01/03/2019,30217882,3534.00,Revenue,TLC LIVE,Education Expenses
Peterborough City Council,Education,School Standards & Effectiveness,Services,01/03/2019,30217883,3078.00,Revenue,TLC LIVE,Education Expenses
Peterborough City Council,Education,School Standards & Effectiveness,Services,01/03/2019,30217885,798.00,Revenue,TLC LIVE,Education Expenses
Peterborough City Council,Education,School Standards & Effectiveness,Services,01/03/2019,30217886,2622.00,Revenue,TLC LIVE,Education Expenses
Peterborough City Council,Education,HTS & CSC Transport,Contract Hire and Operating Leases,01/03/2019,8000137007,778.40,Revenue,A2B Euro Cars,Hired Transport
Peterborough City Council,Education,HTS & CSC Transport,Contract Hire and Operating Leases,01/03/2019,8000137008,820.00,Revenue,A2B Euro Cars,Hired Transport
Peterborough City Council,Education,HTS & CSC Transport,Contract Hire and Operating Leases,01/03/2019,8000137009,5187.50,Revenue,Grettons Coaches,Hired Transport
Peterborough City Council,Education,HTS & CSC Transport,Contract Hire and Operating Leases,01/03/2019,8000137010,1613.64,Revenue,Peterborough Cars,Hired Transport
Peterborough City Council,Education,HTS & CSC Transport,Contract Hire and Operating Leases,01/03/2019,8000137011,1512.00,Revenue,Peterborough Cars,Hired Transport
Peterborough City Council,Education,HTS & CSC Transport,Contract Hire and Operating Leases,01/03/2019,8000137012,1654.80,Revenue,Peterborough Cars,Hired Transport
Peterborough City Council,Education,HTS & CSC Transport,Contract Hire and Operating Leases,01/03/2019,8000137013,2097.48,Revenue,Peterborough Cars,Hired Transport
Peterborough City Council,Education,HTS & CSC Transport,Contract Hire and Operating Leases,01/03/2019,8000137014,1980.30,Revenue,Peterborough Cars,Hired Transport
Peterborough City Council,Education,HTS & CSC Transport,Contract Hire and Operating Leases,01/03/2019,8000137015,1387.46,Revenue,Peterborough Cars,Hired Transport
Peterborough City Council,Education,HTS & CSC Transport,Contract Hire and Operating Leases,01/03/2019,8000137017,2199.99,Revenue,Goldstar Cabs Ltd,Hired Transport
Peterborough City Council,Education,HTS & CSC Transport,Contract Hire and Operating Leases,01/03/2019,8000137018,2109.80,Revenue,Goldstar Cabs Ltd,Hired Transport
Peterborough City Council,Education,HTS & CSC Transport,Contract Hire and Operating Leases,01/03/2019,8000137019,798.00,Revenue,Goldstar Cabs Ltd,Hired Transport
Peterborough City Council,Education,HTS & CSC Transport,Contract Hire and Operating Leases,01/03/2019,8000137020,855.00,Revenue,Goldstar Cabs Ltd,Hired Transport
Peterborough City Council,Education,HTS & CSC Transport,Contract Hire and Operating Leases,01/03/2019,8000137021,1353.60,Revenue,King Carz Ltd,Hired Transport
Peterborough City Council,Adults,Independent Sector Placements,Services,01/03/2019,8000137139,1135.83,Revenue,Sagecare Ltd,Home Care
Peterborough City Council,Adults,Independent Sector Placements,Services,01/03/2019,8000137142,2628.36,Revenue,Hales Group Ltd,Home Care
Peterborough City Council,Adults,Independent Sector Placements,Services,01/03/2019,8000137145,2399.00,Revenue,Axiom Housing Association Ltd,Home Care
Peterborough City Council,Adults,Independent Sector Placements,Services,01/03/2019,8000137146,802.50,Revenue,Axiom Housing Association Ltd,Home Care
Peterborough City Council,Adults,Independent Sector Placements,Services,01/03/2019,8000137147,859.31,Revenue,Hales Group Ltd,Home Care
Peterborough City Council,Adults,Independent Sector Placements,Services,04/03/2019,30205254,2842.70,Revenue,Healthcare Homes Group Ltd,Residential Care
Peterborough City Council,Adults,Independent Sector Placements,Services,04/03/2019,30208962,1248.20,Revenue,Hales Group Ltd,Home Care
Peterborough City Council,Adults,Independent Sector Placements,Services,04/03/2019,30208985,908.82,Revenue,Axiom Housing Association Ltd,Home Care
Peterborough City Council,HR,HR,Advertising,04/03/2019,30211136,886.00,Revenue,TMP (UK) LTD,Recruitment Advertising
Peterborough City Council,HR,HR,Advertising,04/03/2019,30211219,508.46,Revenue,TMP (UK) LTD,Recruitment Advertising
Peterborough City Council,Corporate,Corporate,Non Revenue,04/03/2019,30214167,2150.00,Balance Sheet,Aviva,Insurance Claims
Peterborough City Council,Children's & Safeguarding,Access to Resources & Specialist Commissioning,Services,04/03/2019,30214198,14421.32,Revenue,Ethelbert Childrens Services,Boarding Out Fees
Peterborough City Council,Children's & Safeguarding,Access to Resources & Specialist Commissioning,Services,04/03/2019,30214200,11332.00,Revenue,Ethelbert Childrens Services,Boarding Out Fees
Peterborough City Council,Children's & Safeguarding,Access to Resources & Specialist Commissioning,Services,04/03/2019,30214201,11558.16,Revenue,Ethelbert Childrens Services,Boarding Out Fees
Peterborough City Council,Corporate Items,Corporate Services,Employee Costs,04/03/2019,30214283,102830.88,Revenue,LGSS Cambridgeshire Pension Fund,Pensions
Peterborough City Council,Children's & Safeguarding,Access to Resources & Specialist Commissioning,Services,04/03/2019,30214633,3446.80,Revenue,Nexus Fostering Ltd,Boarding Out Fees
Peterborough City Council,Children's & Safeguarding,Access to Resources & Specialist Commissioning,Services,04/03/2019,30214634,3446.80,Revenue,Nexus Fostering Ltd,Boarding Out Fees
Peterborough City Council,Children's & Safeguarding,Access to Resources & Specialist Commissioning,Services,04/03/2019,30214636,3446.80,Revenue,Nexus Fostering Ltd,Boarding Out Fees
Peterborough City Council,Children's & Safeguarding,Access to Resources & Specialist Commissioning,Services,04/03/2019,30214637,3446.80,Revenue,Nexus Fostering Ltd,Boarding Out Fees
Peterborough City Council,Children's & Safeguarding,Access to Resources & Specialist Commissioning,Services,04/03/2019,30214842,18676.66,Revenue,Exeter Royal Academy for Deaf Education,Boarding Out Fees
Peterborough City Council,Adults,Mental Capacity Act & DoLs,Services,04/03/2019,30214903,764.00,Revenue,Raj Medical Consultancy Limited,Hired Services
Peterborough City Council,Adults,Independent Sector Placements,Services,04/03/2019,30214918,5674.64,Revenue,Enham Trust,Residential Care
Peterborough City Council,ICT,ICT,Services,04/03/2019,30214954,9225.00,Revenue,Housing Partners Ltd,Computer Software
Peterborough City Council,Corporate Property,Strategic Projects,Agency Staff,04/03/2019,30214958,19684.00,Revenue,Penna Plc,External Temporary Staff
Peterborough City Council,Corporate Items,Corporate Services,Agency Staff,04/03/2019,30214959,26128.00,Revenue,Penna Plc,External Temporary Staff
Peterborough City Council,Financial Services,Finance,Agency Staff,04/03/2019,30214960,18280.00,Revenue,Penna Plc,External Temporary Staff
Peterborough City Council,Education,Special Educational Needs / Inclusion,Services,04/03/2019,30214998,7000.00,Revenue,Local Government Association,Consultants Fees
Peterborough City Council,Adults,Independent Sector Placements,Services,04/03/2019,30215079,5285.00,Revenue,Voyage 1 Limited,Home Care
Peterborough City Council,Adults,Independent Sector Placements,Services,04/03/2019,30215080,4291.04,Revenue,Voyage 1 Limited,Home Care
Peterborough City Council,Adults,Independent Sector Placements,Services,04/03/2019,30215081,4160.60,Revenue,Voyage 1 Limited,Home Care
Peterborough City Council,Adults,Independent Sector Placements,Services,04/03/2019,30215082,1136.00,Revenue,Voyage 1 Limited,Home Care
Peterborough City Council,Adults,Independent Sector Placements,Services,04/03/2019,30215083,1192.80,Revenue,Voyage 1 Limited,Home Care
Peterborough City Council,Adults,Independent Sector Placements,Services,04/03/2019,30215085,1192.80,Revenue,Voyage 1 Limited,Home Care
Peterborough City Council,Adults,Independent Sector Placements,Services,04/03/2019,30215087,1192.80,Revenue,Voyage 1 Limited,Home Care
Peterborough City Council,Adults,Independent Sector Placements,Services,04/03/2019,30215134,8349.60,Revenue,Voyage 1 Limited,Home Care
Peterborough City Council,Adults,Independent Sector Placements,Services,04/03/2019,30215135,4198.72,Revenue,Voyage 1 Limited,Home Care
Peterborough City Council,Adults,Independent Sector Placements,Services,04/03/2019,30215136,7666.40,Revenue,Voyage 1 Limited,Home Care
Peterborough City Council,Adults,Independent Sector Placements,Services,04/03/2019,30215137,2442.40,Revenue,Voyage 1 Limited,Home Care
Peterborough City Council,Adults,Independent Sector Placements,Services,04/03/2019,30215144,3743.92,Revenue,Voyage 1 Limited,Home Care
Peterborough City Council,Education,School Standards & Effectiveness,Services,04/03/2019,30215193,640.00,Revenue,Top Class Tutors,Education Expenses
Peterborough City Council,City Centre Management,"Markets, Tourism & Events",Services,04/03/2019,30215216,750.00,Revenue,"Cook, Mr Tim",Hired Services
Peterborough City Council,Adults,Independent Sector Placements,Services,04/03/2019,30215224,4559.00,Revenue,Voyage 1 Limited,Home Care
Peterborough City Council,Adults,Independent Sector Placements,Services,04/03/2019,30215225,994.00,Revenue,Voyage 1 Limited,Home Care
Peterborough City Council,Adults,Independent Sector Placements,Services,04/03/2019,30215226,1136.00,Revenue,Voyage 1 Limited,Home Care
Peterborough City Council,Adults,Independent Sector Placements,Services,04/03/2019,30215227,1192.80,Revenue,Voyage 1 Limited,Home Care
Peterborough City Council,Adults,Independent Sector Placements,Services,04/03/2019,30215228,1931.20,Revenue,Voyage 1 Limited,Home Care
Peterborough City Council,Adults,Independent Sector Placements,Services,04/03/2019,30215229,4382.88,Revenue,Voyage 1 Limited,Home Care
Peterborough City Council,Adults,Independent Sector Placements,Services,04/03/2019,30215762,655.60,Revenue,Cross Keys Homes,Assistive Technology
Peterborough City Council,Adults,Independent Sector Placements,Services,04/03/2019,30216047,3400.00,Revenue,LESTER HALL APARTMENTS LTD,Residential Care
Peterborough City Council,Education,Special Educational Needs / Inclusion,Services,04/03/2019,30217270,1430.00,Revenue,"Hattee, Mrs Caroline",Occupational Health
Peterborough City Council,Children's & Safeguarding,Child Health,"Tools, Equipment, Furniture & Materials",04/03/2019,30217355,669.48,Revenue,Eastern Shires Purchasing Organisation,Equipment Purchase
Peterborough City Council,Adults,Independent Sector Placements,Services,04/03/2019,30217972,852.15,Revenue,Intrust Care Ltd,Home Care
Peterborough City Council,Education,School Standards & Effectiveness,Services,04/03/2019,30217974,1216.00,Revenue,TLC LIVE,Education Expenses
Peterborough City Council,Education,HTS & CSC Transport,Contract Hire and Operating Leases,04/03/2019,8000137196,1544.00,Revenue,A2B Euro Cars,Hired Transport
Peterborough City Council,Education,HTS & CSC Transport,Contract Hire and Operating Leases,04/03/2019,8000137197,1489.20,Revenue,A2B Euro Cars,Hired Transport
Peterborough City Council,Education,HTS & CSC Transport,Contract Hire and Operating Leases,04/03/2019,8000137198,1441.00,Revenue,A2B Euro Cars,Hired Transport
Peterborough City Council,Education,HTS & CSC Transport,Contract Hire and Operating Leases,04/03/2019,8000137199,2431.99,Revenue,A2B Euro Cars,Hired Transport
Peterborough City Council,Education,HTS & CSC Transport,Contract Hire and Operating Leases,04/03/2019,8000137200,1100.00,Revenue,A2B Euro Cars,Hired Transport
Peterborough City Council,Education,HTS & CSC Transport,Contract Hire and Operating Leases,04/03/2019,8000137201,836.00,Revenue,A2B Euro Cars,Hired Transport
Peterborough City Council,Education,HTS & CSC Transport,Contract Hire and Operating Leases,04/03/2019,8000137202,1498.99,Revenue,A2B Euro Cars,Hired Transport
Peterborough City Council,Education,HTS & CSC Transport,Contract Hire and Operating Leases,04/03/2019,8000137203,690.00,Revenue,A2B Euro Cars,Hired Transport
Peterborough City Council,Education,HTS & CSC Transport,Contract Hire and Operating Leases,04/03/2019,8000137204,3900.00,Revenue,Grettons Coaches,Hired Transport
Peterborough City Council,Education,HTS & CSC Transport,Contract Hire and Operating Leases,04/03/2019,8000137205,3750.00,Revenue,Grettons Coaches,Hired Transport
Peterborough City Council,Education,HTS & CSC Transport,Contract Hire and Operating Leases,04/03/2019,8000137206,3750.00,Revenue,Grettons Coaches,Hired Transport
Peterborough City Council,Education,HTS & CSC Transport,Contract Hire and Operating Leases,04/03/2019,8000137207,3750.00,Revenue,Grettons Coaches,Hired Transport
Peterborough City Council,Education,HTS & CSC Transport,Contract Hire and Operating Leases,04/03/2019,8000137208,5635.00,Revenue,Neneway Coaches,Hired Transport
Peterborough City Council,Education,HTS & CSC Transport,Contract Hire and Operating Leases,04/03/2019,8000137209,525.00,Revenue,Goldstar Cabs Ltd,Hired Transport
Peterborough City Council,Education,HTS & CSC Transport,Contract Hire and Operating Leases,04/03/2019,8000137210,910.94,Revenue,Goldstar Cabs Ltd,Hired Transport
Peterborough City Council,Education,HTS & CSC Transport,Contract Hire and Operating Leases,04/03/2019,8000137211,900.50,Revenue,Goldstar Cabs Ltd,Hired Transport
Peterborough City Council,Education,HTS & CSC Transport,Contract Hire and Operating Leases,04/03/2019,8000137212,1119.58,Revenue,Goldstar Cabs Ltd,Hired Transport
Peterborough City Council,Education,HTS & CSC Transport,Contract Hire and Operating Leases,04/03/2019,8000137214,3591.08,Revenue,Marks Passenger Services Ltd,Hired Transport
Peterborough City Council,Adults,Independent Sector Placements,Services,04/03/2019,8000137343,1746.36,Revenue,Sagecare Ltd,Home Care
Peterborough City Council,Corporate,Corporate,Non Revenue,05/03/2019,30217951,578725.14,Balance Sheet,Teachers Pensions,Pensions
Peterborough City Council,Children's & Safeguarding,External Education Placements,Services,06/03/2019,30198067,-41499.99,Revenue,Norfolk County Council,Boarding Out Fees
Peterborough City Council,Children's & Safeguarding,External Education Placements,Services,06/03/2019,30199797,14386.66,Revenue,Norfolk County Council,Boarding Out Fees
Peterborough City Council,Children's & Safeguarding,Access to Resources & Specialist Commissioning,Services,06/03/2019,30210012,3924.99,Revenue,Sixteen Plus Limited,Boarding Out Fees
Peterborough City Council,Children's & Safeguarding,Access to Resources & Specialist Commissioning,Services,06/03/2019,30211324,2625.00,Revenue,Transition Care Peterborough Ltd,Boarding Out Fees
Peterborough City Council,Corporate Property,Commercial Propety,Repair & Maintenance of Buildings,06/03/2019,30212057,812.00,Revenue,Enterprise Managed Services Limited,Premises Maintenance
Peterborough City Council,Children's & Safeguarding,Access to Resources & Specialist Commissioning,Services,06/03/2019,30212078,1980.00,Revenue,Florinee Homes Ltd,Boarding Out Fees
Peterborough City Council,Children's & Safeguarding,Access to Resources & Specialist Commissioning,Services,06/03/2019,30212544,2625.00,Revenue,Transition Care Peterborough Ltd,Boarding Out Fees
Peterborough City Council,Commissioning and Commercial Operations,Commissioning,Services,06/03/2019,30213233,1750.10,Revenue,CAPITA Translation and Interpreting,Interpretation Expenses
Peterborough City Council,Commissioning and Commercial Operations,Commissioning,Services,06/03/2019,30213235,1267.45,Revenue,CAPITA Translation and Interpreting,Interpretation Expenses
Peterborough City Council,Commissioning and Commercial Operations,Commissioning,Services,06/03/2019,30213244,1204.25,Revenue,CAPITA Translation and Interpreting,Interpretation Expenses
Peterborough City Council,Commissioning and Commercial Operations,Commissioning,Services,06/03/2019,30213246,574.04,Revenue,CAPITA Translation and Interpreting,Interpretation Expenses
Peterborough City Council,Children's & Safeguarding,Access to Resources & Specialist Commissioning,Services,06/03/2019,30213314,19799.92,Revenue,Cambian Childcare Ltd,Boarding Out Fees
Peterborough City Council,Children's & Safeguarding,Access to Resources & Specialist Commissioning,Services,06/03/2019,30213315,14405.44,Revenue,Cambian Childcare Ltd,Boarding Out Fees
Peterborough City Council,Children's & Safeguarding,Access to Resources & Specialist Commissioning,Services,06/03/2019,30213316,14600.04,Revenue,Cambian Childcare Ltd,Boarding Out Fees
Peterborough City Council,Children's & Safeguarding,Access to Resources & Specialist Commissioning,Services,06/03/2019,30213317,3200.12,Revenue,Cambian Childcare Ltd,Boarding Out Fees
Peterborough City Council,Children's & Safeguarding,Access to Resources & Specialist Commissioning,Services,06/03/2019,30213320,1994.44,Revenue,Cambian Childcare Ltd,Boarding Out Fees
Peterborough City Council,Education,Financing - Resources,Services,06/03/2019,30213501,2080.50,Revenue,Sense,Education Expenses
Peterborough City Council,Children's & Safeguarding,Access to Resources & Specialist Commissioning,Services,06/03/2019,30213902,1980.00,Revenue,Florinee Homes Ltd,Boarding Out Fees
Peterborough City Council,Public Health,PH Commissioning,Third Party Payments,06/03/2019,30214050,4202.74,Revenue,Boots UK,Third Party Payments - Contract
Peterborough City Council,Adults,Home Services Delivery Model,Services,06/03/2019,30214478,2477.75,Revenue,Handyman Steve,Contractors
Peterborough City Council,Corporate,Corporate,Non Revenue,06/03/2019,30214545,2925.37,Capital,Vix Technology UK Ltd,Infrastructure
Peterborough City Council,"Waste, Cleansing and Open Spaces",Waste Management,Services,06/03/2019,30214691,4600.05,Revenue,Invixon Limited,Waste Disposal
Peterborough City Council,Legal Services,Legal Services,Services,06/03/2019,30214706,659.75,Revenue,Lextox,Expert Witnesses
Peterborough City Council,Children's & Safeguarding,Access to Resources & Specialist Commissioning,Services,06/03/2019,30214715,13392.00,Revenue,Semi-Independant House,Boarding Out Fees
Peterborough City Council,Adults,Independent Sector Placements,Services,06/03/2019,30214879,1429.92,Revenue,Maxey House Res Home,Residential Care
Peterborough City Council,Legal Services,Legal Services,Agency Staff,06/03/2019,30214912,1870.00,Revenue,Venn Group Ltd,External Temporary Staff
Peterborough City Council,Legal Services,Legal Services,Agency Staff,06/03/2019,30214913,1989.00,Revenue,Venn Group Ltd,External Temporary Staff
Peterborough City Council,Legal Services,Legal Services,Agency Staff,06/03/2019,30214914,576.75,Revenue,Venn Group Ltd,External Temporary Staff
Peterborough City Council,Legal Services,Legal Services,Agency Staff,06/03/2019,30214915,723.14,Revenue,Venn Group Ltd,External Temporary Staff
Peterborough City Council,Legal Services,Legal Services,Agency Staff,06/03/2019,30214916,754.93,Revenue,Venn Group Ltd,External Temporary Staff
Peterborough City Council,Legal Services,Legal Services,Agency Staff,06/03/2019,30214917,3005.94,Revenue,Venn Group Ltd,External Temporary Staff
Peterborough City Council,Adults,Independent Sector Placements,Services,06/03/2019,30214922,5000.00,Revenue,Maxey House Res Home,Residential Care
Peterborough City Council,Peterborough Highway Services,Transport & Infrastructure Commissioning,Services,06/03/2019,30215034,188901.95,Revenue,Stagecoach in Peterborough,Public Transport
Peterborough City Council,Corporate,Corporate,Non Revenue,06/03/2019,30215123,620.00,Capital,8/5 Electrical Ltd,Building And Site Works
Peterborough City Council,Children's & Safeguarding,Access to Resources & Specialist Commissioning,Services,06/03/2019,30215207,11388.00,Revenue,Positive Steps (Care Services) Ltd,Boarding Out Fees
Peterborough City Council,"Waste, Cleansing and Open Spaces",Waste Management,Services,06/03/2019,30215210,1171.31,Revenue,Bourne Skip Hire and Recycling Limited,Waste Disposal
Peterborough City Council,Communities,Community Safety,Services,06/03/2019,30215214,990.00,Revenue,Mallard Consultancy Ltd,Subscriptions
Peterborough City Council,Marketing & Communications,Marketing & Communications,Services,06/03/2019,30215217,947.00,Revenue,Fisherprint Ltd,Printing
Peterborough City Council,Legal Services,Legal Services,Services,06/03/2019,30215293,1000.00,Revenue,"Snelling, Mr Charles",Legal Costs
Peterborough City Council,Corporate,Corporate,Non Revenue,06/03/2019,30215296,674.60,Capital,Gresty Land Agency,Building And Site Works
Peterborough City Council,Adults,Independent Sector Placements,Services,06/03/2019,30215299,2128.00,Revenue,Alysia Caring Ltd T/a Cherry Blossom care Home,Residential Care
Peterborough City Council,Adults,Independent Sector Placements,Services,06/03/2019,30215301,1141.24,Revenue,Alysia Caring Ltd T/a Cherry Blossom care Home,Residential Care
Peterborough City Council,Adults,Independent Sector Placements,Services,06/03/2019,30215302,1743.64,Revenue,Alysia Caring Ltd T/a Cherry Blossom care Home,Residential Care
Peterborough City Council,Adults,Independent Sector Placements,Services,06/03/2019,30215303,2447.60,Revenue,Alysia Caring Ltd T/a Cherry Blossom care Home,Residential Care
Peterborough City Council,Adults,Independent Sector Placements,Services,06/03/2019,30215305,2930.04,Revenue,Alysia Caring Ltd T/a Cherry Blossom care Home,Residential Care
Peterborough City Council,Adults,Independent Sector Placements,Services,06/03/2019,30215307,2192.40,Revenue,Alysia Caring Ltd T/a Cherry Blossom care Home,Residential Care
Peterborough City Council,Adults,Independent Sector Placements,Services,06/03/2019,30215308,1847.60,Revenue,Alysia Caring Ltd T/a Cherry Blossom care Home,Residential Care
Peterborough City Council,Adults,Independent Sector Placements,Services,06/03/2019,30215309,1880.04,Revenue,Alysia Caring Ltd T/a Cherry Blossom care Home,Residential Care
Peterborough City Council,Adults,Independent Sector Placements,Services,06/03/2019,30215310,847.82,Revenue,Alysia Caring Ltd T/a Cherry Blossom care Home,Residential Care
Peterborough City Council,Adults,Independent Sector Placements,Services,06/03/2019,30215311,1827.40,Revenue,Alysia Caring Ltd T/a Cherry Blossom care Home,Residential Care
Peterborough City Council,Adults,Independent Sector Placements,Services,06/03/2019,30215312,589.44,Revenue,Alysia Caring Ltd T/a Cherry Blossom care Home,Residential Care
Peterborough City Council,Adults,Independent Sector Placements,Services,06/03/2019,30215313,2104.40,Revenue,Alysia Caring Ltd T/a Cherry Blossom care Home,Residential Care
Peterborough City Council,Adults,Independent Sector Placements,Services,06/03/2019,30215314,1883.32,Revenue,Alysia Caring Ltd T/a Cherry Blossom care Home,Residential Care
Peterborough City Council,Adults,Independent Sector Placements,Services,06/03/2019,30215316,825.88,Revenue,Alysia Caring Ltd T/a Cherry Blossom care Home,Residential Care
Peterborough City Council,Adults,Independent Sector Placements,Services,06/03/2019,30215318,1255.32,Revenue,Alysia Caring Ltd T/a Cherry Blossom care Home,Residential Care
Peterborough City Council,Adults,Independent Sector Placements,Services,06/03/2019,30215319,3100.00,Revenue,Alysia Caring Ltd T/a Cherry Blossom care Home,Residential Care
Peterborough City Council,Adults,Independent Sector Placements,Services,06/03/2019,30215334,2314.29,Revenue,FIELD HOUSE (EYE) LTD,Residential Care
Peterborough City Council,Adults,Independent Sector Placements,Services,06/03/2019,30215336,685.71,Revenue,FIELD HOUSE (EYE) LTD,Residential Care
Peterborough City Council,Adults,Independent Sector Placements,Services,06/03/2019,30215337,1200.00,Revenue,FIELD HOUSE (EYE) LTD,Residential Care
Peterborough City Council,Children's & Safeguarding,Access to Resources & Specialist Commissioning,Services,06/03/2019,30215355,703.01,Revenue,Foster Care Associates Ltd FCA,Boarding Out Fees
Peterborough City Council,Corporate,Corporate,Non Revenue,06/03/2019,30215414,4000.00,Capital,Warics Ltd,Grant Payment
Peterborough City Council,Constitutional Services,Democratic Services,"Tools, Equipment, Furniture & Materials",06/03/2019,30215416,2500.00,Revenue,Service-AV.co.uk,Equipment Maintenance
Peterborough City Council,Communities,Cultural Services,Repair & Maintenance of Buildings,06/03/2019,30215419,1754.91,Revenue,Honeywell Control Systems Ltd,Premises Maintenance
Peterborough City Council,Adults,Finance,Services,06/03/2019,30215436,24985.75,Revenue,British Red Cross,Carer Support Costs
Peterborough City Council,Corporate,Corporate,Non Revenue,06/03/2019,30215437,3721.00,Capital,Rawheat Heating & Plumbing Eng.,Building And Site Works
Peterborough City Council,Adults,Home Services Delivery Model,Services,06/03/2019,30215442,2295.00,Revenue,Rawheat Heating & Plumbing Eng.,Contractors
Peterborough City Council,Children's & Safeguarding,Access to Resources & Specialist Commissioning,Services,06/03/2019,30215456,680.00,Revenue,Sixteen Plus Limited,Boarding Out Fees
Peterborough City Council,Children's & Safeguarding,Access to Resources & Specialist Commissioning,Services,06/03/2019,30215457,2635.00,Revenue,Sixteen Plus Limited,Boarding Out Fees
Peterborough City Council,Children's & Safeguarding,Access to Resources & Specialist Commissioning,Services,06/03/2019,30215459,680.00,Revenue,Sixteen Plus Limited,Boarding Out Fees
Peterborough City Council,Children's & Safeguarding,Access to Resources & Specialist Commissioning,Services,06/03/2019,30215460,7875.00,Revenue,Sixteen Plus Limited,Boarding Out Fees
Peterborough City Council,Children's & Safeguarding,Access to Resources & Specialist Commissioning,Services,06/03/2019,30215461,4805.00,Revenue,Sixteen Plus Limited,Boarding Out Fees
Peterborough City Council,Children's & Safeguarding,Access to Resources & Specialist Commissioning,Services,06/03/2019,30215462,2810.70,Revenue,Sixteen Plus Limited,Boarding Out Fees
Peterborough City Council,Children's & Safeguarding,Access to Resources & Specialist Commissioning,Services,06/03/2019,30215463,6640.00,Revenue,Sixteen Plus Limited,Boarding Out Fees
Peterborough City Council,Children's & Safeguarding,Access to Resources & Specialist Commissioning,Services,06/03/2019,30215464,2635.00,Revenue,Sixteen Plus Limited,Boarding Out Fees
Peterborough City Council,Children's & Safeguarding,Access to Resources & Specialist Commissioning,Services,06/03/2019,30215469,1080.71,Revenue,Sixteen Plus Limited,Boarding Out Fees
Peterborough City Council,Communities,Housing,Services,06/03/2019,30215494,16267.00,Revenue,Light Project Peterborough,Grant Payment
Peterborough City Council,Communities,Housing,Services,06/03/2019,30215495,18000.00,Revenue,Light Project Peterborough,Grant Payment
Peterborough City Council,Adults,Independent Sector Placements,Services,06/03/2019,30215504,5686.80,Revenue,Lifeways Community Care,Residential Care
Peterborough City Council,Education,Special Educational Needs / Inclusion,Agency Staff,06/03/2019,30215519,1100.00,Revenue,Permanent Futures Ltd,External Temporary Staff
Peterborough City Council,Education,Special Educational Needs / Inclusion,Agency Staff,06/03/2019,30215520,1100.00,Revenue,Permanent Futures Ltd,External Temporary Staff
Peterborough City Council,Adults,Mental Capacity Act & DoLs,Services,06/03/2019,30215547,742.40,Revenue,SS Psychiatric Services Ltd,Hired Services
Peterborough City Council,Commissioning and Commercial Operations,Commissioning,Services,06/03/2019,30215548,2246.75,Revenue,BDP Social Care Ltd,Hired Services
Peterborough City Council,Adults,Block Contracts,Services,06/03/2019,30215553,1158.70,Revenue,Funding Affordable Homes Housing Assoc. Ltd,Home Care
Peterborough City Council,Corporate,Corporate,Non Revenue,06/03/2019,30215911,22860.00,Balance Sheet,Redacted Personal Data,Refunds
Peterborough City Council,Adults,Independent Sector Placements,Services,06/03/2019,30215931,2677.32,Revenue,HEREWARD CARE SERVICES LIMITED,Residential Care
Peterborough City Council,Adults,Independent Sector Placements,Services,06/03/2019,30215932,2607.00,Revenue,HEREWARD CARE SERVICES LIMITED,Residential Care
Peterborough City Council,Adults,Independent Sector Placements,Services,06/03/2019,30215933,2167.60,Revenue,HEREWARD CARE SERVICES LIMITED,Residential Care
Peterborough City Council,Adults,Independent Sector Placements,Services,06/03/2019,30215934,2671.84,Revenue,HEREWARD CARE SERVICES LIMITED,Residential Care
Peterborough City Council,Adults,Independent Sector Placements,Services,06/03/2019,30215935,3431.12,Revenue,HEREWARD CARE SERVICES LIMITED,Residential Care
Peterborough City Council,Adults,Independent Sector Placements,Services,06/03/2019,30215936,4491.36,Revenue,HEREWARD CARE SERVICES LIMITED,Residential Care
Peterborough City Council,Adults,Independent Sector Placements,Services,06/03/2019,30215979,9168.60,Revenue,Autism Care (UK) Ltd,Residential Care
Peterborough City Council,Adults,Independent Sector Placements,Services,06/03/2019,30215981,9168.60,Revenue,Autism Care (UK) Ltd,Residential Care
Peterborough City Council,Adults,Independent Sector Placements,Services,06/03/2019,30215982,6966.72,Revenue,Autism Care (UK) Ltd,Residential Care
Peterborough City Council,Adults,Independent Sector Placements,Services,06/03/2019,30215997,1489.44,Revenue,Park Vista Care Home,Residential Care
Peterborough City Council,Adults,Independent Sector Placements,Services,06/03/2019,30216007,4755.60,Revenue,Mencap,Residential Care
Peterborough City Council,Corporate Property,Commercial Propety,Services,06/03/2019,30216022,5500.00,Revenue,Serco Ltd,Hired Services
Peterborough City Council,Adults,Independent Sector Placements,Services,06/03/2019,30216100,1574.20,Revenue,HC-One Oval Limited,Residential Care
Peterborough City Council,Adults,Independent Sector Placements,Services,06/03/2019,30216101,2575.00,Revenue,HC-One Oval Limited,Residential Care
Peterborough City Council,Adults,Independent Sector Placements,Services,06/03/2019,30216102,2616.88,Revenue,HC-One Oval Limited,Residential Care
Peterborough City Council,Adults,Independent Sector Placements,Services,06/03/2019,30216103,3175.00,Revenue,HC-One Oval Limited,Residential Care
Peterborough City Council,"Waste, Cleansing and Open Spaces",Waste & Operational Svs Mgmt,Energy Costs,06/03/2019,30216110,1046.52,Revenue,Corona Energy Retail 4 Limited,Gas
Peterborough City Council,"Cemeteries, Cremation & Registrars",Bereavement Service,Energy Costs,06/03/2019,30216110,3521.75,Revenue,Corona Energy Retail 4 Limited,Gas
Peterborough City Council,Communities,Cultural Services,Energy Costs,06/03/2019,30216110,2949.03,Revenue,Corona Energy Retail 4 Limited,Gas
Peterborough City Council,Education,PFI,Water Services,06/03/2019,30216111,2920.14,Revenue,Anglian Water Business National,Water
Peterborough City Council,Education,PFI,Energy Costs,06/03/2019,30216118,2981.15,Revenue,Corona Energy Retail 4 Limited,Gas
Peterborough City Council,Education,PFI,Energy Costs,06/03/2019,30216118,1104.50,Revenue,Corona Energy Retail 4 Limited,Gas
Peterborough City Council,Education,PFI,Energy Costs,06/03/2019,30216118,3219.06,Revenue,Corona Energy Retail 4 Limited,Gas
Peterborough City Council,Education,PFI,Energy Costs,06/03/2019,30216118,1155.60,Revenue,Corona Energy Retail 4 Limited,Gas
Peterborough City Council,"Waste, Cleansing and Open Spaces",Waste & Operational Svs Mgmt,Water Services,06/03/2019,30216121,1112.04,Revenue,Anglian Water Business National,Water
Peterborough City Council,"Cemeteries, Cremation & Registrars",Registration Service,Water Services,06/03/2019,30216121,666.31,Revenue,Anglian Water Business National,Water
Peterborough City Council,Communities,Cultural Services,Water Services,06/03/2019,30216121,667.71,Revenue,Anglian Water Business National,Water
Peterborough City Council,Corporate Property,Office Accomodation,Energy Costs,06/03/2019,30216128,1014.82,Revenue,Npower Ltd,Gas
Peterborough City Council,Legal Services,Legal Services,Services,06/03/2019,30216154,550.00,Revenue,"Bramwell, Mr Christopher",Legal Costs
Peterborough City Council,Legal Services,Legal Services,Services,06/03/2019,30216163,700.00,Revenue,"Elliott, Ms Margot",Legal Costs
Peterborough City Council,Children's & Safeguarding,Access to Resources & Specialist Commissioning,Services,06/03/2019,30216197,2625.00,Revenue,Transition Care Peterborough Ltd,Boarding Out Fees
Peterborough City Council,Corporate Property,Strategic Projects,Energy Costs,06/03/2019,30216221,5400.97,Revenue,Corona Energy Retail 4 Limited,Gas
Peterborough City Council,Communities,Cultural Services,Energy Costs,06/03/2019,30216222,3340.88,Revenue,Southern Electric,Electricity
Peterborough City Council,Education,PFI,Energy Costs,06/03/2019,30216222,5221.81,Revenue,Southern Electric,Electricity
Peterborough City Council,Education,PFI,Energy Costs,06/03/2019,30216222,1204.66,Revenue,Southern Electric,Electricity
Peterborough City Council,Education,PFI,Energy Costs,06/03/2019,30216222,2449.43,Revenue,Southern Electric,Electricity
Peterborough City Council,Education,PFI,Energy Costs,06/03/2019,30216222,7638.14,Revenue,Southern Electric,Electricity
Peterborough City Council,Children's & Safeguarding,Access to Resources & Specialist Commissioning,Services,06/03/2019,30216233,2499.00,Revenue,Transition Care Peterborough Ltd,Boarding Out Fees
Peterborough City Council,Corporate,Corporate,Non Revenue,06/03/2019,30216263,2050.00,Capital,Casbon Building Services,Grant Payment
Peterborough City Council,Education,HTS & CSC Transport,Contract Hire and Operating Leases,06/03/2019,30216271,873.00,Revenue,Positive Steps (Care Services) Ltd,Hired Transport
Peterborough City Council,Children's & Safeguarding,Access to Resources & Specialist Commissioning,Services,06/03/2019,30216281,11612.00,Revenue,The Beeches UK Limited,Boarding Out Fees
Peterborough City Council,Children's & Safeguarding,Access to Resources & Specialist Commissioning,Services,06/03/2019,30216297,8400.00,Revenue,A & T Home Limited,Boarding Out Fees
Peterborough City Council,"Cemeteries, Cremation & Registrars",Bereavement Service,Grounds Maintenance,06/03/2019,30216311,580.00,Revenue,JAT Ingledew,Grounds Maintenance
Peterborough City Council,Adults,Mental Capacity Act & DoLs,Services,06/03/2019,30216323,764.00,Revenue,Raj Medical Consultancy Limited,Hired Services
Peterborough City Council,Adults,Block Contracts,Third Party Payments,06/03/2019,30216361,60548.12,Revenue,HEREWARD CARE SERVICES LIMITED,Third Party Payments - Contract
Peterborough City Council,HR,HR WFD & Training,Interview & Training Expenses,06/03/2019,30216411,2534.92,Revenue,Cambridgeshire County Council,Training
Peterborough City Council,HR,HR WFD & Training,Services,06/03/2019,30216413,500.00,Revenue,Cambridgeshire County Council,Course Instructors Fees
Peterborough City Council,Adults,Independent Sector Placements,Services,06/03/2019,30216428,7203.48,Revenue,Athena (Ashlynn Grange),Residential Care
Peterborough City Council,Corporate,Corporate,Non Revenue,06/03/2019,30216509,1855.00,Capital,Paul Clarke CNC Machine Tool Services,Furniture And Equipment Purchase
Peterborough City Council,ICT,ICT,Services,06/03/2019,30216517,6673.60,Revenue,Capita Business Services Ltd,Computer Software
Peterborough City Council,Public Health,PH Commissioning,Third Party Payments,06/03/2019,30216576,749.00,Revenue,Cambridgeshire Community Services,Third Party Payments - Contract
Peterborough City Council,ICT,ICT,Services,06/03/2019,30216679,2000.00,Revenue,Idox Software Ltd,Computer Software
Peterborough City Council,"Waste, Cleansing and Open Spaces",Waste Management,Services,06/03/2019,30216776,1000.00,Revenue,Kealey-HR,Consultants Fees
Peterborough City Council,Education,PFI,Water Services,06/03/2019,30216859,2156.65,Revenue,Anglian Water Business National,Water
Peterborough City Council,"Waste, Cleansing and Open Spaces",Waste & Operational Svs Mgmt,Water Services,06/03/2019,30216859,573.30,Revenue,Anglian Water Business National,Water
Peterborough City Council,Adults,Independent Sector Placements,Services,06/03/2019,30216940,1071.00,Revenue,Sahara Community Care Services Limited,Home Care
Peterborough City Council,Children's & Safeguarding,Child Health,Energy Costs,06/03/2019,30217147,564.08,Revenue,British Gas Business,Electricity
Peterborough City Council,Children's & Safeguarding,Access to Resources & Specialist Commissioning,Services,06/03/2019,30217153,1406.02,Revenue,Foster Care Associates Ltd FCA,Boarding Out Fees
Peterborough City Council,Children's & Safeguarding,Access to Resources & Specialist Commissioning,Services,06/03/2019,30217154,1406.02,Revenue,Foster Care Associates Ltd FCA,Boarding Out Fees
Peterborough City Council,Corporate Property,Commercial Propety,"Tools, Equipment, Furniture & Materials",06/03/2019,30217315,502.53,Revenue,Hughes TV & Audio Limited,Furniture And Equipment Purchase
Peterborough City Council,Corporate,Corporate,Non Revenue,06/03/2019,30217329,-3656.71,Capital,Vix Technology UK Ltd,Infrastructure
Peterborough City Council,Corporate,Corporate,Non Revenue,06/03/2019,30217334,2032.67,Capital,Vix Technology UK Ltd,Infrastructure
Peterborough City Council,Parking Services,Parking Services,Services,06/03/2019,30217337,-1108.25,Revenue,BemroseBooth Paragon Ltd,Tickets
Peterborough City Council,Financial Services,Finance,Agency Staff,06/03/2019,30217349,657.86,Revenue,Reed Specialist Recruitment Limited,External Temporary Staff
Peterborough City Council,Adults,Independent Sector Placements,Services,06/03/2019,30217624,-3319.50,Revenue,Athena (Ashlynn Grange),Residential Care
Peterborough City Council,Parking Services,Parking Services,Services,06/03/2019,30217750,1143.25,Revenue,BemroseBooth Paragon Ltd,Tickets
Peterborough City Council,Communities,Housing,Rents,06/03/2019,30217761,550.00,Revenue,Redacted Personal Data,Rent
Peterborough City Council,Communities,Cohesion,Rents,06/03/2019,30217796,575.00,Revenue,Record Property Solutions,Rent
Peterborough City Council,Communities,Cohesion,Rents,06/03/2019,30217797,750.00,Revenue,Redacted Personal Data,Rent
Peterborough City Council,Communities,Cohesion,Rents,06/03/2019,30217798,625.00,Revenue,Record Property Solutions,Rent
Peterborough City Council,Communities,Cohesion,Rents,06/03/2019,30217800,625.00,Revenue,Rightroom Lettings Ltd,Rent
Peterborough City Council,Communities,Cohesion,Rents,06/03/2019,30217802,800.00,Revenue,Hope Into Action,Rent
Peterborough City Council,Communities,Cohesion,Rents,06/03/2019,30217803,800.00,Revenue,Rightroom Lettings Ltd,Rent
Peterborough City Council,Communities,Cohesion,Rents,06/03/2019,30217805,625.00,Revenue,Record Property Solutions,Rent
Peterborough City Council,Communities,Cohesion,Rents,06/03/2019,30217807,575.00,Revenue,Redacted Personal Data,Rent
Peterborough City Council,Communities,Cohesion,Rents,06/03/2019,30217808,750.00,Revenue,Redacted Personal Data,Rent
Peterborough City Council,Adults,Independent Sector Placements,Services,06/03/2019,30217843,10870.40,Revenue,PRESTIGE NURSING LIMITED,Home Care
Peterborough City Council,Communities,Housing,Services,06/03/2019,30217881,1400.00,Revenue,Redacted Personal Data,Financial Assistance
Peterborough City Council,Communities,Housing,Services,06/03/2019,30217921,1400.00,Revenue,Redacted Personal Data,Financial Assistance
Peterborough City Council,Corporate,Corporate,Non Revenue,06/03/2019,30217936,1320.00,Capital,M J Greaves,Grant Payment
Peterborough City Council,Legal Services,Legal Services,Agency Staff,06/03/2019,30217959,1624.38,Revenue,Reed Specialist Recruitment Limited,External Temporary Staff
Peterborough City Council,Peterborough Highway Services,Highway & Drainage Control,Agency Staff,06/03/2019,30217960,1401.24,Revenue,Reed Specialist Recruitment Limited,External Temporary Staff
Peterborough City Council,Peterborough Highway Services,Highway & Drainage Control,Agency Staff,06/03/2019,30217964,1235.80,Revenue,Reed Specialist Recruitment Limited,External Temporary Staff
Peterborough City Council,Regulatory Services,Regulatory Services,Agency Staff,06/03/2019,30217965,1356.84,Revenue,Reed Specialist Recruitment Limited,External Temporary Staff
Peterborough City Council,Peterborough Highway Services,Highway Services - HoS,Agency Staff,06/03/2019,30217966,1235.80,Revenue,Reed Specialist Recruitment Limited,External Temporary Staff
Peterborough City Council,Peterborough Highway Services,Highway & Drainage Control,Agency Staff,06/03/2019,30217968,1478.41,Revenue,Reed Specialist Recruitment Limited,External Temporary Staff
Peterborough City Council,Financial Services,Internal Audit,Agency Staff,06/03/2019,30217969,1796.60,Revenue,Reed Specialist Recruitment Limited,External Temporary Staff
Peterborough City Council,Financial Services,Internal Audit,Agency Staff,06/03/2019,30217970,1319.36,Revenue,Reed Specialist Recruitment Limited,External Temporary Staff
Peterborough City Council,Financial Services,Finance,Agency Staff,06/03/2019,30217971,768.96,Revenue,Reed Specialist Recruitment Limited,External Temporary Staff
Peterborough City Council,Public Health,PH Commissioning,Third Party Payments,06/03/2019,30217975,357675.00,Revenue,Cambridgeshire Community Services,Third Party Payments - Contract
Peterborough City Council,Children's & Safeguarding,External Education Placements,Services,06/03/2019,30217976,27666.66,Revenue,Norfolk County Council,Boarding Out Fees
Peterborough City Council,Legal Services,Legal Services,Agency Staff,06/03/2019,30217998,1897.35,Revenue,Reed Specialist Recruitment Limited,External Temporary Staff
Peterborough City Council,Communities,Performance & Information,Agency Staff,06/03/2019,30217999,1271.60,Revenue,Reed Specialist Recruitment Limited,External Temporary Staff
Peterborough City Council,Development and Construction,Planning Compliance,Agency Staff,06/03/2019,30218000,741.48,Revenue,Reed Specialist Recruitment Limited,External Temporary Staff
Peterborough City Council,Legal Services,Legal Services,Agency Staff,06/03/2019,30218001,1152.00,Revenue,Reed Specialist Recruitment Limited,External Temporary Staff
Peterborough City Council,Development and Construction,Development Management,Agency Staff,06/03/2019,30218003,910.98,Revenue,Reed Specialist Recruitment Limited,External Temporary Staff
Peterborough City Council,Corporate,Corporate,Non Revenue,06/03/2019,30218004,2583.60,Capital,Reed Specialist Recruitment Limited,Consultants Fees
Peterborough City Council,Peterborough Highway Services,Highway & Drainage Control,Agency Staff,06/03/2019,30218005,1302.60,Revenue,Reed Specialist Recruitment Limited,External Temporary Staff
Peterborough City Council,Children's & Safeguarding,Access to Resources & Specialist Commissioning,Services,06/03/2019,30218007,990.00,Revenue,Florinee Homes Ltd,Boarding Out Fees
Peterborough City Council,Commissioning and Commercial Operations,Clare Lodge,Agency Staff,06/03/2019,30218015,608.65,Revenue,Reed Specialist Recruitment Limited,External Temporary Staff
Peterborough City Council,ICT,ICT,Agency Staff,06/03/2019,30218024,678.80,Revenue,Reed Specialist Recruitment Limited,External Temporary Staff
Peterborough City Council,Financial Services,Finance,Agency Staff,06/03/2019,30218026,657.86,Revenue,Reed Specialist Recruitment Limited,External Temporary Staff
Peterborough City Council,Commissioning and Commercial Operations,Clare Lodge,Agency Staff,06/03/2019,30218030,571.52,Revenue,Reed Specialist Recruitment Limited,External Temporary Staff
Peterborough City Council,ICT,ICT,Agency Staff,06/03/2019,30218032,2268.60,Revenue,Reed Specialist Recruitment Limited,External Temporary Staff
Peterborough City Council,Development and Construction,Building Control,Agency Staff,06/03/2019,30218037,1075.05,Revenue,Reed Specialist Recruitment Limited,External Temporary Staff
Peterborough City Council,Adults,Home Services Delivery Model,Agency Staff,06/03/2019,30218038,1125.25,Revenue,Reed Specialist Recruitment Limited,External Temporary Staff
Peterborough City Council,Development and Construction,Building Control,Agency Staff,06/03/2019,30218040,1860.73,Revenue,Reed Specialist Recruitment Limited,External Temporary Staff
Peterborough City Council,Peterborough Highway Services,Highway Services - HoS,Agency Staff,06/03/2019,30218041,575.23,Revenue,Reed Specialist Recruitment Limited,External Temporary Staff
Peterborough City Council,Children's & Safeguarding,Early Help ASC/CSC,Agency Staff,06/03/2019,30218042,726.81,Revenue,Reed Specialist Recruitment Limited,External Temporary Staff
Peterborough City Council,Children's & Safeguarding,Early Help ASC/CSC,Agency Staff,06/03/2019,30218043,554.96,Revenue,Reed Specialist Recruitment Limited,External Temporary Staff
Peterborough City Council,Programme Management Office,Programme Management Office,Agency Staff,06/03/2019,30218044,4730.04,Revenue,Reed Specialist Recruitment Limited,External Temporary Staff
Peterborough City Council,Education,Special Educational Needs / Inclusion,Services,06/03/2019,30218058,1600.00,Revenue,Top Class Tutors,Education Expenses
Peterborough City Council,Peterborough Highway Services,Transport & Infrastructure Commissioning,Services,06/03/2019,30218068,15228.00,Revenue,First Eastern Counties Buses Ltd,Public Transport
Peterborough City Council,Adults,Independent Sector Placements,Services,06/03/2019,30218086,956.25,Revenue,Sahara Community Care Services Limited,Home Care
Peterborough City Council,"Waste, Cleansing and Open Spaces",Waste Management,Services,06/03/2019,30218099,9802.98,Revenue,Sales Nova Limited,Consultants Fees
Peterborough City Council,Marketing & Communications,Marketing & Communications,Services,06/03/2019,30218160,1500.38,Revenue,Jeffery Sin-Jon & Associates Limited,Printing
Peterborough City Council,Adults,Independent Sector Placements,Services,06/03/2019,30218165,1721.92,Revenue,STAR RESIDENTIAL HOME LTD,Residential Care
Peterborough City Council,Adults,Independent Sector Placements,Services,06/03/2019,30218166,2191.80,Revenue,STAR RESIDENTIAL HOME LTD,Residential Care
Peterborough City Council,Adults,Independent Sector Placements,Services,06/03/2019,30218167,2235.32,Revenue,STAR RESIDENTIAL HOME LTD,Residential Care
Peterborough City Council,Adults,Independent Sector Placements,Services,06/03/2019,30218168,2600.80,Revenue,STAR RESIDENTIAL HOME LTD,Residential Care
Peterborough City Council,ICT,ICT,Services,06/03/2019,30218169,52377.29,Revenue,Amazon Web Services Inc.,Computer Software
Peterborough City Council,Adults,Independent Sector Placements,Services,06/03/2019,30218171,2648.00,Revenue,PHILIA LODGE REST HOME,Residential Care
Peterborough City Council,Adults,Independent Sector Placements,Services,06/03/2019,30218172,2051.40,Revenue,STAR RESIDENTIAL HOME LTD,Residential Care
Peterborough City Council,Adults,Independent Sector Placements,Services,06/03/2019,30218173,2144.20,Revenue,STAR RESIDENTIAL HOME LTD,Residential Care
Peterborough City Council,Adults,Independent Sector Placements,Services,06/03/2019,30218174,2019.16,Revenue,STAR RESIDENTIAL HOME LTD,Residential Care
Peterborough City Council,Adults,Independent Sector Placements,Services,06/03/2019,30218175,1490.24,Revenue,STAR RESIDENTIAL HOME LTD,Residential Care
Peterborough City Council,Adults,Independent Sector Placements,Services,06/03/2019,30218176,1968.96,Revenue,PHILIA LODGE REST HOME,Residential Care
Peterborough City Council,Corporate,Corporate,Non Revenue,06/03/2019,30218177,5280.51,Balance Sheet,The Prudential Assurance Company Ltd,Pensions
Peterborough City Council,Adults,Independent Sector Placements,Services,06/03/2019,30218178,1947.40,Revenue,STAR RESIDENTIAL HOME LTD,Residential Care
Peterborough City Council,Adults,Independent Sector Placements,Services,06/03/2019,30218179,2052.40,Revenue,STAR RESIDENTIAL HOME LTD,Residential Care
Peterborough City Council,Adults,Independent Sector Placements,Services,06/03/2019,30218180,2047.60,Revenue,STAR RESIDENTIAL HOME LTD,Residential Care
Peterborough City Council,Adults,Independent Sector Placements,Services,06/03/2019,30218181,1909.36,Revenue,STAR RESIDENTIAL HOME LTD,Residential Care
Peterborough City Council,Education,Service Director Education,Employee Costs,06/03/2019,30218182,26662.15,Revenue,Teachers Pensions,Pensions
Peterborough City Council,Adults,Independent Sector Placements,Services,06/03/2019,30218183,3233.44,Revenue,STAR RESIDENTIAL HOME LTD,Residential Care
Peterborough City Council,Adults,Independent Sector Placements,Services,06/03/2019,30218184,2047.60,Revenue,STAR RESIDENTIAL HOME LTD,Residential Care
Peterborough City Council,Corporate,Corporate,Non Revenue,06/03/2019,30218187,1233.64,Balance Sheet,The Prudential Assurance Company Ltd,Pensions
Peterborough City Council,Adults,Block Contracts,Energy Costs,06/03/2019,30218188,896.46,Revenue,Npower Ltd,Gas
Peterborough City Council,Development and Construction,Development Management,Agency Staff,06/03/2019,30218189,896.49,Revenue,Reed Specialist Recruitment Limited,External Temporary Staff
Peterborough City Council,Adults,Independent Sector Placements,Services,06/03/2019,30218202,2648.00,Revenue,PHILIA LODGE REST HOME,Residential Care
Peterborough City Council,Communities,Cultural Services,Water Services,06/03/2019,30218203,2923.34,Revenue,Anglian Water Business National,Water
Peterborough City Council,Communities,Travellers,Water Services,06/03/2019,30218203,590.73,Revenue,Anglian Water Business National,Water
Peterborough City Council,Adults,Independent Sector Placements,Services,06/03/2019,30218204,1822.44,Revenue,PHILIA LODGE REST HOME,Residential Care
Peterborough City Council,Adults,Independent Sector Placements,Services,06/03/2019,30218206,2648.00,Revenue,PHILIA LODGE REST HOME,Residential Care
Peterborough City Council,Adults,Independent Sector Placements,Services,06/03/2019,30218207,1674.44,Revenue,PHILIA LODGE REST HOME,Residential Care
Peterborough City Council,Adults,Independent Sector Placements,Services,06/03/2019,30218208,2648.00,Revenue,PHILIA LODGE REST HOME,Residential Care
Peterborough City Council,Westcombe Engineering,Westcombe Engineering,Energy Costs,06/03/2019,30218209,1548.47,Revenue,British Gas Business,Electricity
Peterborough City Council,Communities,Targeted Youth Service,Energy Costs,06/03/2019,30218209,922.09,Revenue,British Gas Business,Electricity
Peterborough City Council,Adults,Independent Sector Placements,Services,06/03/2019,30218210,1208.20,Revenue,PHILIA LODGE REST HOME,Residential Care
Peterborough City Council,Adults,Independent Sector Placements,Services,06/03/2019,30218211,1236.72,Revenue,PHILIA LODGE REST HOME,Residential Care
Peterborough City Council,Education,Special Educational Needs / Inclusion,Agency Staff,06/03/2019,30218219,1925.00,Revenue,Sanctuary Personnel Ltd,External Temporary Staff
Peterborough City Council,Adults,Independent Sector Placements,Services,06/03/2019,30218238,574.00,Revenue,Sahara Community Care Services Limited,Home Care
Peterborough City Council,Adults,Independent Sector Placements,Services,06/03/2019,30218239,1071.00,Revenue,Sahara Community Care Services Limited,Home Care
Peterborough City Council,Adults,Independent Sector Placements,Services,06/03/2019,30218261,1136.04,Revenue,Sahara Community Care Services Limited,Home Care
Peterborough City Council,Westcombe Engineering,Westcombe Engineering,Energy Costs,06/03/2019,30218274,1063.96,Revenue,British Gas Business,Electricity
Peterborough City Council,Children's & Safeguarding,Access to Resources & Specialist Commissioning,Services,06/03/2019,30218276,3200.12,Revenue,Cambian Childcare Ltd,Boarding Out Fees
Peterborough City Council,Adults,Independent Sector Placements,Services,06/03/2019,30218289,764.16,Revenue,PHILIA LODGE REST HOME,Residential Care
Peterborough City Council,Adults,Independent Sector Placements,Services,06/03/2019,30218290,2824.44,Revenue,STAR RESIDENTIAL HOME LTD,Residential Care
Peterborough City Council,Children's & Safeguarding,Access to Resources & Specialist Commissioning,Services,06/03/2019,30218314,20150.00,Revenue,Hillcrest Children Serv(2)Ltd t/a Options BESD (1) Ltd,Boarding Out Fees
Peterborough City Council,Children's & Safeguarding,Access to Resources & Specialist Commissioning,Services,06/03/2019,30218315,20150.00,Revenue,Hillcrest Children Serv(2)Ltd t/a Options BESD (1) Ltd,Boarding Out Fees
Peterborough City Council,Children's & Safeguarding,Children's Social Care,Services,06/03/2019,30218322,550.00,Revenue,Support & Supervised Family Contact Centre Ltd,Purchased Social Care Services
Peterborough City Council,Corporate,Corporate,Non Revenue,06/03/2019,30218329,3438.81,Capital,Maplethorpe & Mooney Ltd,Grant Payment
Peterborough City Council,Children's & Safeguarding,Access to Resources & Specialist Commissioning,Services,06/03/2019,30218330,575.71,Revenue,Locate Accommodation Ltd,Boarding Out Fees
Peterborough City Council,Children's & Safeguarding,Access to Resources & Specialist Commissioning,Services,06/03/2019,30218332,575.71,Revenue,Locate Accommodation Ltd,Boarding Out Fees
Peterborough City Council,Adults,Independent Sector Placements,Services,06/03/2019,30218347,1994.20,Revenue,PHILIA LODGE REST HOME,Residential Care
Peterborough City Council,Adults,Independent Sector Placements,Services,06/03/2019,30218348,2648.00,Revenue,PHILIA LODGE REST HOME,Residential Care
Peterborough City Council,Adults,Independent Sector Placements,Services,06/03/2019,30218356,2648.00,Revenue,PHILIA LODGE REST HOME,Residential Care
Peterborough City Council,Children's & Safeguarding,Access to Resources & Specialist Commissioning,Services,06/03/2019,30218358,12796.53,Revenue,Ethelbert Childrens Services,Boarding Out Fees
Peterborough City Council,Children's & Safeguarding,Access to Resources & Specialist Commissioning,Services,06/03/2019,30218359,12546.14,Revenue,Ethelbert Childrens Services,Boarding Out Fees
Peterborough City Council,Children's & Safeguarding,Access to Resources & Specialist Commissioning,Services,06/03/2019,30218360,4681.00,Revenue,Ethelbert Childrens Services,Boarding Out Fees
Peterborough City Council,Children's & Safeguarding,Access to Resources & Specialist Commissioning,Services,06/03/2019,30218361,15966.46,Revenue,Ethelbert Childrens Services,Boarding Out Fees
Peterborough City Council,Children's & Safeguarding,Access to Resources & Specialist Commissioning,Services,06/03/2019,30218379,531.42,Revenue,Elite Care Provider,Boarding Out Fees
Peterborough City Council,Adults,Strategic Commissioning - Management,Agency Staff,06/03/2019,30218385,3544.32,Revenue,Reed Specialist Recruitment Limited,External Temporary Staff
Peterborough City Council,Education,School Standards & Effectiveness,Services,06/03/2019,30218395,16700.00,Revenue,eGov Digital Ltd,Computer Software
Peterborough City Council,Adults,Independent Sector Placements,Services,06/03/2019,30218396,2000.00,Revenue,THE CLAIR FRANCIS RETIREMENT HOME,Residential Care
Peterborough City Council,Adults,Independent Sector Placements,Services,06/03/2019,30218397,1417.28,Revenue,THE CLAIR FRANCIS RETIREMENT HOME,Residential Care
Peterborough City Council,Adults,Independent Sector Placements,Services,06/03/2019,30218398,771.00,Revenue,THE CLAIR FRANCIS RETIREMENT HOME,Residential Care
Peterborough City Council,Adults,Independent Sector Placements,Services,06/03/2019,30218399,650.40,Revenue,THE CLAIR FRANCIS RETIREMENT HOME,Residential Care
Peterborough City Council,Adults,Independent Sector Placements,Services,06/03/2019,30218400,1821.88,Revenue,THE CLAIR FRANCIS RETIREMENT HOME,Residential Care
Peterborough City Council,Adults,Home Services Delivery Model,Third Party Payments,06/03/2019,30218403,8259.09,Revenue,Cross Keys Homes,Grant-Third Party
Peterborough City Council,Adults,Independent Sector Placements,Services,06/03/2019,30218441,1244.76,Revenue,THE CLAIR FRANCIS RETIREMENT HOME,Residential Care
Peterborough City Council,Adults,Independent Sector Placements,Services,06/03/2019,30218443,1269.48,Revenue,THE CLAIR FRANCIS RETIREMENT HOME,Residential Care
Peterborough City Council,Adults,Independent Sector Placements,Services,06/03/2019,30218444,1301.48,Revenue,THE CLAIR FRANCIS RETIREMENT HOME,Residential Care
Peterborough City Council,Adults,Independent Sector Placements,Services,06/03/2019,30218447,1821.88,Revenue,THE CLAIR FRANCIS RETIREMENT HOME,Residential Care
Peterborough City Council,Adults,Independent Sector Placements,Services,06/03/2019,30218449,888.16,Revenue,THE CLAIR FRANCIS RETIREMENT HOME,Residential Care
Peterborough City Council,Adults,Independent Sector Placements,Services,06/03/2019,30218452,1821.88,Revenue,THE CLAIR FRANCIS RETIREMENT HOME,Residential Care
Peterborough City Council,Adults,Independent Sector Placements,Services,06/03/2019,30218453,1821.88,Revenue,THE CLAIR FRANCIS RETIREMENT HOME,Residential Care
Peterborough City Council,Adults,Independent Sector Placements,Services,06/03/2019,30218455,928.92,Revenue,THE CLAIR FRANCIS RETIREMENT HOME,Residential Care
Peterborough City Council,Adults,Independent Sector Placements,Services,06/03/2019,30218457,1263.44,Revenue,THE CLAIR FRANCIS RETIREMENT HOME,Residential Care
Peterborough City Council,Adults,Therapy/Reablement/Community Equipment,"Tools, Equipment, Furniture & Materials",06/03/2019,30218464,2963.00,Revenue,P F S Builders & Contractors,Occupational Therapy Equipment
Peterborough City Council,Corporate,Corporate,Non Revenue,07/03/2019,8000138857,1050000.00,Capital,Medesham Homes LLP,Grant Payment
Peterborough City Council,Corporate,Corporate,Non Revenue,07/03/2019,8000138857,3345.00,Capital,HM Revenues & Customs,Taxes
Peterborough City Council,Adults,Independent Sector Placements,Services,08/03/2019,30209731,3789.69,Revenue,Augusta Care Ltd,Home Care
Peterborough City Council,Adults,Independent Sector Placements,Services,08/03/2019,30209744,4006.68,Revenue,Augusta Care Ltd,Home Care
Peterborough City Council,Peterborough Highway Services,Network and Traffic Management,Services,08/03/2019,30209807,630.84,Revenue,British Telecom PLC,Telephones
Peterborough City Council,Adults,Independent Sector Placements,Services,08/03/2019,30210357,2526.46,Revenue,Augusta Care Ltd,Home Care
Peterborough City Council,Adults,Independent Sector Placements,Services,08/03/2019,30210361,2656.20,Revenue,Augusta Care Ltd,Home Care
Peterborough City Council,Adults,Independent Sector Placements,Services,08/03/2019,30212661,4049.28,Revenue,Augusta Care Ltd,Home Care
Peterborough City Council,Adults,Independent Sector Placements,Services,08/03/2019,30212664,2656.20,Revenue,Augusta Care Ltd,Home Care
Peterborough City Council,"Cemeteries, Cremation & Registrars",Bereavement Service,Services,08/03/2019,30215036,1125.00,Revenue,Ashdown Supplies,Items For Resale
Peterborough City Council,Peterborough Highway Services,Network and Traffic Management,Services,08/03/2019,30215205,10744.31,Revenue,Dynniq UK Ltd,Infrastructure Maintenance
Peterborough City Council,Adults,Independent Sector Placements,Services,08/03/2019,30215350,5354.44,Revenue,Accomplish Group Limited (Orchard Hill),Residential Care
Peterborough City Council,Children's & Safeguarding,Access to Resources & Specialist Commissioning,Services,08/03/2019,30215354,703.01,Revenue,Foster Care Associates Ltd FCA,Boarding Out Fees
Peterborough City Council,Education,School Standards & Effectiveness,Interview & Training Expenses,08/03/2019,30215986,675.00,Revenue,Hallam Learning Consultancy Ltd,Training
Peterborough City Council,Legal Services,Legal Services,Services,08/03/2019,30216015,700.00,Revenue,"Gold, Ms Debra",Legal Costs
Peterborough City Council,Adults,Independent Sector Placements,Services,08/03/2019,30216169,4049.28,Revenue,Augusta Care Ltd,Home Care
Peterborough City Council,Adults,Independent Sector Placements,Services,08/03/2019,30216171,2656.20,Revenue,Augusta Care Ltd,Home Care
Peterborough City Council,Adults,Independent Sector Placements,Services,08/03/2019,30216236,1567.48,Revenue,Pilgrim Havens,Residential Care
Peterborough City Council,Adults,Independent Sector Placements,Services,08/03/2019,30216239,1617.16,Revenue,Pilgrim Havens,Residential Care
Peterborough City Council,Adults,Independent Sector Placements,Services,08/03/2019,30216250,2001.88,Revenue,Pilgrim Havens,Residential Care
Peterborough City Council,Adults,Independent Sector Placements,Services,08/03/2019,30216252,1223.00,Revenue,Pilgrim Havens,Residential Care
Peterborough City Council,Adults,Independent Sector Placements,Services,08/03/2019,30216254,883.96,Revenue,Pilgrim Havens,Residential Care
Peterborough City Council,Adults,Independent Sector Placements,Services,08/03/2019,30216255,1023.84,Revenue,Pilgrim Havens,Residential Care
Peterborough City Council,Adults,Independent Sector Placements,Services,08/03/2019,30216257,644.20,Revenue,Pilgrim Havens,Residential Care
Peterborough City Council,Adults,Independent Sector Placements,Services,08/03/2019,30216258,1023.84,Revenue,Pilgrim Havens,Residential Care
Peterborough City Council,Adults,Independent Sector Placements,Services,08/03/2019,30216259,1023.84,Revenue,Pilgrim Havens,Residential Care
Peterborough City Council,Education,HTS & CSC Transport,Services,08/03/2019,30216268,7352.68,Revenue,Trapeze Group (UK) Ltd,Computer Software
Peterborough City Council,Energy,Environment Capital,Services,08/03/2019,30216299,13644.44,Revenue,Deloitte LLP,Professional Fees
Peterborough City Council,Children's & Safeguarding,Access to Resources & Specialist Commissioning,Services,08/03/2019,30216350,840.00,Revenue,Florinee Homes Ltd,Boarding Out Fees
Peterborough City Council,Corporate,Corporate,Non Revenue,08/03/2019,30216568,4220.00,Capital,Dolphin Mobility East Midlands Ltd,Grant Payment
Peterborough City Council,Education,Early Years & Quality Improvement,Rents,08/03/2019,30216706,600.00,Revenue,Italian Community Association,Hire of Premises
Peterborough City Council,Education,Early Years & Quality Improvement,Rents,08/03/2019,30216707,520.00,Revenue,Italian Community Association,Hire of Premises
Peterborough City Council,Education,Early Years & Quality Improvement,Catering Costs,08/03/2019,30216708,510.40,Revenue,Italian Community Association,Catering
Peterborough City Council,Peterborough Serco Strategic Partnership,PSSP Retained Services,Services,08/03/2019,30216795,2111.03,Revenue,Whistl UK Ltd,Postage
Peterborough City Council,Legal Services,Legal Services,Services,08/03/2019,30216848,600.00,Revenue,"Gold, Ms Debra",Legal Costs
Peterborough City Council,Peterborough Highway Services,Network and Traffic Management,Services,08/03/2019,30217368,800.81,Revenue,Dynniq UK Ltd,Infrastructure Maintenance
Peterborough City Council,Peterborough Highway Services,Network and Traffic Management,Services,08/03/2019,30217369,10118.56,Revenue,Dynniq UK Ltd,Infrastructure Maintenance
Peterborough City Council,Peterborough Highway Services,Network and Traffic Management,Services,08/03/2019,30217371,1335.50,Revenue,Dynniq UK Ltd,Infrastructure Maintenance
Peterborough City Council,Peterborough Highway Services,Transport & Infrastructure Commissioning,Repair & Maintenance of Buildings,08/03/2019,30217769,18750.00,Revenue,Jones Lang LaSalle,Service Charges - Premises
Peterborough City Council,Corporate,Corporate,Non Revenue,08/03/2019,30217943,500.00,Capital,St John Ambulance Cadet Unit,Grant Payment
Peterborough City Council,Children's & Safeguarding,Access to Resources & Specialist Commissioning,Services,08/03/2019,30217978,1918.28,Revenue,PCH Integration Services Ltd,Boarding Out Fees
Peterborough City Council,Children's & Safeguarding,Access to Resources & Specialist Commissioning,Services,08/03/2019,30217979,1477.28,Revenue,PCH Integration Services Ltd,Boarding Out Fees
Peterborough City Council,Children's & Safeguarding,Access to Resources & Specialist Commissioning,Services,08/03/2019,30217980,1477.28,Revenue,PCH Integration Services Ltd,Boarding Out Fees
Peterborough City Council,Children's & Safeguarding,Access to Resources & Specialist Commissioning,Services,08/03/2019,30217981,1477.28,Revenue,PCH Integration Services Ltd,Boarding Out Fees
Peterborough City Council,Children's & Safeguarding,Access to Resources & Specialist Commissioning,Services,08/03/2019,30217982,1477.28,Revenue,PCH Integration Services Ltd,Boarding Out Fees
Peterborough City Council,Children's & Safeguarding,Access to Resources & Specialist Commissioning,Services,08/03/2019,30217983,1477.28,Revenue,PCH Integration Services Ltd,Boarding Out Fees
Peterborough City Council,Children's & Safeguarding,Access to Resources & Specialist Commissioning,Services,08/03/2019,30217984,1477.28,Revenue,PCH Integration Services Ltd,Boarding Out Fees
Peterborough City Council,Children's & Safeguarding,Access to Resources & Specialist Commissioning,Services,08/03/2019,30217985,1477.28,Revenue,PCH Integration Services Ltd,Boarding Out Fees
Peterborough City Council,Children's & Safeguarding,Access to Resources & Specialist Commissioning,Services,08/03/2019,30217986,1477.28,Revenue,PCH Integration Services Ltd,Boarding Out Fees
Peterborough City Council,Children's & Safeguarding,Access to Resources & Specialist Commissioning,Services,08/03/2019,30217988,1477.28,Revenue,PCH Integration Services Ltd,Boarding Out Fees
Peterborough City Council,Children's & Safeguarding,Access to Resources & Specialist Commissioning,Services,08/03/2019,30217989,1477.28,Revenue,PCH Integration Services Ltd,Boarding Out Fees
Peterborough City Council,Children's & Safeguarding,Access to Resources & Specialist Commissioning,Services,08/03/2019,30217990,1477.28,Revenue,PCH Integration Services Ltd,Boarding Out Fees
Peterborough City Council,Children's & Safeguarding,Access to Resources & Specialist Commissioning,Services,08/03/2019,30217991,1477.28,Revenue,PCH Integration Services Ltd,Boarding Out Fees
Peterborough City Council,Commissioning and Commercial Operations,Clare Lodge,Agency Staff,08/03/2019,30218023,678.68,Revenue,Reed Specialist Recruitment Limited,External Temporary Staff
Peterborough City Council,Commissioning and Commercial Operations,Commissioning Team,Agency Staff,08/03/2019,30218027,2243.60,Revenue,Reed Specialist Recruitment Limited,External Temporary Staff
Peterborough City Council,Commissioning and Commercial Operations,Clare Lodge,Agency Staff,08/03/2019,30218028,696.54,Revenue,Reed Specialist Recruitment Limited,External Temporary Staff
Peterborough City Council,Development and Construction,Development Management,Agency Staff,08/03/2019,30218034,1365.01,Revenue,Reed Specialist Recruitment Limited,External Temporary Staff
Peterborough City Council,Education,HTS & CSC Transport,Agency Staff,08/03/2019,30218035,603.52,Revenue,Reed Specialist Recruitment Limited,External Temporary Staff
Peterborough City Council,Communities,Housing,Agency Staff,08/03/2019,30218045,1659.93,Revenue,Reed Specialist Recruitment Limited,External Temporary Staff
Peterborough City Council,Corporate,Corporate,Non Revenue,08/03/2019,30218093,1000.00,Capital,Jamia Islamia Numania,Grant Payment
Peterborough City Council,Communities,Housing,Rents,08/03/2019,30218109,560.00,Revenue,Property Squires,Rent
Peterborough City Council,Communities,Housing,Rents,08/03/2019,30218110,575.00,Revenue,Redacted Personal Data,Rent
Peterborough City Council,Communities,Housing,Rents,08/03/2019,30218111,560.00,Revenue,RWP Property Management Ltd,Rent
Peterborough City Council,Communities,Housing,Rents,08/03/2019,30218112,650.00,Revenue,Redacted Personal Data,Rent
Peterborough City Council,Communities,Housing,Rents,08/03/2019,30218115,825.00,Revenue,Redacted Personal Data,Rent
Peterborough City Council,Communities,Housing,Rents,08/03/2019,30218116,795.00,Revenue,M L Mills Trade,Rent
Peterborough City Council,Communities,Housing,Rents,08/03/2019,30218117,750.00,Revenue,M L Mills Trade,Rent
Peterborough City Council,Communities,Housing,Rents,08/03/2019,30218120,550.00,Revenue,Redacted Personal Data,Rent
Peterborough City Council,Communities,Housing,Rents,08/03/2019,30218121,545.00,Revenue,Redacted Personal Data,Rent
Peterborough City Council,Communities,Housing,Rents,08/03/2019,30218122,500.00,Revenue,English Estates Property Agents,Rent
Peterborough City Council,Communities,Housing,Rents,08/03/2019,30218124,550.00,Revenue,Redacted Personal Data,Rent
Peterborough City Council,Communities,Housing,Rents,08/03/2019,30218125,550.00,Revenue,Hometime 2020 Ltd,Rent
Peterborough City Council,Communities,Housing,Rents,08/03/2019,30218126,750.00,Revenue,Bee Lettings Ltd,Rent
Peterborough City Council,Communities,Housing,Rents,08/03/2019,30218128,600.00,Revenue,Redacted Personal Data,Rent
Peterborough City Council,Communities,Housing,Rents,08/03/2019,30218130,535.00,Revenue,Redacted Personal Data,Rent
Peterborough City Council,Communities,Housing,Rents,08/03/2019,30218131,535.00,Revenue,Redacted Personal Data,Rent
Peterborough City Council,Corporate Property,Office Accomodation,Rents,08/03/2019,30218153,8250.00,Revenue,Beeson Wright Ltd,Rent
Peterborough City Council,Children's & Safeguarding,Access to Resources & Specialist Commissioning,Services,08/03/2019,30218163,2499.00,Revenue,Transition Care Peterborough Ltd,Boarding Out Fees
Peterborough City Council,Corporate Property,Commercial Propety,Services,08/03/2019,30218256,5200.00,Revenue,HM Revenues & Customs,Taxes
Peterborough City Council,Corporate Property,Commercial Propety,Services,08/03/2019,30218257,4625.00,Revenue,HM Revenues & Customs,Taxes
Peterborough City Council,Corporate Property,Commercial Propety,Services,08/03/2019,30218258,5125.00,Revenue,HM Revenues & Customs,Taxes
Peterborough City Council,Corporate Property,Commercial Propety,Services,08/03/2019,30218259,7125.00,Revenue,HM Revenues & Customs,Taxes
Peterborough City Council,Communities,Housing,Rents,08/03/2019,30218334,825.00,Revenue,Redacted Personal Data,Rent
Peterborough City Council,Corporate Items,Corporate Services,Employee Costs,08/03/2019,30218363,68802.44,Revenue,LGSS Cambridgeshire Pension Fund,Pensions
Peterborough City Council,Adults,Independent Sector Placements,Services,08/03/2019,30218485,2618.92,Revenue,BROADLEIGH NURSING HOME,Residential Care
Peterborough City Council,Adults,Independent Sector Placements,Services,08/03/2019,30218486,2534.44,Revenue,BROADLEIGH NURSING HOME,Residential Care
Peterborough City Council,Adults,Independent Sector Placements,Services,08/03/2019,30218488,1605.15,Revenue,BROADLEIGH NURSING HOME,Residential Care
Peterborough City Council,Adults,Independent Sector Placements,Services,08/03/2019,30218489,2534.44,Revenue,BROADLEIGH NURSING HOME,Residential Care
Peterborough City Council,Adults,Independent Sector Placements,Services,08/03/2019,30218490,2618.92,Revenue,BROADLEIGH NURSING HOME,Residential Care
Peterborough City Council,Adults,Independent Sector Placements,Services,08/03/2019,30218500,-582.94,Revenue,Augusta Care Ltd,Home Care
Peterborough City Council,Corporate Property,Commercial Propety,Energy Costs,08/03/2019,30218508,618.18,Revenue,British Gas Business,Electricity
Peterborough City Council,Corporate Property,Office Accomodation,Energy Costs,08/03/2019,30218513,544.85,Revenue,British Gas Business,Electricity
Peterborough City Council,Adults,Independent Sector Placements,Services,08/03/2019,30218519,-2623.32,Revenue,Augusta Care Ltd,Home Care
Peterborough City Council,Adults,Independent Sector Placements,Services,08/03/2019,30218521,-3789.69,Revenue,Augusta Care Ltd,Home Care
Peterborough City Council,Adults,Other Services,Third Party Payments,08/03/2019,30218589,12791.00,Revenue,Healthwatch Cambridgeshire and Peterborough,Third Party Payments - Contract
Peterborough City Council,Children's & Safeguarding,Access to Resources & Specialist Commissioning,Services,08/03/2019,30218622,620.00,Revenue,Locate Accommodation Ltd,Boarding Out Fees
Peterborough City Council,Adults,Independent Sector Placements,Services,08/03/2019,30218633,766.56,Revenue,LAVENDER HOUSE RESIDENTIAL HOME,Residential Care
Peterborough City Council,Adults,Independent Sector Placements,Services,08/03/2019,30218644,3687.04,Revenue,Mencap,Home Care
Peterborough City Council,Children's & Safeguarding,Access to Resources & Specialist Commissioning,Services,08/03/2019,30218645,730.71,Revenue,Locate Accommodation Ltd,Boarding Out Fees
Peterborough City Council,Education,Financing - Resources,Services,08/03/2019,30218652,2624.00,Revenue,Herlington Pre-School,Grant Payment
Peterborough City Council,Adults,Independent Sector Placements,Services,08/03/2019,30218656,2300.00,Revenue,Park Vista Care Home,Residential Care
Peterborough City Council,City Centre Management,"Markets, Tourism & Events",Energy Costs,08/03/2019,30218661,7217.95,Revenue,British Gas Business,Electricity
Peterborough City Council,Westcombe Engineering,Westcombe Engineering,Energy Costs,08/03/2019,30218661,1070.16,Revenue,British Gas Business,Electricity
Peterborough City Council,Children's & Safeguarding,Access to Resources & Specialist Commissioning,Services,08/03/2019,30218662,620.00,Revenue,Locate Accommodation Ltd,Boarding Out Fees
Peterborough City Council,Children's & Safeguarding,Access to Resources & Specialist Commissioning,Services,08/03/2019,30218711,12400.00,Revenue,Horizon Care & Education Group,Boarding Out Fees
Peterborough City Council,Children's & Safeguarding,Access to Resources & Specialist Commissioning,Services,08/03/2019,30218713,11200.00,Revenue,Horizon Care & Education Group,Boarding Out Fees
Peterborough City Council,Adults,Independent Sector Placements,Services,08/03/2019,30218716,2300.00,Revenue,Goldcare Homes t/a The Tudors Care Home,Residential Care
Peterborough City Council,Adults,Independent Sector Placements,Services,08/03/2019,30218717,1701.72,Revenue,Goldcare Homes t/a The Tudors Care Home,Residential Care
Peterborough City Council,Adults,Independent Sector Placements,Services,08/03/2019,30218725,2427.60,Revenue,BROADLEIGH NURSING HOME,Residential Care
Peterborough City Council,Adults,Independent Sector Placements,Services,08/03/2019,30218726,2450.19,Revenue,BROADLEIGH NURSING HOME,Residential Care
Peterborough City Council,Peterborough Highway Services,Highway Services - HoS,Agency Staff,08/03/2019,30218737,1235.80,Revenue,Reed Specialist Recruitment Limited,External Temporary Staff
Peterborough City Council,Commissioning and Commercial Operations,Clare Lodge,Agency Staff,08/03/2019,30218752,728.46,Revenue,Reed Specialist Recruitment Limited,External Temporary Staff
Peterborough City Council,Adults,Independent Sector Placements,Services,08/03/2019,30218754,1269.48,Revenue,Goldcare Homes t/a The Tudors Care Home,Residential Care
Peterborough City Council,Education,Early Years & Quality Improvement,Services,08/03/2019,30218756,1080.84,Revenue,Winyates Pre School,Grant Payment
Peterborough City Council,Education,Early Years & Quality Improvement,Services,08/03/2019,30218757,1158.15,Revenue,West Town Pre-School,Grant Payment
Peterborough City Council,Education,Early Years & Quality Improvement,Services,08/03/2019,30218759,2351.49,Revenue,Vale Community Pre-School,Grant Payment
Peterborough City Council,Education,Early Years & Quality Improvement,Services,08/03/2019,30218760,1208.90,Revenue,Whiz Kids Day Nursery,Grant Payment
Peterborough City Council,Education,Early Years & Quality Improvement,Services,08/03/2019,30218761,2786.16,Revenue,The Teddy Bears inn Day Nursery Ltd,Grant Payment
Peterborough City Council,Education,Early Years & Quality Improvement,Services,08/03/2019,30218763,757.24,Revenue,Redacted Personal Data,Grant Payment
Peterborough City Council,Education,Early Years & Quality Improvement,Services,08/03/2019,30218765,2206.56,Revenue,Stars Pre-School Welland,Grant Payment
Peterborough City Council,Education,Early Years & Quality Improvement,Services,08/03/2019,30218767,1108.80,Revenue,Redacted Personal Data,Grant Payment
Peterborough City Council,Education,Early Years & Quality Improvement,Services,08/03/2019,30218768,1091.74,Revenue,Peterborough High School Nursery,Grant Payment
Peterborough City Council,Education,Early Years & Quality Improvement,Services,08/03/2019,30218769,648.62,Revenue,Orton Wistow Under Fives,Grant Payment
Peterborough City Council,Education,Early Years & Quality Improvement,Services,08/03/2019,30218772,647.63,Revenue,St Johns C of E Pre-School,Grant Payment
Peterborough City Council,Education,Early Years & Quality Improvement,Services,08/03/2019,30218773,1637.61,Revenue,The Learning Tree Kindergarten,Grant Payment
Peterborough City Council,Education,Early Years & Quality Improvement,Services,08/03/2019,30218774,1956.90,Revenue,Peterborough Regional College,Grant Payment
Peterborough City Council,Education,Early Years & Quality Improvement,Services,08/03/2019,30218775,735.02,Revenue,Sunflower Seed Pre-School,Grant Payment
Peterborough City Council,Education,Early Years & Quality Improvement,Services,08/03/2019,30218777,1470.04,Revenue,Stepping Stones Day Nursery,Grant Payment
Peterborough City Council,Education,Early Years & Quality Improvement,Services,08/03/2019,30218778,708.06,Revenue,Stars Preschool Woodston,Grant Payment
Peterborough City Council,Education,Early Years & Quality Improvement,Services,08/03/2019,30218780,5299.58,Revenue,ABC Nursery,Grant Payment
Peterborough City Council,Education,Early Years & Quality Improvement,Services,08/03/2019,30218781,1761.48,Revenue,Barnack Pre-School,Grant Payment
Peterborough City Council,Education,Early Years & Quality Improvement,Services,08/03/2019,30218782,522.06,Revenue,Redacted Personal Data,Grant Payment
Peterborough City Council,Education,Early Years & Quality Improvement,Services,08/03/2019,30218783,2544.30,Revenue,Acorn Academy Day Nursery Ltd,Grant Payment
Peterborough City Council,Education,Early Years & Quality Improvement,Services,08/03/2019,30218784,1412.84,Revenue,Anna-Ca-Soo Day Nursery,Grant Payment
Peterborough City Council,Education,Early Years & Quality Improvement,Services,08/03/2019,30218785,16100.80,Revenue,Blackberry House Day Nursery,Grant Payment
Peterborough City Council,Education,Early Years & Quality Improvement,Services,08/03/2019,30218787,767.62,Revenue,Bright Bambini  Montessori,Grant Payment
Peterborough City Council,Education,Early Years & Quality Improvement,Services,08/03/2019,30218788,1696.20,Revenue,Apricot Childcare,Grant Payment
Peterborough City Council,Education,Early Years & Quality Improvement,Services,08/03/2019,30218790,1903.68,Revenue,Alpha Big Sky Ltd,Grant Payment
Peterborough City Council,Education,Early Years & Quality Improvement,Services,08/03/2019,30218791,4306.35,Revenue,St Thomas More Catholic Nursery,Grant Payment
Peterborough City Council,Education,Early Years & Quality Improvement,Services,08/03/2019,30218793,4476.18,Revenue,Longthorpe Playgroup,Grant Payment
Peterborough City Council,Education,Early Years & Quality Improvement,Services,08/03/2019,30218795,1822.79,Revenue,Newark Playgroup,Grant Payment
Peterborough City Council,Education,Early Years & Quality Improvement,Services,08/03/2019,30218796,971.46,Revenue,Stars Pre-School Parnwell,Grant Payment
Peterborough City Council,Education,Early Years & Quality Improvement,Services,08/03/2019,30218797,944.13,Revenue,Paston & Gunthorpe Pre-School,Grant Payment
Peterborough City Council,Education,Early Years & Quality Improvement,Services,08/03/2019,30218798,4819.71,Revenue,Manor House Nursery (Peterborough) Ltd,Grant Payment
Peterborough City Council,Education,Early Years & Quality Improvement,Services,08/03/2019,30218800,512.82,Revenue,Play House Pre-School & Out of School Club,Grant Payment
Peterborough City Council,Education,Early Years & Quality Improvement,Services,08/03/2019,30218801,848.10,Revenue,Rise & Shine Day Nursery,Grant Payment
Peterborough City Council,Education,Early Years & Quality Improvement,Services,08/03/2019,30218802,949.35,Revenue,Family Action,Grant Payment
Peterborough City Council,Education,Early Years & Quality Improvement,Services,08/03/2019,30218804,677.44,Revenue,Noah's Ark Pre-School,Grant Payment
Peterborough City Council,Education,Early Years & Quality Improvement,Services,08/03/2019,30218806,802.87,Revenue,Little Poppets Day Nursery,Grant Payment
Peterborough City Council,Education,Early Years & Quality Improvement,Services,08/03/2019,30218807,599.32,Revenue,Little Tigers Day Nursery,Grant Payment
Peterborough City Council,Education,Early Years & Quality Improvement,Services,08/03/2019,30218808,2586.98,Revenue,Smiley Faces Day Nursery,Grant Payment
Peterborough City Council,Education,Early Years & Quality Improvement,Services,08/03/2019,30218809,766.17,Revenue,Little Stars Day Nursery,Grant Payment
Peterborough City Council,Education,Early Years & Quality Improvement,Services,08/03/2019,30218810,576.70,Revenue,Little Twinkles Day Nursery,Grant Payment
Peterborough City Council,Education,Early Years & Quality Improvement,Services,08/03/2019,30218811,3380.96,Revenue,Little Blossoms,Grant Payment
Peterborough City Council,Education,Early Years & Quality Improvement,Services,08/03/2019,30218812,2423.02,Revenue,St Michaels Playgroup,Grant Payment
Peterborough City Council,Education,Early Years & Quality Improvement,Services,08/03/2019,30218813,1593.59,Revenue,Kiddi Caru Day Nursery,Grant Payment
Peterborough City Council,Education,Early Years & Quality Improvement,Services,08/03/2019,30218814,1193.94,Revenue,South Bretton Pre School,Grant Payment
Peterborough City Council,Education,Early Years & Quality Improvement,Services,08/03/2019,30218815,533.55,Revenue,Husaini Pre-School,Grant Payment
Peterborough City Council,Education,Early Years & Quality Improvement,Services,08/03/2019,30218816,5329.80,Revenue,Southfields Pre-School Playgroup,Grant Payment
Peterborough City Council,Education,Early Years & Quality Improvement,Services,08/03/2019,30218817,3293.40,Revenue,Little Owls Day Nursery,Grant Payment
Peterborough City Council,Education,Early Years & Quality Improvement,Services,08/03/2019,30218819,767.25,Revenue,Little Bees Pre-School,Grant Payment
Peterborough City Council,Education,Early Years & Quality Improvement,Services,08/03/2019,30218820,3109.04,Revenue,Flying Start Pre-School & Day Care Centre,Grant Payment
Peterborough City Council,Education,Early Years & Quality Improvement,Services,08/03/2019,30218821,2367.30,Revenue,Family Action,Grant Payment
Peterborough City Council,Education,Early Years & Quality Improvement,Services,08/03/2019,30218822,768.31,Revenue,Herlington Pre-School,Grant Payment
Peterborough City Council,Education,Early Years & Quality Improvement,Services,08/03/2019,30218823,1031.08,Revenue,Busy Bunnies Nursery,Grant Payment
Peterborough City Council,Education,Early Years & Quality Improvement,Services,08/03/2019,30218824,2202.75,Revenue,Eye Pre-School,Grant Payment
Peterborough City Council,Education,Early Years & Quality Improvement,Services,08/03/2019,30218828,767.25,Revenue,Gladstone Primary Academy,Grant Payment
Peterborough City Council,Education,Early Years & Quality Improvement,Services,08/03/2019,30218829,3872.66,Revenue,Busy Bunnies Braybrook,Grant Payment
Peterborough City Council,Education,Early Years & Quality Improvement,Services,08/03/2019,30218830,734.25,Revenue,Busy Bees Pre-School,Grant Payment
Peterborough City Council,Education,Early Years & Quality Improvement,Services,08/03/2019,30218832,1052.50,Revenue,SDN Ltd t/a Stars Day Nursery Bushfield,Grant Payment
Peterborough City Council,Adults,Independent Sector Placements,Services,08/03/2019,30218839,-707.21,Revenue,Park Vista Care Home,Residential Care
Peterborough City Council,Adults,Independent Sector Placements,Services,08/03/2019,30218852,-582.94,Revenue,Augusta Care Ltd,Home Care
Peterborough City Council,Corporate Property,Office Accomodation,Repair & Maintenance of Buildings,08/03/2019,30218859,4565.81,Revenue,Baker Perkins Ltd,Service Charges - Premises
Peterborough City Council,Adults,Independent Sector Placements,Services,08/03/2019,30218861,1747.60,Revenue,FIELD HOUSE (EYE) LTD,Residential Care
Peterborough City Council,Corporate Property,Office Accomodation,Repair & Maintenance of Buildings,08/03/2019,30218864,3459.39,Revenue,Baker Perkins Ltd,Service Charges - Premises
Peterborough City Council,Communities,Housing,Agency Staff,08/03/2019,30218878,2821.99,Revenue,Service Care Solutions Ltd,External Temporary Staff
Peterborough City Council,Adults,Independent Sector Placements,Services,08/03/2019,30218900,1847.60,Revenue,FIELD HOUSE (EYE) LTD,Residential Care
Peterborough City Council,Commissioning and Commercial Operations,Clare Lodge,Agency Staff,08/03/2019,30218935,1225.00,Revenue,Mana Resourcing Ltd,Supply Teachers
Peterborough City Council,Corporate Property,Commercial Propety,Services,08/03/2019,30218937,1715.00,Revenue,Browne Jacobson,Legal Costs
Peterborough City Council,Development and Construction,Development Management,Agency Staff,08/03/2019,30218945,896.49,Revenue,Reed Specialist Recruitment Limited,External Temporary Staff
Peterborough City Council,Adults,Independent Sector Placements,Services,08/03/2019,8000137471,520.71,Revenue,Hales Group Ltd,Home Care
Peterborough City Council,Adults,Independent Sector Placements,Services,08/03/2019,8000137472,657.09,Revenue,Hales Group Ltd,Home Care
Peterborough City Council,Adults,Independent Sector Placements,Services,08/03/2019,8000137555,862.80,Revenue,Hales Group Ltd,Home Care
Peterborough City Council,Adults,Independent Sector Placements,Services,08/03/2019,8000137556,1090.64,Revenue,Hales Group Ltd,Home Care
Peterborough City Council,Adults,Independent Sector Placements,Services,08/03/2019,8000137562,875.86,Revenue,Hales Group Ltd,Home Care
Peterborough City Council,Peterborough Highway Services,Transport & Infrastructure Commissioning,Contract Hire and Operating Leases,08/03/2019,8000137577,1280.62,Revenue,Redacted Personal Data,Hired Transport
Peterborough City Council,Education,HTS & CSC Transport,Contract Hire and Operating Leases,08/03/2019,8000137578,716.62,Revenue,Redacted Personal Data,Hired Transport
Peterborough City Council,Education,HTS & CSC Transport,Contract Hire and Operating Leases,08/03/2019,8000137579,1346.07,Revenue,Redacted Personal Data,Hired Transport
Peterborough City Council,Education,HTS & CSC Transport,Contract Hire and Operating Leases,08/03/2019,8000137581,994.96,Revenue,Redacted Personal Data,Hired Transport
Peterborough City Council,Peterborough Highway Services,Transport & Infrastructure Commissioning,Contract Hire and Operating Leases,08/03/2019,8000137582,932.03,Revenue,Redacted Personal Data,Hired Transport
Peterborough City Council,Education,HTS & CSC Transport,Contract Hire and Operating Leases,08/03/2019,8000137585,2093.87,Revenue,Redacted Personal Data,Hired Transport
Peterborough City Council,Corporate,Corporate,Non Revenue,08/03/2019,8000138857,172500.00,Capital,Move Home Legal,Land/Building Acquisition
Peterborough City Council,Adults,Independent Sector Placements,Services,11/03/2019,30209726,2526.46,Revenue,Augusta Care Ltd,Home Care
Peterborough City Council,Adults,Independent Sector Placements,Services,11/03/2019,30210234,7934.75,Revenue,The Orders of St John Care Trust,Residential Care
Peterborough City Council,Adults,Independent Sector Placements,Services,11/03/2019,30210356,2526.46,Revenue,Augusta Care Ltd,Home Care
Peterborough City Council,Adults,Independent Sector Placements,Services,11/03/2019,30210359,766.16,Revenue,Augusta Care Ltd,Home Care
Peterborough City Council,Adults,Independent Sector Placements,Services,11/03/2019,30210362,6547.00,Revenue,Augusta Care Ltd,Home Care
Peterborough City Council,Adults,Independent Sector Placements,Services,11/03/2019,30212660,6547.00,Revenue,Augusta Care Ltd,Home Care
Peterborough City Council,Corporate,Corporate,Non Revenue,11/03/2019,30215410,1569.00,Capital,Obam Domestic Lift Services Ltd,Grant Payment
Peterborough City Council,"Waste, Cleansing and Open Spaces",Waste Management,Services,11/03/2019,30215501,104185.00,Revenue,4OC Ltd,Consultants Fees
Peterborough City Council,Adults,Finance,Third Party Payments,11/03/2019,30215580,9000.00,Revenue,Lincolnshire Care Association Ltd,Third Party Payments - Contract
Peterborough City Council,Adults,Independent Sector Placements,Services,11/03/2019,30215903,549.00,Revenue,Cross Keys Homes,Assistive Technology
Peterborough City Council,Parking Services,Parking Services,"Tools, Equipment, Furniture & Materials",11/03/2019,30216138,15573.31,Revenue,Flowbird Smart City UK Limited,Furniture And Equipment Repairs
Peterborough City Council,Legal Services,Legal Services,Agency Staff,11/03/2019,30216141,1155.00,Revenue,Spinks Notary,External Temporary Staff
Peterborough City Council,Adults,Independent Sector Placements,Services,11/03/2019,30216170,6547.00,Revenue,Augusta Care Ltd,Home Care
Peterborough City Council,Peterborough Highway Services,Transport & Infrastructure Commissioning,Services,11/03/2019,30216304,1120.00,Revenue,ITSO Ltd,Computer Software
Peterborough City Council,Communities,Housing,Services,11/03/2019,30216305,10000.00,Revenue,Light Project Peterborough,Grant Payment
Peterborough City Council,Communities,Housing,Services,11/03/2019,30216364,6070.27,Revenue,DA Rosalia Hotel,Temporary Accommodation Costs
Peterborough City Council,"Waste, Cleansing and Open Spaces",Waste Management,Services,11/03/2019,30216372,408560.74,Revenue,Viridor Peterborough Ltd,Waste Disposal
Peterborough City Council,"Cemeteries, Cremation & Registrars",Bereavement Service,Repair & Maintenance of Buildings,11/03/2019,30216374,2020.00,Revenue,Chris Groome Decorating Ltd,Premises Maintenance
Peterborough City Council,Adults,Independent Sector Placements,Services,11/03/2019,30216393,993.58,Revenue,Athena (Ashlynn Grange),Residential Care
Peterborough City Council,Programme Management Office,Programme Management Office,Services,11/03/2019,30216400,15750.00,Revenue,4OC Ltd,Consultants Fees
Peterborough City Council,Corporate,Corporate,Non Revenue,11/03/2019,30216401,15000.00,Capital,4OC Ltd,Consultants Fees
Peterborough City Council,Education,Special Educational Needs / Inclusion,Services,11/03/2019,30216515,505.00,Revenue,View,Conferences
Peterborough City Council,Peterborough Highway Services,Transport & Infrastructure Commissioning,Services,11/03/2019,30216533,6114.40,Revenue,Stagecoach in Peterborough,Public Transport
Peterborough City Council,Children's & Safeguarding,Children's Social Care,Contract Hire and Operating Leases,11/03/2019,30216535,1500.00,Revenue,Stagecoach in Peterborough,Hired Transport
Peterborough City Council,Adults,Home Services Delivery Model,Services,11/03/2019,30216690,62500.00,Revenue,Peterborough Environment City Trust,Contributions
Peterborough City Council,Corporate,Corporate,Non Revenue,11/03/2019,30216728,45139.06,Capital,Enterprise Managed Services Limited,Building And Site Works
Peterborough City Council,Corporate Items,Corporate Services,Services,11/03/2019,30217432,10471.00,Revenue,East of England LGA,Consultants Fees
Peterborough City Council,HR,HR,Advertising,11/03/2019,30218295,2180.62,Revenue,TMP (UK) LTD,Recruitment Advertising
Peterborough City Council,Adults,Independent Sector Placements,Services,11/03/2019,30218344,-1766.66,Revenue,The Orders of St John Care Trust,Residential Care
Peterborough City Council,Marketing & Communications,Marketing & Communications,Services,11/03/2019,30218351,1550.38,Revenue,Jeffery Sin-Jon & Associates Limited,Printing
Peterborough City Council,HR,HR,Services,11/03/2019,30218370,11032.43,Revenue,Edenred,Childcare
Peterborough City Council,Legal Services,Legal Services,Services,11/03/2019,30218925,550.00,Revenue,"Elliott, Ms Margot",Legal Costs
Peterborough City Council,Commissioning and Commercial Operations,Clare Lodge,Agency Staff,11/03/2019,30218938,1225.00,Revenue,Mana Resourcing Ltd,Supply Teachers
Peterborough City Council,Adults,Independent Sector Placements,Services,11/03/2019,30218964,1376.48,Revenue,Park Vista Care Home,Residential Care
Peterborough City Council,Adults,Independent Sector Placements,Services,11/03/2019,30218966,2778.80,Revenue,Country Court Care (Rose Lodge),Residential Care
Peterborough City Council,Adults,Independent Sector Placements,Services,11/03/2019,30218973,10572.08,Revenue,Kisimul Group Ltd,Residential Care
Peterborough City Council,Corporate,Corporate,Non Revenue,11/03/2019,30219004,1030.00,Capital,M J Greaves,Building And Site Works
Peterborough City Council,Adults,Therapy/Reablement/Community Equipment,"Tools, Equipment, Furniture & Materials",11/03/2019,30219160,2661.00,Revenue,P F S Builders & Contractors,Occupational Therapy Equipment
Peterborough City Council,"Cemeteries, Cremation & Registrars",Registration Service,Energy Costs,11/03/2019,30219202,5480.39,Revenue,Opus Energy Corporate Ltd,Gas
Peterborough City Council,Children's & Safeguarding,Commissioning - CSC,Services,11/03/2019,8000137608,673.84,Revenue,Redacted Personal Data,Financial Assistance
Peterborough City Council,Children's & Safeguarding,Commissioning - CSC,Services,11/03/2019,8000137608,766.34,Revenue,Redacted Personal Data,Financial Assistance
Peterborough City Council,Children's & Safeguarding,Commissioning - CSC,Services,11/03/2019,8000137608,603.24,Revenue,Redacted Personal Data,Financial Assistance
Peterborough City Council,Children's & Safeguarding,Commissioning - CSC,Services,11/03/2019,8000137608,576.38,Revenue,Redacted Personal Data,Financial Assistance
Peterborough City Council,Children's & Safeguarding,Commissioning - CSC,Services,11/03/2019,8000137608,866.92,Revenue,Redacted Personal Data,Financial Assistance
Peterborough City Council,Children's & Safeguarding,Commissioning - CSC,Services,11/03/2019,8000137608,2022.82,Revenue,Redacted Personal Data,Financial Assistance
Peterborough City Council,Children's & Safeguarding,Commissioning - CSC,Services,11/03/2019,8000137608,627.18,Revenue,Redacted Personal Data,Financial Assistance
Peterborough City Council,Children's & Safeguarding,Commissioning - CSC,Services,11/03/2019,8000137608,748.76,Revenue,Redacted Personal Data,Financial Assistance
Peterborough City Council,Children's & Safeguarding,Commissioning - CSC,Services,11/03/2019,8000137608,748.76,Revenue,Redacted Personal Data,Financial Assistance
Peterborough City Council,Children's & Safeguarding,Commissioning - CSC,Services,11/03/2019,8000137608,1260.00,Revenue,Redacted Personal Data,Financial Assistance
Peterborough City Council,Children's & Safeguarding,Commissioning - CSC,Services,11/03/2019,8000137608,550.40,Revenue,Redacted Personal Data,Financial Assistance
Peterborough City Council,Children's & Safeguarding,Commissioning - CSC,Services,11/03/2019,8000137608,866.76,Revenue,Redacted Personal Data,Financial Assistance
Peterborough City Council,Children's & Safeguarding,Commissioning - CSC,Services,11/03/2019,8000137608,1371.71,Revenue,Redacted Personal Data,Financial Assistance
Peterborough City Council,Legal & Democratic,Democratic Services,Contract Hire and Operating Leases,11/03/2019,8000138810,534.32,Revenue,Lex Autolease Ltd,Leasing Charges
Peterborough City Council,Adults,Independent Sector Placements,Services,13/03/2019,30205072,2863.20,Revenue,SOCIAL CARE SOLUTIONS LTD,Home Care
Peterborough City Council,Adults,Independent Sector Placements,Services,13/03/2019,30205074,900.00,Revenue,SOCIAL CARE SOLUTIONS LTD,Home Care
Peterborough City Council,Adults,Independent Sector Placements,Services,13/03/2019,30205075,2103.58,Revenue,ADR CARE HOMES LTD,Residential Care
Peterborough City Council,Adults,Independent Sector Placements,Services,13/03/2019,30205076,2035.72,Revenue,ADR CARE HOMES LTD,Residential Care
Peterborough City Council,Adults,Independent Sector Placements,Services,13/03/2019,30205157,900.00,Revenue,SOCIAL CARE SOLUTIONS LTD,Home Care
Peterborough City Council,Adults,Independent Sector Placements,Services,13/03/2019,30205160,2863.20,Revenue,SOCIAL CARE SOLUTIONS LTD,Home Care
Peterborough City Council,Adults,Independent Sector Placements,Services,13/03/2019,30205161,900.00,Revenue,SOCIAL CARE SOLUTIONS LTD,Home Care
Peterborough City Council,Adults,Independent Sector Placements,Services,13/03/2019,30205983,2863.20,Revenue,SOCIAL CARE SOLUTIONS LTD,Home Care
Peterborough City Council,Adults,Independent Sector Placements,Services,13/03/2019,30207903,2863.20,Revenue,SOCIAL CARE SOLUTIONS LTD,Home Care
Peterborough City Council,Adults,Independent Sector Placements,Services,13/03/2019,30207905,2863.20,Revenue,SOCIAL CARE SOLUTIONS LTD,Home Care
Peterborough City Council,Adults,Independent Sector Placements,Services,13/03/2019,30212158,2863.20,Revenue,SOCIAL CARE SOLUTIONS LTD,Home Care
Peterborough City Council,Education,Early Years & Quality Improvement,Services,13/03/2019,30215910,4177.80,Revenue,The Peterborough School Limited,Grant Payment
Peterborough City Council,Children's & Safeguarding,Access to Resources & Specialist Commissioning,Services,13/03/2019,30216029,3270.40,Revenue,Fostering Solutions Limited,Boarding Out Fees
Peterborough City Council,Education,Financing - Resources,Services,13/03/2019,30216030,78000.00,Revenue,City College Peterborough,Education Expenses
Peterborough City Council,Education,Financing - Resources,Services,13/03/2019,30216031,137767.00,Revenue,City College Peterborough,Education Expenses
Peterborough City Council,Children's & Safeguarding,Access to Resources & Specialist Commissioning,Services,13/03/2019,30216032,3204.88,Revenue,Fostering Solutions Limited,Boarding Out Fees
Peterborough City Council,Education,Financing - Resources,Services,13/03/2019,30216033,116500.00,Revenue,New College Stamford,Education Expenses
Peterborough City Council,Education,Financing - Resources,Services,13/03/2019,30216034,25660.00,Revenue,New College Stamford,Education Expenses
Peterborough City Council,Education,Financing - Resources,Services,13/03/2019,30216035,17000.00,Revenue,New College Stamford,Education Expenses
Peterborough City Council,Children's & Safeguarding,Access to Resources & Specialist Commissioning,Services,13/03/2019,30216036,3204.88,Revenue,Fostering Solutions Limited,Boarding Out Fees
Peterborough City Council,Education,Financing - Resources,Services,13/03/2019,30216038,24000.00,Revenue,New College Stamford,Education Expenses
Peterborough City Council,Children's & Safeguarding,Access to Resources & Specialist Commissioning,Services,13/03/2019,30216041,3198.72,Revenue,Fostering Solutions Limited,Boarding Out Fees
Peterborough City Council,Children's & Safeguarding,Access to Resources & Specialist Commissioning,Services,13/03/2019,30216042,3111.08,Revenue,Fostering Solutions Limited,Boarding Out Fees
Peterborough City Council,Children's & Safeguarding,Access to Resources & Specialist Commissioning,Services,13/03/2019,30216043,3198.72,Revenue,Fostering Solutions Limited,Boarding Out Fees
Peterborough City Council,Children's & Safeguarding,Children's Social Care,Services,13/03/2019,30216143,1273.80,Revenue,Florinee Homes Ltd,Financial Assistance
Peterborough City Council,Children's & Safeguarding,Access to Resources & Specialist Commissioning,Services,13/03/2019,30216202,1869.00,Revenue,Transition Care Peterborough Ltd,Boarding Out Fees
Peterborough City Council,Children's & Safeguarding,Access to Resources & Specialist Commissioning,Services,13/03/2019,30216203,2812.04,Revenue,Foster Care Associates Ltd FCA,Boarding Out Fees
Peterborough City Council,Children's & Safeguarding,Access to Resources & Specialist Commissioning,Services,13/03/2019,30216210,2812.04,Revenue,Foster Care Associates Ltd FCA,Boarding Out Fees
Peterborough City Council,Children's & Safeguarding,External Education Placements,Services,13/03/2019,30216212,971.84,Revenue,Kirkstone House School,Out Of Area Education Costs
Peterborough City Council,Children's & Safeguarding,External Education Placements,Services,13/03/2019,30216213,3943.67,Revenue,Kirkstone House School,Out Of Area Education Costs
Peterborough City Council,Children's & Safeguarding,External Education Placements,Services,13/03/2019,30216214,2817.49,Revenue,Kirkstone House School,Out Of Area Education Costs
Peterborough City Council,Children's & Safeguarding,External Education Placements,Services,13/03/2019,30216215,2817.49,Revenue,Kirkstone House School,Out Of Area Education Costs
Peterborough City Council,Children's & Safeguarding,External Education Placements,Services,13/03/2019,30216216,2123.99,Revenue,Kirkstone House School,Out Of Area Education Costs
Peterborough City Council,Children's & Safeguarding,Access to Resources & Specialist Commissioning,Services,13/03/2019,30216234,999.00,Revenue,Transition Care Peterborough Ltd,Boarding Out Fees
Peterborough City Council,Children's & Safeguarding,Access to Resources & Specialist Commissioning,Services,13/03/2019,30216242,5428.08,Revenue,Fostering Solutions Limited,Boarding Out Fees
Peterborough City Council,Children's & Safeguarding,Access to Resources & Specialist Commissioning,Services,13/03/2019,30216243,3270.40,Revenue,Fostering Solutions Limited,Boarding Out Fees
Peterborough City Council,Children's & Safeguarding,Access to Resources & Specialist Commissioning,Services,13/03/2019,30216244,3623.72,Revenue,Fostering Solutions Limited,Boarding Out Fees
Peterborough City Council,Children's & Safeguarding,Access to Resources & Specialist Commissioning,Services,13/03/2019,30216245,3623.72,Revenue,Fostering Solutions Limited,Boarding Out Fees
Peterborough City Council,Children's & Safeguarding,Access to Resources & Specialist Commissioning,Services,13/03/2019,30216246,3270.40,Revenue,Fostering Solutions Limited,Boarding Out Fees
Peterborough City Council,Children's & Safeguarding,Access to Resources & Specialist Commissioning,Services,13/03/2019,30216247,3270.40,Revenue,Fostering Solutions Limited,Boarding Out Fees
Peterborough City Council,Legal Services,Legal Services,Agency Staff,13/03/2019,30216273,823.71,Revenue,Venn Group Ltd,External Temporary Staff
Peterborough City Council,Legal Services,Legal Services,Agency Staff,13/03/2019,30216275,2062.50,Revenue,Venn Group Ltd,External Temporary Staff
Peterborough City Council,Legal Services,Legal Services,Agency Staff,13/03/2019,30216277,1738.08,Revenue,Venn Group Ltd,External Temporary Staff
Peterborough City Council,Legal Services,Legal Services,Agency Staff,13/03/2019,30216279,2926.38,Revenue,Venn Group Ltd,External Temporary Staff
Peterborough City Council,Children's & Safeguarding,External Education Placements,Services,13/03/2019,30216325,1042.50,Revenue,Kirkstone House School,Out Of Area Education Costs
Peterborough City Council,Children's & Safeguarding,External Education Placements,Services,13/03/2019,30216326,3387.31,Revenue,Kirkstone House School,Out Of Area Education Costs
Peterborough City Council,Children's & Safeguarding,External Education Placements,Services,13/03/2019,30216327,3387.31,Revenue,Kirkstone House School,Out Of Area Education Costs
Peterborough City Council,Children's & Safeguarding,External Education Placements,Services,13/03/2019,30216328,1042.50,Revenue,Kirkstone House School,Out Of Area Education Costs
Peterborough City Council,Children's & Safeguarding,External Education Placements,Services,13/03/2019,30216329,3118.00,Revenue,Kirkstone House School,Out Of Area Education Costs
Peterborough City Council,Children's & Safeguarding,External Education Placements,Services,13/03/2019,30216330,3387.31,Revenue,Kirkstone House School,Out Of Area Education Costs
Peterborough City Council,Children's & Safeguarding,Access to Resources & Specialist Commissioning,Services,13/03/2019,30216352,2892.40,Revenue,Foster Care Associates Ltd FCA,Boarding Out Fees
Peterborough City Council,Children's & Safeguarding,Access to Resources & Specialist Commissioning,Services,13/03/2019,30216353,3211.88,Revenue,Foster Care Associates Ltd FCA,Boarding Out Fees
Peterborough City Council,Children's & Safeguarding,Access to Resources & Specialist Commissioning,Services,13/03/2019,30216354,2812.04,Revenue,Foster Care Associates Ltd FCA,Boarding Out Fees
Peterborough City Council,Children's & Safeguarding,Access to Resources & Specialist Commissioning,Services,13/03/2019,30216355,3956.40,Revenue,Foster Care Associates Ltd FCA,Boarding Out Fees
Peterborough City Council,Children's & Safeguarding,Access to Resources & Specialist Commissioning,Services,13/03/2019,30216356,3211.60,Revenue,Foster Care Associates Ltd FCA,Boarding Out Fees
Peterborough City Council,Children's & Safeguarding,Access to Resources & Specialist Commissioning,Services,13/03/2019,30216357,2982.00,Revenue,Foster Care Associates Ltd FCA,Boarding Out Fees
Peterborough City Council,Children's & Safeguarding,Access to Resources & Specialist Commissioning,Services,13/03/2019,30216358,3211.88,Revenue,Foster Care Associates Ltd FCA,Boarding Out Fees
Peterborough City Council,Adults,Independent Sector Placements,Services,13/03/2019,30216363,2817.48,Revenue,ADR CARE HOMES LTD,Residential Care
Peterborough City Council,Adults,Independent Sector Placements,Services,13/03/2019,30216365,-4139.30,Revenue,ADR CARE HOMES LTD,Residential Care
Peterborough City Council,Education,School Standards & Effectiveness,Rents,13/03/2019,30216377,3237.25,Revenue,Kingsgate Trading Ltd,Hire Of Premises
Peterborough City Council,Adults,Independent Sector Placements,Services,13/03/2019,30216470,1459.52,Revenue,PRIME LIFE LTD (Caenarvon House),Residential Care
Peterborough City Council,Adults,Independent Sector Placements,Services,13/03/2019,30216471,2179.08,Revenue,Eastwood Hall Limited t/a Broadoaks Residential Home,Residential Care
Peterborough City Council,Peterborough Highway Services,Network and Traffic Management,Services,13/03/2019,30216503,3981.03,Revenue,Dynniq UK Ltd,Infrastructure Maintenance
Peterborough City Council,Peterborough Highway Services,Network and Traffic Management,Services,13/03/2019,30216504,3856.07,Revenue,Dynniq UK Ltd,Infrastructure Maintenance
Peterborough City Council,Corporate,Corporate,Non Revenue,13/03/2019,30216511,6438.00,Capital,Quadrant Security Group Ltd,Furniture And Equipment Purchase
Peterborough City Council,Commissioning and Commercial Operations,Clare Lodge,Services,13/03/2019,30216514,8058.56,Revenue,Rotamaster Ltd,Computer Software
Peterborough City Council,HR,HR WFD & Training,Services,13/03/2019,30216521,12319.00,Revenue,MA Education Ltd,Subscriptions
Peterborough City Council,HR,HR WFD & Training,Interview & Training Expenses,13/03/2019,30216522,1500.00,Revenue,AJ Exclusive Events,Training
Peterborough City Council,Peterborough Highway Services,Highway & Drainage Control,Agency Staff,13/03/2019,30216524,1428.00,Revenue,Matchtech,External Temporary Staff
Peterborough City Council,Peterborough Highway Services,Highway & Drainage Control,Agency Staff,13/03/2019,30216525,1543.50,Revenue,Matchtech,External Temporary Staff
Peterborough City Council,HR,HR WFD & Training,Services,13/03/2019,30216527,14977.00,Revenue,MA Education Ltd,Subscriptions
Peterborough City Council,Adults,Independent Sector Placements,Services,13/03/2019,30216566,2863.20,Revenue,SOCIAL CARE SOLUTIONS LTD,Home Care
Peterborough City Council,Adults,Independent Sector Placements,Services,13/03/2019,30216567,900.00,Revenue,SOCIAL CARE SOLUTIONS LTD,Home Care
Peterborough City Council,Children's & Safeguarding,Access to Resources & Specialist Commissioning,Services,13/03/2019,30216605,3275.72,Revenue,Foster Care Associates Ltd FCA,Boarding Out Fees
Peterborough City Council,Children's & Safeguarding,External Education Placements,Services,13/03/2019,30216647,23866.00,Revenue,Leicestershire County Council,Out Of Area Education Costs
Peterborough City Council,Corporate Property,Commercial Propety,Repair & Maintenance of Buildings,13/03/2019,30216649,720.00,Revenue,P.J. Thory Ltd,Premises Maintenance
Peterborough City Council,Westcombe Engineering,Westcombe Engineering,"Tools, Equipment, Furniture & Materials",13/03/2019,30216651,688.18,Revenue,M O 8 Specialities Ltd,Materials
Peterborough City Council,Adults,Home Services Delivery Model,Services,13/03/2019,30216677,1802.00,Revenue,Rawheat Heating & Plumbing Eng.,Contractors
Peterborough City Council,Children's & Safeguarding,Access to Resources & Specialist Commissioning,Services,13/03/2019,30216820,3211.60,Revenue,Foster Care Associates Ltd FCA,Boarding Out Fees
Peterborough City Council,Westcombe Engineering,Westcombe Engineering,"Tools, Equipment, Furniture & Materials",13/03/2019,30216847,2516.58,Revenue,Thomas Dudley Foundry Ltd,Materials
Peterborough City Council,Children's & Safeguarding,Access to Resources & Specialist Commissioning,Services,13/03/2019,30216903,2399.04,Revenue,Fostering Solutions Limited,Boarding Out Fees
Peterborough City Council,Westcombe Engineering,Westcombe Engineering,"Tools, Equipment, Furniture & Materials",13/03/2019,30216993,1294.95,Revenue,Carillon Industrial Services Ltd,Tools
Peterborough City Council,Regulatory Services,Regulatory Services,Services,13/03/2019,30217000,8429.15,Revenue,Civica UK Limited,Computer Software
Peterborough City Council,Development and Construction,Planning Compliance,Agency Staff,13/03/2019,30217035,761.43,Revenue,Reed Specialist Recruitment Limited,External Temporary Staff
Peterborough City Council,Corporate Property,Commercial Propety,Rents,13/03/2019,30217152,39000.00,Revenue,Savills (UK) Ltd,Rent
Peterborough City Council,Children's & Safeguarding,Access to Resources & Specialist Commissioning,Services,13/03/2019,30217156,2812.04,Revenue,Foster Care Associates Ltd FCA,Boarding Out Fees
Peterborough City Council,Children's & Safeguarding,Access to Resources & Specialist Commissioning,Services,13/03/2019,30217157,2812.04,Revenue,Foster Care Associates Ltd FCA,Boarding Out Fees
Peterborough City Council,Westcombe Engineering,Westcombe Engineering,"Tools, Equipment, Furniture & Materials",13/03/2019,30217206,885.76,Revenue,Barron Clark Castings Ltd,Materials
Peterborough City Council,Adults,Independent Sector Placements,Services,13/03/2019,30217211,-2862.64,Revenue,SOCIAL CARE SOLUTIONS LTD,Home Care
Peterborough City Council,Legal Services,Legal Services,Services,13/03/2019,30217244,1800.00,Revenue,"Martignetti, Mr Ian",Legal Costs
Peterborough City Council,Adults,Home Services Delivery Model,Services,13/03/2019,30217267,1385.50,Revenue,Fletton Electrics Ltd,Contractors
Peterborough City Council,Children's & Safeguarding,Child Health,Repair & Maintenance of Buildings,13/03/2019,30217288,1250.00,Revenue,Britannia Fire & Security Ltd,Premises Maintenance
Peterborough City Council,Children's & Safeguarding,Access to Resources & Specialist Commissioning,Services,13/03/2019,30217366,3600.80,Revenue,Next Step Fostering Services Limited,Boarding Out Fees
Peterborough City Council,Children's & Safeguarding,Access to Resources & Specialist Commissioning,Services,13/03/2019,30217367,1398.25,Revenue,Luton Community Housing Ltd,Boarding Out Fees
Peterborough City Council,Children's & Safeguarding,Access to Resources & Specialist Commissioning,Services,13/03/2019,30217459,2583.92,Revenue,Fostering Solutions Limited,Boarding Out Fees
Peterborough City Council,Legal Services,Legal Services,Services,13/03/2019,30217540,635.00,Revenue,"Walji, Miss Shabnam",Legal Costs
Peterborough City Council,Peterborough Highway Services,Transport & Infrastructure Commissioning,Energy Costs,13/03/2019,30217600,-99107.02,Revenue,EDF Energy Networks Ltd,Electricity
Peterborough City Council,Education,Special Educational Needs / Inclusion,Services,13/03/2019,30217617,530.66,Revenue,Children's Therapy Solutions Ltd,Occupational Health
Peterborough City Council,Commissioning and Commercial Operations,Commissioning,Services,13/03/2019,30217691,530.00,Revenue,121 Social Care Limited,Hired Services
Peterborough City Council,Children's & Safeguarding,Access to Resources & Specialist Commissioning,Services,13/03/2019,30217733,22983.04,Revenue,Aspire Scotland Ltd,Boarding Out Fees
Peterborough City Council,Financial Services,Insurance,Premises Insurances,13/03/2019,30217748,37722.21,Revenue,Zurich Insurance plc,Insurance Premiums
Peterborough City Council,Children's & Safeguarding,Access to Resources & Specialist Commissioning,Services,13/03/2019,30217757,2955.53,Revenue,Fostering Solutions Limited,Boarding Out Fees
Peterborough City Council,Children's & Safeguarding,Access to Resources & Specialist Commissioning,Services,13/03/2019,30217760,3111.08,Revenue,Fostering Solutions Limited,Boarding Out Fees
Peterborough City Council,Peterborough Highway Services,Transport & Infrastructure Commissioning,Energy Costs,13/03/2019,30217765,-95719.73,Revenue,EDF Energy Networks Ltd,Electricity
Peterborough City Council,Peterborough Highway Services,Transport & Infrastructure Commissioning,Energy Costs,13/03/2019,30217766,99256.94,Revenue,EDF Energy Networks Ltd,Electricity
Peterborough City Council,Peterborough Highway Services,Transport & Infrastructure Commissioning,Energy Costs,13/03/2019,30217767,95694.39,Revenue,EDF Energy Networks Ltd,Electricity
Peterborough City Council,Corporate,Corporate,Non Revenue,13/03/2019,30217794,12596.00,Capital,MORLEY BUILDING SERVICES LTD,Grant Payment
Peterborough City Council,Corporate,Corporate,Non Revenue,13/03/2019,30217938,1424.00,Capital,Casbon Building Services,Grant Payment
Peterborough City Council,Children's & Safeguarding,Access to Resources & Specialist Commissioning,Services,13/03/2019,30217977,1939.28,Revenue,PCH Integration Services Ltd,Boarding Out Fees
Peterborough City Council,Children's & Safeguarding,Access to Resources & Specialist Commissioning,Services,13/03/2019,30217987,2149.28,Revenue,PCH Integration Services Ltd,Boarding Out Fees
Peterborough City Council,Corporate,Corporate,Non Revenue,13/03/2019,30218196,1494.96,Capital,Premier Mobility (UK) Limited,Grant Payment
Peterborough City Council,Children's & Safeguarding,External Education Placements,Services,13/03/2019,30218357,2956.87,Revenue,Ethelbert Childrens Services,Boarding Out Fees
Peterborough City Council,"Director, OP & JV",Growth HoS,Third Party Payments,13/03/2019,30218431,2223784.23,Revenue & Capital,Skanska Construction UK Ltd,Third Party Payments - Contract
Peterborough City Council,Adults,Independent Sector Placements,Services,13/03/2019,30218547,1100.64,Revenue,Sanctuary Care Limited,Residential Care
Peterborough City Council,Peterborough Highway Services,Transport & Infrastructure Commissioning,Energy Costs,13/03/2019,30218574,2618.93,Revenue,EDF Energy Networks Ltd,Electricity
Peterborough City Council,Westcombe Engineering,Westcombe Engineering,"Tools, Equipment, Furniture & Materials",13/03/2019,30218646,592.50,Revenue,Rowes Precision Products Ltd,Materials
Peterborough City Council,Legal Services,Legal Services,Agency Staff,13/03/2019,30218683,2025.38,Revenue,Reed Specialist Recruitment Limited,External Temporary Staff
Peterborough City Council,Adults,Strategic Commissioning - Management,Agency Staff,13/03/2019,30218691,525.10,Revenue,Reed Specialist Recruitment Limited,External Temporary Staff
Peterborough City Council,Legal Services,Legal Services,Agency Staff,13/03/2019,30218735,591.66,Revenue,Ten-Percent.co.uk Limited,External Temporary Staff
Peterborough City Council,Education,Early Years & Quality Improvement,Services,13/03/2019,30218803,2357.28,Revenue,Seedlings Nursery,Grant Payment
Peterborough City Council,Adults,Independent Sector Placements,Contract Hire and Operating Leases,13/03/2019,30218844,520.00,Revenue,A2B Euro Cars,Hired Transport
Peterborough City Council,Communities,Service Director - Adults & Communities,Third Party Payments,13/03/2019,30218856,3191.62,Revenue,Peterborough Citizens Advice Bureau,Grant-Third Party
Peterborough City Council,Adults,Independent Sector Placements,Services,13/03/2019,30218901,1232.52,Revenue,FIELD HOUSE (EYE) LTD,Residential Care
Peterborough City Council,Adults,Independent Sector Placements,Services,13/03/2019,30218902,562.28,Revenue,FIELD HOUSE (EYE) LTD,Residential Care
Peterborough City Council,Adults,Independent Sector Placements,Services,13/03/2019,30218903,1747.60,Revenue,FIELD HOUSE (EYE) LTD,Residential Care
Peterborough City Council,Adults,Independent Sector Placements,Services,13/03/2019,30218904,1757.80,Revenue,FIELD HOUSE (EYE) LTD,Residential Care
Peterborough City Council,Adults,Independent Sector Placements,Services,13/03/2019,30218905,5787.55,Revenue,FIELD HOUSE (EYE) LTD,Residential Care
Peterborough City Council,Adults,Independent Sector Placements,Services,13/03/2019,30218906,1315.08,Revenue,FIELD HOUSE (EYE) LTD,Residential Care
Peterborough City Council,Adults,Independent Sector Placements,Services,13/03/2019,30218907,1720.84,Revenue,FIELD HOUSE (EYE) LTD,Residential Care
Peterborough City Council,Adults,Independent Sector Placements,Services,13/03/2019,30218908,1365.28,Revenue,FIELD HOUSE (EYE) LTD,Residential Care
Peterborough City Council,Adults,Independent Sector Placements,Services,13/03/2019,30218909,2320.00,Revenue,FIELD HOUSE (EYE) LTD,Residential Care
Peterborough City Council,Adults,Independent Sector Placements,Services,13/03/2019,30218910,1687.60,Revenue,FIELD HOUSE (EYE) LTD,Residential Care
Peterborough City Council,Adults,Independent Sector Placements,Services,13/03/2019,30218911,1269.48,Revenue,FIELD HOUSE (EYE) LTD,Residential Care
Peterborough City Council,Adults,Independent Sector Placements,Services,13/03/2019,30218912,1576.64,Revenue,FIELD HOUSE (EYE) LTD,Residential Care
Peterborough City Council,Adults,Independent Sector Placements,Services,13/03/2019,30218913,1747.60,Revenue,FIELD HOUSE (EYE) LTD,Residential Care
Peterborough City Council,Adults,Independent Sector Placements,Services,13/03/2019,30218914,1110.44,Revenue,FIELD HOUSE (EYE) LTD,Residential Care
Peterborough City Council,Adults,Independent Sector Placements,Services,13/03/2019,30218915,1241.84,Revenue,FIELD HOUSE (EYE) LTD,Residential Care
Peterborough City Council,Adults,Independent Sector Placements,Services,13/03/2019,30218916,1847.60,Revenue,FIELD HOUSE (EYE) LTD,Residential Care
Peterborough City Council,Adults,Independent Sector Placements,Services,13/03/2019,30218917,1535.56,Revenue,FIELD HOUSE (EYE) LTD,Residential Care
Peterborough City Council,Adults,Independent Sector Placements,Services,13/03/2019,30218918,1741.64,Revenue,FIELD HOUSE (EYE) LTD,Residential Care
Peterborough City Council,Adults,Independent Sector Placements,Services,13/03/2019,30218919,952.84,Revenue,FIELD HOUSE (EYE) LTD,Residential Care
Peterborough City Council,Adults,Independent Sector Placements,Services,13/03/2019,30218920,1847.60,Revenue,FIELD HOUSE (EYE) LTD,Residential Care
Peterborough City Council,Adults,Independent Sector Placements,Services,13/03/2019,30218921,1124.56,Revenue,FIELD HOUSE (EYE) LTD,Residential Care
Peterborough City Council,Peterborough Highway Services,Transport & Infrastructure Commissioning,Services,13/03/2019,30218993,15228.00,Revenue,First Eastern Counties Buses Ltd,Public Transport
Peterborough City Council,Adults,Finance,Interview & Training Expenses,13/03/2019,30219007,650.00,Revenue,Vivacity Culture and Leisure,Training
Peterborough City Council,Adults,Mental Health,Third Party Payments,13/03/2019,30219022,5733.75,Revenue,Norfolk & Suffolk NHS Foundation Trust,Grant-Third Party
Peterborough City Council,Adults,Independent Sector Placements,Services,13/03/2019,30219030,3537.00,Revenue,Longueville Court (Barchester),Residential Care
Peterborough City Council,Legal Services,Legal Services,Agency Staff,13/03/2019,30219035,1152.00,Revenue,Reed Specialist Recruitment Limited,External Temporary Staff
Peterborough City Council,Legal Services,Legal Services,Agency Staff,13/03/2019,30219037,1897.35,Revenue,Reed Specialist Recruitment Limited,External Temporary Staff
Peterborough City Council,Financial Services,Finance,Agency Staff,13/03/2019,30219046,657.86,Revenue,Reed Specialist Recruitment Limited,External Temporary Staff
Peterborough City Council,Peterborough Highway Services,Highway & Drainage Control,Agency Staff,13/03/2019,30219047,1352.71,Revenue,Reed Specialist Recruitment Limited,External Temporary Staff
Peterborough City Council,Regulatory Services,Regulatory Services,Agency Staff,13/03/2019,30219058,1224.93,Revenue,Reed Specialist Recruitment Limited,External Temporary Staff
Peterborough City Council,ICT,ICT,Agency Staff,13/03/2019,30219060,2268.60,Revenue,Reed Specialist Recruitment Limited,External Temporary Staff
Peterborough City Council,Legal Services,Legal Services,Agency Staff,13/03/2019,30219062,1483.63,Revenue,Reed Specialist Recruitment Limited,External Temporary Staff
Peterborough City Council,Peterborough Highway Services,Highway Services - HoS,Agency Staff,13/03/2019,30219064,919.29,Revenue,Reed Specialist Recruitment Limited,External Temporary Staff
Peterborough City Council,Communities,Performance & Information,Agency Staff,13/03/2019,30219071,1271.60,Revenue,Reed Specialist Recruitment Limited,External Temporary Staff
Peterborough City Council,Regulatory Services,Regulatory Services,Agency Staff,13/03/2019,30219072,1187.24,Revenue,Reed Specialist Recruitment Limited,External Temporary Staff
Peterborough City Council,Peterborough Highway Services,Highway & Drainage Control,Agency Staff,13/03/2019,30219073,1459.20,Revenue,Reed Specialist Recruitment Limited,External Temporary Staff
Peterborough City Council,Peterborough Highway Services,Highway & Drainage Control,Agency Staff,13/03/2019,30219080,1487.62,Revenue,Reed Specialist Recruitment Limited,External Temporary Staff
Peterborough City Council,Children's & Safeguarding,Early Help ASC/CSC,Agency Staff,13/03/2019,30219093,715.13,Revenue,Reed Specialist Recruitment Limited,External Temporary Staff
Peterborough City Council,Development and Construction,Building Control,Agency Staff,13/03/2019,30219094,1508.70,Revenue,Reed Specialist Recruitment Limited,External Temporary Staff
Peterborough City Council,Development and Construction,Development Management,Agency Staff,13/03/2019,30219096,1264.49,Revenue,Reed Specialist Recruitment Limited,External Temporary Staff
Peterborough City Council,Children's & Safeguarding,Early Help ASC/CSC,Agency Staff,13/03/2019,30219097,723.49,Revenue,Reed Specialist Recruitment Limited,External Temporary Staff
Peterborough City Council,Development and Construction,Planning Compliance,Agency Staff,13/03/2019,30219099,718.20,Revenue,Reed Specialist Recruitment Limited,External Temporary Staff
Peterborough City Council,Peterborough Highway Services,Highway Services - HoS,Agency Staff,13/03/2019,30219101,1235.80,Revenue,Reed Specialist Recruitment Limited,External Temporary Staff
Peterborough City Council,ICT,ICT,Agency Staff,13/03/2019,30219103,2268.60,Revenue,Reed Specialist Recruitment Limited,External Temporary Staff
Peterborough City Council,Development and Construction,Development Management,Agency Staff,13/03/2019,30219109,1365.01,Revenue,Reed Specialist Recruitment Limited,External Temporary Staff
Peterborough City Council,Legal Services,Legal Services,Agency Staff,13/03/2019,30219111,2025.38,Revenue,Reed Specialist Recruitment Limited,External Temporary Staff
Peterborough City Council,Development and Construction,Building Control,Agency Staff,13/03/2019,30219112,1075.05,Revenue,Reed Specialist Recruitment Limited,External Temporary Staff
Peterborough City Council,Programme Management Office,Programme Management Office,Agency Staff,13/03/2019,30219115,4730.04,Revenue,Reed Specialist Recruitment Limited,External Temporary Staff
Peterborough City Council,Corporate,Corporate,Non Revenue,13/03/2019,30219116,2583.60,Capital,Reed Specialist Recruitment Limited,Consultants Fees
Peterborough City Council,Adults,Independent Sector Placements,Services,13/03/2019,30219140,9168.60,Revenue,Autism Care (UK) Ltd,Residential Care
Peterborough City Council,Peterborough Highway Services,Highway & Drainage Control,Agency Staff,13/03/2019,30219142,1235.80,Revenue,Reed Specialist Recruitment Limited,External Temporary Staff
Peterborough City Council,Commissioning and Commercial Operations,Clare Lodge,Agency Staff,13/03/2019,30219146,613.44,Revenue,Reed Specialist Recruitment Limited,External Temporary Staff
Peterborough City Council,Children's & Safeguarding,External Education Placements,Services,13/03/2019,30219170,-779.50,Revenue,Kirkstone House School,Out Of Area Education Costs
Peterborough City Council,Legal Services,Legal Services,Agency Staff,13/03/2019,30219176,1328.00,Revenue,Giant Professional Limited,External Temporary Staff
Peterborough City Council,Corporate Property,Commercial Propety,Services,13/03/2019,30219179,4350.00,Revenue,HM Revenues & Customs,Taxes
Peterborough City Council,Corporate Property,Commercial Propety,Services,13/03/2019,30219180,4850.00,Revenue,HM Revenues & Customs,Taxes
Peterborough City Council,Corporate Property,Commercial Propety,Services,13/03/2019,30219182,6675.00,Revenue,HM Revenues & Customs,Taxes
Peterborough City Council,Corporate,Corporate,Non Revenue,13/03/2019,30219209,3000.00,Capital,Barker Storey Matthews,Consultants Fees
Peterborough City Council,Communities,Housing,Services,13/03/2019,30219210,1125.00,Revenue,Magpie Property Management Ltd,Financial Assistance
Peterborough City Council,Corporate Property,Office Accomodation,Services,13/03/2019,30219211,1000.00,Revenue,Barker Storey Matthews,Valuations
Peterborough City Council,Communities,Housing,Services,13/03/2019,30219212,750.00,Revenue,Magpie Property Management Ltd,Financial Assistance
Peterborough City Council,Communities,Housing,Services,13/03/2019,30219214,900.00,Revenue,Majestic Lettings,Financial Assistance
Peterborough City Council,Communities,Housing,Services,13/03/2019,30219215,800.00,Revenue,Majestic Lettings,Financial Assistance
Peterborough City Council,Peterborough Highway Services,Highway Services - HoS,Agency Staff,13/03/2019,30219221,1235.80,Revenue,Reed Specialist Recruitment Limited,External Temporary Staff
Peterborough City Council,Commissioning and Commercial Operations,Clare Lodge,Agency Staff,13/03/2019,30219231,571.52,Revenue,Reed Specialist Recruitment Limited,External Temporary Staff
Peterborough City Council,Adults,Independent Sector Placements,Services,13/03/2019,30219282,5760.29,Revenue,Action on Hearing Loss (Care Fees),Residential Care
Peterborough City Council,Adults,Independent Sector Placements,Services,13/03/2019,30219283,5574.47,Revenue,Action on Hearing Loss (Care Fees),Residential Care
Peterborough City Council,Adults,Independent Sector Placements,Services,13/03/2019,30219290,-612.91,Revenue,Park Vista Care Home,Residential Care
Peterborough City Council,Communities,Targeted Youth Service,Interview & Training Expenses,13/03/2019,30219307,600.00,Revenue,Centre Thirty Three Young Peoples Counselling & Info Servs,Training
Peterborough City Council,Education,Special Educational Needs / Inclusion,Services,13/03/2019,30219309,1020.00,Revenue,Families First Peterborough,Education Expenses
Peterborough City Council,Education,Early Years & Quality Improvement,Services,13/03/2019,30219319,615.00,Revenue,Shining Stars Pre-School Nursery,Grant Payment
Peterborough City Council,Education,Early Years & Quality Improvement,Services,13/03/2019,30219320,615.00,Revenue,PSLA,Grant Payment
Peterborough City Council,Education,Early Years & Quality Improvement,Services,13/03/2019,30219323,615.00,Revenue,Herlington Pre-School,Grant Payment
Peterborough City Council,Adults,Independent Sector Placements,Services,13/03/2019,30219345,1236.28,Revenue,Park Vista Care Home,Residential Care
Peterborough City Council,Adults,Independent Sector Placements,Services,13/03/2019,30219346,715.74,Revenue,Park Vista Care Home,Residential Care
Peterborough City Council,Adults,Independent Sector Placements,Services,13/03/2019,30219348,2863.20,Revenue,SOCIAL CARE SOLUTIONS LTD,Home Care
Peterborough City Council,Corporate,Corporate,Non Revenue,13/03/2019,30219352,98869.10,Capital,Garfield Builders Ltd,Building And Site Works
Peterborough City Council,Adults,Independent Sector Placements,Services,13/03/2019,30219353,5600.00,Revenue,Community Care Solutions Ltd,Residential Care
Peterborough City Council,Adults,Independent Sector Placements,Services,13/03/2019,30219354,3784.00,Revenue,Community Care Solutions Ltd,Residential Care
Peterborough City Council,Adults,Independent Sector Placements,Services,13/03/2019,30219357,3767.20,Revenue,Community Care Solutions Ltd,Residential Care
Peterborough City Council,Adults,Independent Sector Placements,Services,13/03/2019,30219361,3767.20,Revenue,Community Care Solutions Ltd,Residential Care
Peterborough City Council,Adults,Independent Sector Placements,Services,13/03/2019,30219362,3767.20,Revenue,Community Care Solutions Ltd,Residential Care
Peterborough City Council,Adults,Independent Sector Placements,Services,13/03/2019,30219363,3767.20,Revenue,Community Care Solutions Ltd,Residential Care
Peterborough City Council,Education,HTS & CSC Transport,Contract Hire and Operating Leases,13/03/2019,30219370,600.00,Revenue,Cambridgeshire County Council,Hired Transport
Peterborough City Council,City Centre Management,"Markets, Tourism & Events","Tools, Equipment, Furniture & Materials",13/03/2019,30219380,2920.00,Revenue,The Seasonal Group,Equipment Repairs
Peterborough City Council,Adults,Home Services Delivery Model,Repair & Maintenance of Buildings,13/03/2019,30219382,1579.00,Revenue,Rawheat Heating & Plumbing Eng.,Premises Maintenance
Peterborough City Council,Adults,Independent Sector Placements,Services,13/03/2019,30219395,8049.72,Revenue,Community Care Solutions Ltd,Residential Care
Peterborough City Council,Adults,Independent Sector Placements,Services,13/03/2019,30219397,900.00,Revenue,SOCIAL CARE SOLUTIONS LTD,Home Care
Peterborough City Council,Communities,Housing,Services,13/03/2019,30219419,9285.50,Revenue,Eastfield Guesthouse,Temporary Accommodation Costs
Peterborough City Council,Communities,Housing,Services,13/03/2019,30219421,8550.00,Revenue,Eastfield Guesthouse,Temporary Accommodation Costs
Peterborough City Council,Communities,Housing,Services,13/03/2019,30219426,2910.00,Revenue,Singh and Sons Property Management Ltd,Temporary Accommodation Costs
Peterborough City Council,Communities,Housing,Services,13/03/2019,30219427,3150.00,Revenue,Singh and Sons Property Management Ltd,Temporary Accommodation Costs
Peterborough City Council,Communities,Housing,Services,13/03/2019,30219428,2275.00,Revenue,Singh and Sons Property Management Ltd,Temporary Accommodation Costs
Peterborough City Council,Communities,Housing,Services,13/03/2019,30219431,2810.00,Revenue,Singh and Sons Property Management Ltd,Temporary Accommodation Costs
Peterborough City Council,Communities,Housing,Services,13/03/2019,30219432,2840.00,Revenue,Singh and Sons Property Management Ltd,Temporary Accommodation Costs
Peterborough City Council,Communities,Housing,Services,13/03/2019,30219434,3150.00,Revenue,Singh and Sons Property Management Ltd,Temporary Accommodation Costs
Peterborough City Council,Communities,Housing,Services,13/03/2019,30219435,2975.00,Revenue,Singh and Sons Property Management Ltd,Temporary Accommodation Costs
Peterborough City Council,Communities,Housing,Services,13/03/2019,30219437,2160.00,Revenue,Singh and Sons Property Management Ltd,Temporary Accommodation Costs
Peterborough City Council,Corporate,Corporate,Non Revenue,13/03/2019,30219444,193265.28,Balance Sheet,LGSS Cambridgeshire Pension Fund,Pensions
Peterborough City Council,Corporate,Corporate,Non Revenue,13/03/2019,30219445,65551.87,Balance Sheet,LGSS Cambridgeshire Pension Fund,Pensions
Peterborough City Council,Corporate,Corporate,Non Revenue,13/03/2019,30219446,16072.57,Balance Sheet,LGSS Cambridgeshire Pension Fund,Pensions
Peterborough City Council,Corporate,Corporate,Non Revenue,13/03/2019,30219447,4784.64,Balance Sheet,NHS Pensions,Pensions
Peterborough City Council,Corporate,Corporate,Non Revenue,13/03/2019,30219448,481278.66,Balance Sheet,LGSS Cambridgeshire Pension Fund,Pensions
Peterborough City Council,Corporate,Corporate,Non Revenue,13/03/2019,30219451,8841.50,Balance Sheet,NHS Pensions,Pensions
Peterborough City Council,Corporate,Corporate,Non Revenue,13/03/2019,30219453,541.26,Balance Sheet,NHS Pensions,Pensions
Peterborough City Council,Communities,Cultural Services,Energy Costs,13/03/2019,30219462,536.33,Revenue,British Gas Business,Electricity
Peterborough City Council,Communities,Cultural Services,Energy Costs,13/03/2019,30219462,894.00,Revenue,British Gas Business,Electricity
Peterborough City Council,Communities,Cultural Services,Energy Costs,13/03/2019,30219462,755.27,Revenue,British Gas Business,Electricity
Peterborough City Council,City Centre Management,"Markets, Tourism & Events",Energy Costs,13/03/2019,30219471,1642.82,Revenue,British Gas Business,Electricity
Peterborough City Council,Communities,Cultural Services,Energy Costs,13/03/2019,30219471,-603.22,Revenue,British Gas Business,Electricity
Peterborough City Council,Children's & Safeguarding,Child Health,Energy Costs,13/03/2019,30219473,719.29,Revenue,British Gas Business,Electricity
Peterborough City Council,Communities,Housing,Services,13/03/2019,30219485,865.00,Revenue,Bee Lettings Ltd,Financial Assistance
Peterborough City Council,Communities,Housing,Services,13/03/2019,30219487,2200.00,Revenue,Rooms 4 U East Anglia Ltd,Financial Assistance
Peterborough City Council,Communities,Housing,Rents,13/03/2019,30219488,625.00,Revenue,Redacted Personal Data,Rent
Peterborough City Council,Communities,Housing,Rents,13/03/2019,30219489,550.00,Revenue,Redacted Personal Data,Rent
Peterborough City Council,Communities,Housing,Rents,13/03/2019,30219490,800.00,Revenue,Redacted Personal Data,Rent
Peterborough City Council,Communities,Housing,Rents,13/03/2019,30219491,750.00,Revenue,Bee Lettings Ltd,Rent
Peterborough City Council,Communities,Housing,Rents,13/03/2019,30219492,500.00,Revenue,English Estates Property Agents,Rent
Peterborough City Council,Communities,Housing,Rents,13/03/2019,30219493,750.00,Revenue,Bee Lettings Ltd,Rent
Peterborough City Council,Communities,Housing,Rents,13/03/2019,30219495,560.00,Revenue,Redacted Personal Data,Rent
Peterborough City Council,Communities,Housing,Rents,13/03/2019,30219496,550.00,Revenue,Redacted Personal Data,Rent
Peterborough City Council,Communities,Housing,Rents,13/03/2019,30219497,565.00,Revenue,Redacted Personal Data,Rent
Peterborough City Council,Education,Early Years & Quality Improvement,Services,13/03/2019,30219500,786.24,Revenue,Redacted Personal Data,Grant Payment
Peterborough City Council,Education,School Standards & Effectiveness,Services,13/03/2019,30219503,14084.85,Revenue,Contact Group,Hired Services
Peterborough City Council,Education,Early Years & Quality Improvement,Services,13/03/2019,30219504,770.64,Revenue,Redacted Personal Data,Grant Payment
Peterborough City Council,Education,Early Years & Quality Improvement,Services,13/03/2019,30219505,500.92,Revenue,Redacted Personal Data,Grant Payment
Peterborough City Council,Education,Early Years & Quality Improvement,Services,13/03/2019,30219510,1162.30,Revenue,Redacted Personal Data,Grant Payment
Peterborough City Council,Education,Early Years & Quality Improvement,Services,13/03/2019,30219511,610.58,Revenue,Redacted Personal Data,Grant Payment
Peterborough City Council,Education,Early Years & Quality Improvement,Services,13/03/2019,30219514,670.85,Revenue,Casey's Childminding ,Grant Payment
Peterborough City Council,Education,Early Years & Quality Improvement,Services,13/03/2019,30219516,642.20,Revenue,Redacted Personal Data,Grant Payment
Peterborough City Council,Education,Early Years & Quality Improvement,Services,13/03/2019,30219518,625.67,Revenue,Redacted Personal Data,Grant Payment
Peterborough City Council,Education,Early Years & Quality Improvement,Services,13/03/2019,30219519,1290.75,Revenue,Little Tykes Childcare,Grant Payment
Peterborough City Council,Education,Early Years & Quality Improvement,Services,13/03/2019,30219523,1102.61,Revenue,Redacted Personal Data,Grant Payment
Peterborough City Council,Education,Early Years & Quality Improvement,Services,13/03/2019,30219525,767.39,Revenue,Redacted Personal Data,Grant Payment
Peterborough City Council,Education,Early Years & Quality Improvement,Services,13/03/2019,30219526,904.02,Revenue,Redacted Personal Data,Grant Payment
Peterborough City Council,Education,Early Years & Quality Improvement,Services,13/03/2019,30219529,6251.74,Revenue,Newborough Pre-School Playgroup,Grant Payment
Peterborough City Council,Education,Early Years & Quality Improvement,Services,13/03/2019,30219530,5391.36,Revenue,Play House Pre-School & Out of School Club,Grant Payment
Peterborough City Council,Education,Early Years & Quality Improvement,Services,13/03/2019,30219531,11279.39,Revenue,Bee Bright Day Nursery,Grant Payment
Peterborough City Council,Education,Early Years & Quality Improvement,Services,13/03/2019,30219532,8739.90,Revenue,Rise & Shine Day Nursery,Grant Payment
Peterborough City Council,Education,Early Years & Quality Improvement,Services,13/03/2019,30219534,1780.74,Revenue,Redacted Personal Data,Grant Payment
Peterborough City Council,Education,Early Years & Quality Improvement,Services,13/03/2019,30219535,3258.45,Revenue,Shiny Stars Pre-School,Grant Payment
Peterborough City Council,Education,Early Years & Quality Improvement,Services,13/03/2019,30219536,1049.25,Revenue,Redacted Personal Data,Grant Payment
Peterborough City Council,Education,Early Years & Quality Improvement,Services,13/03/2019,30219537,1808.70,Revenue,Redacted Personal Data,Grant Payment
Peterborough City Council,Education,Early Years & Quality Improvement,Services,13/03/2019,30219538,1700.50,Revenue,Redacted Personal Data,Grant Payment
Peterborough City Council,Education,Early Years & Quality Improvement,Services,13/03/2019,30219539,7531.29,Revenue,Little Bees Pre-School,Grant Payment
Peterborough City Council,Education,Early Years & Quality Improvement,Services,13/03/2019,30219540,1155.96,Revenue,Redacted Personal Data,Grant Payment
Peterborough City Council,Education,Early Years & Quality Improvement,Services,13/03/2019,30219541,763.62,Revenue,Redacted Personal Data,Grant Payment
Peterborough City Council,Education,Early Years & Quality Improvement,Services,13/03/2019,30219542,1076.01,Revenue,Redacted Personal Data,Grant Payment
Peterborough City Council,Education,Early Years & Quality Improvement,Services,13/03/2019,30219543,732.11,Revenue,Redacted Personal Data,Grant Payment
Peterborough City Council,Education,Early Years & Quality Improvement,Services,13/03/2019,30219544,871.43,Revenue,Redacted Personal Data,Grant Payment
Peterborough City Council,Education,Early Years & Quality Improvement,Services,13/03/2019,30219545,1244.88,Revenue,Redacted Personal Data,Grant Payment
Peterborough City Council,Education,Early Years & Quality Improvement,Services,13/03/2019,30219546,711.36,Revenue,Redacted Personal Data,Grant Payment
Peterborough City Council,Education,Early Years & Quality Improvement,Services,13/03/2019,30219547,2578.68,Revenue,Redacted Personal Data,Grant Payment
Peterborough City Council,Education,Early Years & Quality Improvement,Services,13/03/2019,30219549,1804.92,Revenue,Redacted Personal Data,Grant Payment
Peterborough City Council,Education,Early Years & Quality Improvement,Services,13/03/2019,30219551,4623.84,Revenue,Redacted Personal Data,Grant Payment
Peterborough City Council,Education,Early Years & Quality Improvement,Services,13/03/2019,30219567,6339.68,Revenue,Redacted Personal Data,Grant Payment
Peterborough City Council,Education,Early Years & Quality Improvement,Services,13/03/2019,30219569,577.98,Revenue,Redacted Personal Data,Grant Payment
Peterborough City Council,Education,Early Years & Quality Improvement,Services,13/03/2019,30219574,978.12,Revenue,Redacted Personal Data,Grant Payment
Peterborough City Council,Education,Early Years & Quality Improvement,Services,13/03/2019,30219576,2927.23,Revenue,Redacted Personal Data,Grant Payment
Peterborough City Council,Education,Early Years & Quality Improvement,Services,13/03/2019,30219578,2427.52,Revenue,Redacted Personal Data,Grant Payment
Peterborough City Council,Education,Early Years & Quality Improvement,Services,13/03/2019,30219580,2311.92,Revenue,Redacted Personal Data,Grant Payment
Peterborough City Council,Education,Early Years & Quality Improvement,Services,13/03/2019,30219581,577.98,Revenue,Redacted Personal Data,Grant Payment
Peterborough City Council,Education,Early Years & Quality Improvement,Services,13/03/2019,30219582,1041.30,Revenue,Redacted Personal Data,Grant Payment
Peterborough City Council,Education,Early Years & Quality Improvement,Services,13/03/2019,30219583,2371.59,Revenue,Redacted Personal Data,Grant Payment
Peterborough City Council,Education,Early Years & Quality Improvement,Services,13/03/2019,30219584,2186.73,Revenue,Redacted Personal Data,Grant Payment
Peterborough City Council,Education,Early Years & Quality Improvement,Services,13/03/2019,30219585,1635.04,Revenue,Redacted Personal Data,Grant Payment
Peterborough City Council,Education,Early Years & Quality Improvement,Services,13/03/2019,30219587,5329.27,Revenue,Lisa Childminding,Grant Payment
Peterborough City Council,Education,Early Years & Quality Improvement,Services,13/03/2019,30219588,963.30,Revenue,Redacted Personal Data,Grant Payment
Peterborough City Council,Education,Early Years & Quality Improvement,Services,13/03/2019,30219589,47906.09,Revenue,Bretton Community Pre-School,Grant Payment
Peterborough City Council,Education,Early Years & Quality Improvement,Services,13/03/2019,30219590,520.65,Revenue,Redacted Personal Data,Grant Payment
Peterborough City Council,Education,Early Years & Quality Improvement,Services,13/03/2019,30219591,1155.96,Revenue,Redacted Personal Data,Grant Payment
Peterborough City Council,Education,Early Years & Quality Improvement,Services,13/03/2019,30219592,25834.77,Revenue,Beeches Pre-School,Grant Payment
Peterborough City Council,Education,Early Years & Quality Improvement,Services,13/03/2019,30219594,68112.85,Revenue,Anna-Ca-Soo Day Nursery,Grant Payment
Peterborough City Council,Education,Early Years & Quality Improvement,Services,13/03/2019,30219598,32824.74,Revenue,Busy Bunnies Braybrook,Grant Payment
Peterborough City Council,Peterborough Serco Strategic Partnership,PSSP Retained Services,"Tools, Equipment, Furniture & Materials",13/03/2019,30219609,1809.01,Revenue,Pitney Bowes Limited,Equipment Maintenance
Peterborough City Council,Education,Early Years & Quality Improvement,Services,13/03/2019,30219615,1040.36,Revenue,Redacted Personal Data,Grant Payment
Peterborough City Council,Education,Early Years & Quality Improvement,Services,13/03/2019,30219618,908.66,Revenue,Redacted Personal Data,Grant Payment
Peterborough City Council,Education,Early Years & Quality Improvement,Services,13/03/2019,30219619,656.71,Revenue,Redacted Personal Data,Grant Payment
Peterborough City Council,Education,Early Years & Quality Improvement,Services,13/03/2019,30219621,21549.06,Revenue,Shining Stars Pre-School Nursery,Grant Payment
Peterborough City Council,Education,Early Years & Quality Improvement,Services,13/03/2019,30219622,23949.78,Revenue,Springtime Nursery Ltd T/As Daisy Chain Day Nursery,Grant Payment
Peterborough City Council,Education,Early Years & Quality Improvement,Services,13/03/2019,30219624,11766.69,Revenue,Brookside Playgroup,Grant Payment
Peterborough City Council,Education,Early Years & Quality Improvement,Services,13/03/2019,30219625,15267.41,Revenue,Castor & Ailsworth Pre School,Grant Payment
Peterborough City Council,Education,Early Years & Quality Improvement,Services,13/03/2019,30219626,9996.48,Revenue,Busy Bees Pre-School,Grant Payment
Peterborough City Council,Education,Early Years & Quality Improvement,Services,13/03/2019,30219627,13940.55,Revenue,Husaini Pre-School,Grant Payment
Peterborough City Council,Education,Early Years & Quality Improvement,Services,13/03/2019,30219628,22965.93,Revenue,Eye Pre-School,Grant Payment
Peterborough City Council,Education,Early Years & Quality Improvement,Services,13/03/2019,30219629,97959.42,Revenue,Herlington Pre-School,Grant Payment
Peterborough City Council,Education,Early Years & Quality Improvement,Services,13/03/2019,30219630,14461.20,Revenue,East Community Playgroup,Grant Payment
Peterborough City Council,Education,Early Years & Quality Improvement,Services,13/03/2019,30219632,89862.24,Revenue,Little Stars Day Nursery,Grant Payment
Peterborough City Council,Education,Early Years & Quality Improvement,Services,13/03/2019,30219633,19952.48,Revenue,Helpston Playhouse & Under Fives,Grant Payment
Peterborough City Council,Education,Early Years & Quality Improvement,Services,13/03/2019,30219634,65452.14,Revenue,Manor House Nursery (Peterborough) Ltd,Grant Payment
Peterborough City Council,Education,Early Years & Quality Improvement,Services,13/03/2019,30219635,21107.78,Revenue,Little Blossoms,Grant Payment
Peterborough City Council,Education,Early Years & Quality Improvement,Services,13/03/2019,30219636,27404.21,Revenue,Little Twinkles Day Nursery,Grant Payment
Peterborough City Council,Education,Early Years & Quality Improvement,Services,13/03/2019,30219637,13302.90,Revenue,Little Bubbles Nursery,Grant Payment
Peterborough City Council,Education,Early Years & Quality Improvement,Services,13/03/2019,30219638,6662.07,Revenue,Little Angels,Grant Payment
Peterborough City Council,Education,Early Years & Quality Improvement,Services,13/03/2019,30219639,38320.97,Revenue,Orton Longueville Playgroup,Grant Payment
Peterborough City Council,Education,Early Years & Quality Improvement,Services,13/03/2019,30219640,49526.10,Revenue,Stars Pre-School Parnwell,Grant Payment
Peterborough City Council,Education,Early Years & Quality Improvement,Services,13/03/2019,30219642,13322.60,Revenue,St Josephs Day Nursery,Grant Payment
Peterborough City Council,Education,Early Years & Quality Improvement,Services,13/03/2019,30219643,8897.70,Revenue,Rainbow Pre-School,Grant Payment
Peterborough City Council,Education,Early Years & Quality Improvement,Services,13/03/2019,30219644,21948.03,Revenue,Orton Wistow Under Fives,Grant Payment
Peterborough City Council,Education,Early Years & Quality Improvement,Services,13/03/2019,30219645,29570.58,Revenue,Smiley Faces Day Nursery,Grant Payment
Peterborough City Council,Corporate Property,Commercial Propety,Agency Staff,13/03/2019,30219663,2068.94,Revenue,Reed Specialist Recruitment Limited,External Temporary Staff
Peterborough City Council,Adults,Other Services,Third Party Payments,13/03/2019,30219689,33694.00,Revenue,Healthwatch Cambridgeshire and Peterborough,Third Party Payments - Contract
Peterborough City Council,Education,HTS & CSC Transport,Contract Hire and Operating Leases,13/03/2019,8000137618,926.00,Revenue,A2B Euro Cars,Hired Transport
Peterborough City Council,Education,HTS & CSC Transport,Contract Hire and Operating Leases,13/03/2019,8000137619,1078.24,Revenue,A2B Euro Cars,Hired Transport
Peterborough City Council,Education,HTS & CSC Transport,Contract Hire and Operating Leases,13/03/2019,8000137620,633.00,Revenue,A2B Euro Cars,Hired Transport
Peterborough City Council,Education,HTS & CSC Transport,Contract Hire and Operating Leases,13/03/2019,8000137621,682.00,Revenue,A2B Euro Cars,Hired Transport
Peterborough City Council,Education,HTS & CSC Transport,Contract Hire and Operating Leases,13/03/2019,8000137622,1346.40,Revenue,Peterborough Cars,Hired Transport
Peterborough City Council,Education,HTS & CSC Transport,Contract Hire and Operating Leases,13/03/2019,8000137623,1680.00,Revenue,Goldstar Cabs Ltd,Hired Transport
Peterborough City Council,Education,HTS & CSC Transport,Contract Hire and Operating Leases,13/03/2019,8000137624,2560.00,Revenue,Goldstar Cabs Ltd,Hired Transport
Peterborough City Council,Education,HTS & CSC Transport,Contract Hire and Operating Leases,13/03/2019,8000137630,1500.00,Revenue,City Cabs Pboro Ltd,Hired Transport
Peterborough City Council,Education,HTS & CSC Transport,Contract Hire and Operating Leases,13/03/2019,8000137631,1800.00,Revenue,City Cabs Pboro Ltd,Hired Transport
Peterborough City Council,Education,HTS & CSC Transport,Contract Hire and Operating Leases,13/03/2019,8000137632,1400.00,Revenue,City Cabs Pboro Ltd,Hired Transport
Peterborough City Council,Education,HTS & CSC Transport,Contract Hire and Operating Leases,13/03/2019,8000137633,520.00,Revenue,City Cabs Pboro Ltd,Hired Transport
Peterborough City Council,Education,HTS & CSC Transport,Contract Hire and Operating Leases,13/03/2019,8000137636,728.00,Revenue,The Taxi Firm Limited,Hired Transport
Peterborough City Council,Adults,Independent Sector Placements,Social Services,13/03/2019,8000137652,2814.08,Revenue,Redacted Personal Data,Direct Payments
Peterborough City Council,Adults,Independent Sector Placements,Social Services,13/03/2019,8000137653,1179.91,Revenue,Redacted Personal Data,Direct Payments
Peterborough City Council,Adults,Independent Sector Placements,Social Services,13/03/2019,8000137654,1218.48,Revenue,Redacted Personal Data,Direct Payments
Peterborough City Council,Adults,Independent Sector Placements,Social Services,13/03/2019,8000137656,1599.60,Revenue,Redacted Personal Data,Direct Payments
Peterborough City Council,Adults,Independent Sector Placements,Social Services,13/03/2019,8000137657,1187.96,Revenue,Redacted Personal Data,Direct Payments
Peterborough City Council,Adults,Independent Sector Placements,Social Services,13/03/2019,8000137658,1390.12,Revenue,Redacted Personal Data,Direct Payments
Peterborough City Council,Adults,Independent Sector Placements,Social Services,13/03/2019,8000137659,1003.04,Revenue,Redacted Personal Data,Direct Payments
Peterborough City Council,Adults,Independent Sector Placements,Social Services,13/03/2019,8000137661,4033.40,Revenue,Redacted Personal Data,Direct Payments
Peterborough City Council,Adults,Independent Sector Placements,Social Services,13/03/2019,8000137663,1037.84,Revenue,Redacted Personal Data,Direct Payments
Peterborough City Council,Adults,Independent Sector Placements,Social Services,13/03/2019,8000137664,830.56,Revenue,Redacted Personal Data,Direct Payments
Peterborough City Council,Adults,Independent Sector Placements,Social Services,13/03/2019,8000137665,1605.60,Revenue,Redacted Personal Data,Direct Payments
Peterborough City Council,Adults,Independent Sector Placements,Social Services,13/03/2019,8000137667,1146.92,Revenue,Redacted Personal Data,Direct Payments
Peterborough City Council,Adults,Independent Sector Placements,Social Services,13/03/2019,8000137668,2092.36,Revenue,Redacted Personal Data,Direct Payments
Peterborough City Council,Adults,Independent Sector Placements,Social Services,13/03/2019,8000137669,808.52,Revenue,Redacted Personal Data,Direct Payments
Peterborough City Council,Adults,Independent Sector Placements,Social Services,13/03/2019,8000137671,1504.92,Revenue,Redacted Personal Data,Direct Payments
Peterborough City Council,Adults,Independent Sector Placements,Social Services,13/03/2019,8000137672,544.80,Revenue,Redacted Personal Data,Direct Payments
Peterborough City Council,Adults,Independent Sector Placements,Social Services,13/03/2019,8000137673,706.48,Revenue,Redacted Personal Data,Direct Payments
Peterborough City Council,Adults,Independent Sector Placements,Social Services,13/03/2019,8000137674,938.28,Revenue,Redacted Personal Data,Direct Payments
Peterborough City Council,Adults,Independent Sector Placements,Social Services,13/03/2019,8000137675,1289.52,Revenue,Redacted Personal Data,Direct Payments
Peterborough City Council,Adults,Independent Sector Placements,Social Services,13/03/2019,8000137677,546.48,Revenue,Redacted Personal Data,Direct Payments
Peterborough City Council,Adults,Independent Sector Placements,Social Services,13/03/2019,8000137678,6124.16,Revenue,Redacted Personal Data,Direct Payments
Peterborough City Council,Adults,Independent Sector Placements,Social Services,13/03/2019,8000137679,554.76,Revenue,Redacted Personal Data,Direct Payments
Peterborough City Council,Adults,Independent Sector Placements,Social Services,13/03/2019,8000137680,2358.88,Revenue,Redacted Personal Data,Direct Payments
Peterborough City Council,Adults,Independent Sector Placements,Social Services,13/03/2019,8000137681,777.56,Revenue,Redacted Personal Data,Direct Payments
Peterborough City Council,Adults,Independent Sector Placements,Social Services,13/03/2019,8000137682,684.56,Revenue,Redacted Personal Data,Direct Payments
Peterborough City Council,Adults,Independent Sector Placements,Social Services,13/03/2019,8000137683,1664.40,Revenue,Redacted Personal Data,Direct Payments
Peterborough City Council,Adults,Independent Sector Placements,Social Services,13/03/2019,8000137684,552.48,Revenue,Redacted Personal Data,Direct Payments
Peterborough City Council,Adults,Independent Sector Placements,Social Services,13/03/2019,8000137686,1251.04,Revenue,Redacted Personal Data,Direct Payments
Peterborough City Council,Adults,Independent Sector Placements,Social Services,13/03/2019,8000137687,992.28,Revenue,Redacted Personal Data,Direct Payments
Peterborough City Council,Adults,Independent Sector Placements,Social Services,13/03/2019,8000137688,993.36,Revenue,Redacted Personal Data,Direct Payments
Peterborough City Council,Adults,Independent Sector Placements,Social Services,13/03/2019,8000137689,6905.48,Revenue,Redacted Personal Data,Direct Payments
Peterborough City Council,Adults,Independent Sector Placements,Social Services,13/03/2019,8000137690,514.12,Revenue,Redacted Personal Data,Direct Payments
Peterborough City Council,Adults,Independent Sector Placements,Social Services,13/03/2019,8000137691,758.08,Revenue,Redacted Personal Data,Direct Payments
Peterborough City Council,Adults,Independent Sector Placements,Social Services,13/03/2019,8000137698,774.24,Revenue,Redacted Personal Data,Direct Payments
Peterborough City Council,Adults,Independent Sector Placements,Social Services,13/03/2019,8000137701,590.08,Revenue,Redacted Personal Data,Direct Payments
Peterborough City Council,Adults,Independent Sector Placements,Social Services,13/03/2019,8000137703,870.44,Revenue,Redacted Personal Data,Direct Payments
Peterborough City Council,Adults,Independent Sector Placements,Social Services,13/03/2019,8000137705,7123.48,Revenue,Redacted Personal Data,Direct Payments
Peterborough City Council,Adults,Independent Sector Placements,Social Services,13/03/2019,8000137706,7506.08,Revenue,Redacted Personal Data,Direct Payments
Peterborough City Council,Adults,Independent Sector Placements,Social Services,13/03/2019,8000137707,671.08,Revenue,Redacted Personal Data,Direct Payments
Peterborough City Council,Adults,Independent Sector Placements,Social Services,13/03/2019,8000137708,8281.80,Revenue,Redacted Personal Data,Direct Payments
Peterborough City Council,Adults,Independent Sector Placements,Social Services,13/03/2019,8000137709,892.08,Revenue,Redacted Personal Data,Direct Payments
Peterborough City Council,Adults,Independent Sector Placements,Social Services,13/03/2019,8000137710,509.20,Revenue,Redacted Personal Data,Direct Payments
Peterborough City Council,Adults,Independent Sector Placements,Social Services,13/03/2019,8000137711,777.08,Revenue,Redacted Personal Data,Direct Payments
Peterborough City Council,Adults,Independent Sector Placements,Social Services,13/03/2019,8000137712,3753.12,Revenue,Redacted Personal Data,Direct Payments
Peterborough City Council,Adults,Independent Sector Placements,Social Services,13/03/2019,8000137713,670.60,Revenue,Redacted Personal Data,Direct Payments
Peterborough City Council,Adults,Independent Sector Placements,Social Services,13/03/2019,8000137714,1268.88,Revenue,Redacted Personal Data,Direct Payments
Peterborough City Council,Adults,Independent Sector Placements,Social Services,13/03/2019,8000137715,592.92,Revenue,Redacted Personal Data,Direct Payments
Peterborough City Council,Adults,Independent Sector Placements,Social Services,13/03/2019,8000137716,2529.24,Revenue,Redacted Personal Data,Direct Payments
Peterborough City Council,Adults,Independent Sector Placements,Social Services,13/03/2019,8000137717,2128.36,Revenue,Redacted Personal Data,Direct Payments
Peterborough City Council,Adults,Independent Sector Placements,Social Services,13/03/2019,8000137718,593.60,Revenue,Redacted Personal Data,Direct Payments
Peterborough City Council,Adults,Independent Sector Placements,Social Services,13/03/2019,8000137719,988.68,Revenue,Redacted Personal Data,Direct Payments
Peterborough City Council,Adults,Independent Sector Placements,Social Services,13/03/2019,8000137720,900.48,Revenue,Redacted Personal Data,Direct Payments
Peterborough City Council,Adults,Independent Sector Placements,Social Services,13/03/2019,8000137722,1035.08,Revenue,Redacted Personal Data,Direct Payments
Peterborough City Council,Adults,Independent Sector Placements,Social Services,13/03/2019,8000137724,602.72,Revenue,Redacted Personal Data,Direct Payments
Peterborough City Council,Adults,Independent Sector Placements,Social Services,13/03/2019,8000137725,4158.48,Revenue,Redacted Personal Data,Direct Payments
Peterborough City Council,Adults,Independent Sector Placements,Social Services,13/03/2019,8000137726,1262.88,Revenue,Redacted Personal Data,Direct Payments
Peterborough City Council,Adults,Independent Sector Placements,Social Services,13/03/2019,8000137729,779.56,Revenue,Redacted Personal Data,Direct Payments
Peterborough City Council,Adults,Independent Sector Placements,Social Services,13/03/2019,8000137730,1167.48,Revenue,Redacted Personal Data,Direct Payments
Peterborough City Council,Adults,Independent Sector Placements,Social Services,13/03/2019,8000137731,1142.88,Revenue,Redacted Personal Data,Direct Payments
Peterborough City Council,Adults,Independent Sector Placements,Social Services,13/03/2019,8000137732,500.00,Revenue,Redacted Personal Data,Direct Payments
Peterborough City Council,Adults,Independent Sector Placements,Social Services,13/03/2019,8000137733,2978.52,Revenue,Redacted Personal Data,Direct Payments
Peterborough City Council,Adults,Independent Sector Placements,Social Services,13/03/2019,8000137734,1282.96,Revenue,Redacted Personal Data,Direct Payments
Peterborough City Council,Adults,Independent Sector Placements,Social Services,13/03/2019,8000137736,3488.00,Revenue,Redacted Personal Data,Direct Payments
Peterborough City Council,Adults,Independent Sector Placements,Social Services,13/03/2019,8000137737,3155.68,Revenue,Redacted Personal Data,Direct Payments
Peterborough City Council,Adults,Independent Sector Placements,Social Services,13/03/2019,8000137738,542.28,Revenue,Redacted Personal Data,Direct Payments
Peterborough City Council,Adults,Independent Sector Placements,Social Services,13/03/2019,8000137739,816.00,Revenue,Redacted Personal Data,Direct Payments
Peterborough City Council,Adults,Independent Sector Placements,Social Services,13/03/2019,8000137740,1120.00,Revenue,Redacted Personal Data,Direct Payments
Peterborough City Council,Adults,Independent Sector Placements,Social Services,13/03/2019,8000137741,814.40,Revenue,Redacted Personal Data,Direct Payments
Peterborough City Council,Adults,Independent Sector Placements,Social Services,13/03/2019,8000137742,587.20,Revenue,Redacted Personal Data,Direct Payments
Peterborough City Council,Adults,Independent Sector Placements,Social Services,13/03/2019,8000137743,925.71,Revenue,Redacted Personal Data,Direct Payments
Peterborough City Council,Adults,Independent Sector Placements,Social Services,13/03/2019,8000137744,1041.76,Revenue,Redacted Personal Data,Direct Payments
Peterborough City Council,Adults,Independent Sector Placements,Social Services,13/03/2019,8000137745,9322.60,Revenue,Redacted Personal Data,Direct Payments
Peterborough City Council,Adults,Independent Sector Placements,Social Services,13/03/2019,8000137748,956.76,Revenue,Redacted Personal Data,Direct Payments
Peterborough City Council,Adults,Independent Sector Placements,Social Services,13/03/2019,8000137749,1682.28,Revenue,Redacted Personal Data,Direct Payments
Peterborough City Council,Adults,Independent Sector Placements,Social Services,13/03/2019,8000137750,954.48,Revenue,Redacted Personal Data,Direct Payments
Peterborough City Council,Adults,Independent Sector Placements,Social Services,13/03/2019,8000137751,630.76,Revenue,Redacted Personal Data,Direct Payments
Peterborough City Council,Adults,Independent Sector Placements,Social Services,13/03/2019,8000137752,547.32,Revenue,Redacted Personal Data,Direct Payments
Peterborough City Council,Adults,Independent Sector Placements,Social Services,13/03/2019,8000137754,792.84,Revenue,Redacted Personal Data,Direct Payments
Peterborough City Council,Adults,Independent Sector Placements,Social Services,13/03/2019,8000137755,1427.68,Revenue,Redacted Personal Data,Direct Payments
Peterborough City Council,Adults,Independent Sector Placements,Social Services,13/03/2019,8000137756,1576.24,Revenue,Redacted Personal Data,Direct Payments
Peterborough City Council,Adults,Independent Sector Placements,Social Services,13/03/2019,8000137759,1818.48,Revenue,Redacted Personal Data,Direct Payments
Peterborough City Council,Adults,Independent Sector Placements,Social Services,13/03/2019,8000137760,566.68,Revenue,Redacted Personal Data,Direct Payments
Peterborough City Council,Adults,Independent Sector Placements,Social Services,13/03/2019,8000137761,3317.24,Revenue,Redacted Personal Data,Direct Payments
Peterborough City Council,Adults,Independent Sector Placements,Social Services,13/03/2019,8000137764,1898.48,Revenue,Redacted Personal Data,Direct Payments
Peterborough City Council,Adults,Independent Sector Placements,Social Services,13/03/2019,8000137766,1033.04,Revenue,Redacted Personal Data,Direct Payments
Peterborough City Council,Adults,Independent Sector Placements,Social Services,13/03/2019,8000137767,2052.92,Revenue,Redacted Personal Data,Direct Payments
Peterborough City Council,Adults,Independent Sector Placements,Social Services,13/03/2019,8000137769,978.48,Revenue,Redacted Personal Data,Direct Payments
Peterborough City Council,Adults,Independent Sector Placements,Social Services,13/03/2019,8000137770,762.48,Revenue,Redacted Personal Data,Direct Payments
Peterborough City Council,Adults,Independent Sector Placements,Social Services,13/03/2019,8000137772,2274.48,Revenue,Redacted Personal Data,Direct Payments
Peterborough City Council,Adults,Independent Sector Placements,Social Services,13/03/2019,8000137776,1554.48,Revenue,Redacted Personal Data,Direct Payments
Peterborough City Council,Adults,Independent Sector Placements,Social Services,13/03/2019,8000137778,963.36,Revenue,Redacted Personal Data,Direct Payments
Peterborough City Council,Adults,Independent Sector Placements,Social Services,13/03/2019,8000137779,932.24,Revenue,Redacted Personal Data,Direct Payments
Peterborough City Council,Adults,Independent Sector Placements,Social Services,13/03/2019,8000137780,3411.04,Revenue,Redacted Personal Data,Direct Payments
Peterborough City Council,Adults,Independent Sector Placements,Social Services,13/03/2019,8000137781,1502.15,Revenue,Redacted Personal Data,Direct Payments
Peterborough City Council,Adults,Independent Sector Placements,Social Services,13/03/2019,8000137783,2034.48,Revenue,Redacted Personal Data,Direct Payments
Peterborough City Council,Adults,Independent Sector Placements,Social Services,13/03/2019,8000137784,849.28,Revenue,Redacted Personal Data,Direct Payments
Peterborough City Council,Adults,Independent Sector Placements,Social Services,13/03/2019,8000137785,858.56,Revenue,Redacted Personal Data,Direct Payments
Peterborough City Council,Adults,Independent Sector Placements,Social Services,13/03/2019,8000137788,1476.96,Revenue,Redacted Personal Data,Direct Payments
Peterborough City Council,Adults,Independent Sector Placements,Social Services,13/03/2019,8000137791,640.04,Revenue,Redacted Personal Data,Direct Payments
Peterborough City Council,Adults,Independent Sector Placements,Social Services,13/03/2019,8000137793,1413.92,Revenue,Redacted Personal Data,Direct Payments
Peterborough City Council,Adults,Independent Sector Placements,Social Services,13/03/2019,8000137794,1098.48,Revenue,Redacted Personal Data,Direct Payments
Peterborough City Council,Adults,Independent Sector Placements,Social Services,13/03/2019,8000137798,998.48,Revenue,Redacted Personal Data,Direct Payments
Peterborough City Council,Adults,Independent Sector Placements,Social Services,13/03/2019,8000137801,668.48,Revenue,Redacted Personal Data,Direct Payments
Peterborough City Council,Adults,Independent Sector Placements,Social Services,13/03/2019,8000137802,794.68,Revenue,Redacted Personal Data,Direct Payments
Peterborough City Council,Adults,Independent Sector Placements,Social Services,13/03/2019,8000137803,633.60,Revenue,Redacted Personal Data,Direct Payments
Peterborough City Council,Adults,Independent Sector Placements,Social Services,13/03/2019,8000137805,602.48,Revenue,Redacted Personal Data,Direct Payments
Peterborough City Council,Adults,Independent Sector Placements,Social Services,13/03/2019,8000137807,689.84,Revenue,Redacted Personal Data,Direct Payments
Peterborough City Council,Adults,Independent Sector Placements,Social Services,13/03/2019,8000137808,1523.28,Revenue,Redacted Personal Data,Direct Payments
Peterborough City Council,Adults,Independent Sector Placements,Social Services,13/03/2019,8000137809,1950.48,Revenue,Redacted Personal Data,Direct Payments
Peterborough City Council,Adults,Independent Sector Placements,Social Services,13/03/2019,8000137810,510.76,Revenue,Redacted Personal Data,Direct Payments
Peterborough City Council,Adults,Independent Sector Placements,Social Services,13/03/2019,8000137811,1655.84,Revenue,Redacted Personal Data,Direct Payments
Peterborough City Council,Adults,Independent Sector Placements,Social Services,13/03/2019,8000137812,2335.12,Revenue,Redacted Personal Data,Direct Payments
Peterborough City Council,Adults,Independent Sector Placements,Social Services,13/03/2019,8000137813,571.28,Revenue,Redacted Personal Data,Direct Payments
Peterborough City Council,Adults,Independent Sector Placements,Social Services,13/03/2019,8000137814,606.48,Revenue,Redacted Personal Data,Direct Payments
Peterborough City Council,Adults,Independent Sector Placements,Social Services,13/03/2019,8000137816,1830.44,Revenue,Redacted Personal Data,Direct Payments
Peterborough City Council,Adults,Independent Sector Placements,Social Services,13/03/2019,8000137817,1110.48,Revenue,Redacted Personal Data,Direct Payments
Peterborough City Council,Adults,Independent Sector Placements,Social Services,13/03/2019,8000137818,793.28,Revenue,Redacted Personal Data,Direct Payments
Peterborough City Council,Adults,Independent Sector Placements,Social Services,13/03/2019,8000137819,2118.36,Revenue,Redacted Personal Data,Direct Payments
Peterborough City Council,Adults,Independent Sector Placements,Social Services,13/03/2019,8000137820,541.24,Revenue,Redacted Personal Data,Direct Payments
Peterborough City Council,Adults,Independent Sector Placements,Social Services,13/03/2019,8000137823,668.48,Revenue,Redacted Personal Data,Direct Payments
Peterborough City Council,Adults,Independent Sector Placements,Social Services,13/03/2019,8000137824,1073.00,Revenue,Redacted Personal Data,Direct Payments
Peterborough City Council,Adults,Independent Sector Placements,Social Services,13/03/2019,8000137825,690.48,Revenue,Redacted Personal Data,Direct Payments
Peterborough City Council,Adults,Independent Sector Placements,Social Services,13/03/2019,8000137827,718.48,Revenue,Redacted Personal Data,Direct Payments
Peterborough City Council,Adults,Independent Sector Placements,Social Services,13/03/2019,8000137829,1521.58,Revenue,Redacted Personal Data,Direct Payments
Peterborough City Council,Adults,Independent Sector Placements,Social Services,13/03/2019,8000137830,690.80,Revenue,Redacted Personal Data,Direct Payments
Peterborough City Council,Adults,Independent Sector Placements,Social Services,13/03/2019,8000137831,639.56,Revenue,Redacted Personal Data,Direct Payments
Peterborough City Council,Adults,Independent Sector Placements,Social Services,13/03/2019,8000137833,518.28,Revenue,Redacted Personal Data,Direct Payments
Peterborough City Council,Adults,Independent Sector Placements,Social Services,13/03/2019,8000137834,504.00,Revenue,Redacted Personal Data,Direct Payments
Peterborough City Council,Adults,Independent Sector Placements,Social Services,13/03/2019,8000137835,978.48,Revenue,Redacted Personal Data,Direct Payments
Peterborough City Council,Adults,Independent Sector Placements,Social Services,13/03/2019,8000137836,939.72,Revenue,Redacted Personal Data,Direct Payments
Peterborough City Council,Adults,Independent Sector Placements,Social Services,13/03/2019,8000137839,946.48,Revenue,Redacted Personal Data,Direct Payments
Peterborough City Council,Adults,Independent Sector Placements,Social Services,13/03/2019,8000137841,858.48,Revenue,Redacted Personal Data,Direct Payments
Peterborough City Council,Adults,Independent Sector Placements,Social Services,13/03/2019,8000137842,738.48,Revenue,Redacted Personal Data,Direct Payments
Peterborough City Council,Adults,Independent Sector Placements,Social Services,13/03/2019,8000137843,630.48,Revenue,Redacted Personal Data,Direct Payments
Peterborough City Council,Adults,Independent Sector Placements,Social Services,13/03/2019,8000137844,900.48,Revenue,Redacted Personal Data,Direct Payments
Peterborough City Council,Adults,Independent Sector Placements,Social Services,13/03/2019,8000137845,546.48,Revenue,Redacted Personal Data,Direct Payments
Peterborough City Council,Adults,Independent Sector Placements,Social Services,13/03/2019,8000137846,2299.28,Revenue,Redacted Personal Data,Direct Payments
Peterborough City Council,Adults,Independent Sector Placements,Social Services,13/03/2019,8000137849,1094.64,Revenue,Redacted Personal Data,Direct Payments
Peterborough City Council,Adults,Independent Sector Placements,Social Services,13/03/2019,8000137851,1822.16,Revenue,Redacted Personal Data,Direct Payments
Peterborough City Council,Adults,Independent Sector Placements,Social Services,13/03/2019,8000137854,1475.28,Revenue,Redacted Personal Data,Direct Payments
Peterborough City Council,Adults,Independent Sector Placements,Social Services,13/03/2019,8000137856,546.48,Revenue,Redacted Personal Data,Direct Payments
Peterborough City Council,Adults,Independent Sector Placements,Social Services,13/03/2019,8000137857,634.48,Revenue,Redacted Personal Data,Direct Payments
Peterborough City Council,Adults,Independent Sector Placements,Social Services,13/03/2019,8000137860,617.20,Revenue,Redacted Personal Data,Direct Payments
Peterborough City Council,Adults,Independent Sector Placements,Social Services,13/03/2019,8000137865,738.48,Revenue,Redacted Personal Data,Direct Payments
Peterborough City Council,Adults,Independent Sector Placements,Social Services,13/03/2019,8000137866,714.48,Revenue,Redacted Personal Data,Direct Payments
Peterborough City Council,Adults,Independent Sector Placements,Social Services,13/03/2019,8000137867,533.04,Revenue,Redacted Personal Data,Direct Payments
Peterborough City Council,Adults,Independent Sector Placements,Social Services,13/03/2019,8000137868,1746.48,Revenue,Redacted Personal Data,Direct Payments
Peterborough City Council,Adults,Independent Sector Placements,Social Services,13/03/2019,8000137869,1008.00,Revenue,Redacted Personal Data,Direct Payments
Peterborough City Council,Adults,Independent Sector Placements,Social Services,13/03/2019,8000137871,978.48,Revenue,Redacted Personal Data,Direct Payments
Peterborough City Council,Adults,Independent Sector Placements,Social Services,13/03/2019,8000137872,606.48,Revenue,Redacted Personal Data,Direct Payments
Peterborough City Council,Adults,Independent Sector Placements,Social Services,13/03/2019,8000137876,762.72,Revenue,Redacted Personal Data,Direct Payments
Peterborough City Council,Adults,Independent Sector Placements,Social Services,13/03/2019,8000137877,1547.56,Revenue,Redacted Personal Data,Direct Payments
Peterborough City Council,Adults,Independent Sector Placements,Social Services,13/03/2019,8000137878,7317.68,Revenue,Redacted Personal Data,Direct Payments
Peterborough City Council,Adults,Independent Sector Placements,Social Services,13/03/2019,8000137879,895.84,Revenue,Redacted Personal Data,Direct Payments
Peterborough City Council,Adults,Independent Sector Placements,Social Services,13/03/2019,8000137880,1407.52,Revenue,Redacted Personal Data,Direct Payments
Peterborough City Council,Adults,Independent Sector Placements,Social Services,13/03/2019,8000137882,519.36,Revenue,Redacted Personal Data,Direct Payments
Peterborough City Council,Adults,Independent Sector Placements,Social Services,13/03/2019,8000137883,763.56,Revenue,Redacted Personal Data,Direct Payments
Peterborough City Council,Adults,Independent Sector Placements,Social Services,13/03/2019,8000137884,978.40,Revenue,Redacted Personal Data,Direct Payments
Peterborough City Council,Adults,Independent Sector Placements,Social Services,13/03/2019,8000137885,677.80,Revenue,Redacted Personal Data,Direct Payments
Peterborough City Council,Adults,Independent Sector Placements,Social Services,13/03/2019,8000137888,2573.28,Revenue,Redacted Personal Data,Direct Payments
Peterborough City Council,Adults,Independent Sector Placements,Social Services,13/03/2019,8000137889,885.84,Revenue,Redacted Personal Data,Direct Payments
Peterborough City Council,Adults,Independent Sector Placements,Social Services,13/03/2019,8000137891,3514.48,Revenue,Redacted Personal Data,Direct Payments
Peterborough City Council,Adults,Independent Sector Placements,Social Services,13/03/2019,8000137892,1440.80,Revenue,Redacted Personal Data,Direct Payments
Peterborough City Council,Adults,Independent Sector Placements,Social Services,13/03/2019,8000137893,7126.80,Revenue,Redacted Personal Data,Direct Payments
Peterborough City Council,Adults,Independent Sector Placements,Social Services,13/03/2019,8000137894,5693.16,Revenue,Redacted Personal Data,Direct Payments
Peterborough City Council,Adults,Independent Sector Placements,Social Services,13/03/2019,8000137895,6572.24,Revenue,Redacted Personal Data,Direct Payments
Peterborough City Council,Adults,Independent Sector Placements,Social Services,13/03/2019,8000137897,1026.48,Revenue,Redacted Personal Data,Direct Payments
Peterborough City Council,Adults,Independent Sector Placements,Social Services,13/03/2019,8000137898,2107.12,Revenue,Redacted Personal Data,Direct Payments
Peterborough City Council,Adults,Independent Sector Placements,Social Services,13/03/2019,8000137899,7499.16,Revenue,Redacted Personal Data,Direct Payments
Peterborough City Council,Adults,Independent Sector Placements,Social Services,13/03/2019,8000137900,2570.76,Revenue,Redacted Personal Data,Direct Payments
Peterborough City Council,Adults,Independent Sector Placements,Social Services,13/03/2019,8000137901,1397.52,Revenue,Redacted Personal Data,Direct Payments
Peterborough City Council,Adults,Independent Sector Placements,Social Services,13/03/2019,8000137903,999.00,Revenue,Redacted Personal Data,Direct Payments
Peterborough City Council,Adults,Independent Sector Placements,Social Services,13/03/2019,8000137904,2936.70,Revenue,Redacted Personal Data,Direct Payments
Peterborough City Council,Adults,Independent Sector Placements,Social Services,13/03/2019,8000137905,1666.52,Revenue,Redacted Personal Data,Direct Payments
Peterborough City Council,Adults,Independent Sector Placements,Social Services,13/03/2019,8000137906,5760.68,Revenue,Redacted Personal Data,Direct Payments
Peterborough City Council,Adults,Independent Sector Placements,Social Services,13/03/2019,8000137907,2743.64,Revenue,Redacted Personal Data,Direct Payments
Peterborough City Council,Adults,Independent Sector Placements,Social Services,13/03/2019,8000137908,1278.84,Revenue,Redacted Personal Data,Direct Payments
Peterborough City Council,Adults,Independent Sector Placements,Social Services,13/03/2019,8000137909,977.00,Revenue,Redacted Personal Data,Direct Payments
Peterborough City Council,Adults,Independent Sector Placements,Social Services,13/03/2019,8000137911,3965.84,Revenue,Redacted Personal Data,Direct Payments
Peterborough City Council,Adults,Independent Sector Placements,Social Services,13/03/2019,8000137912,1340.96,Revenue,Redacted Personal Data,Direct Payments
Peterborough City Council,Adults,Independent Sector Placements,Social Services,13/03/2019,8000137913,636.72,Revenue,Redacted Personal Data,Direct Payments
Peterborough City Council,Adults,Independent Sector Placements,Social Services,13/03/2019,8000137914,1340.40,Revenue,Redacted Personal Data,Direct Payments
Peterborough City Council,Adults,Independent Sector Placements,Social Services,13/03/2019,8000137915,1560.48,Revenue,Redacted Personal Data,Direct Payments
Peterborough City Council,Adults,Independent Sector Placements,Social Services,13/03/2019,8000137916,1973.84,Revenue,Redacted Personal Data,Direct Payments
Peterborough City Council,Adults,Independent Sector Placements,Social Services,13/03/2019,8000137917,2569.40,Revenue,Redacted Personal Data,Direct Payments
Peterborough City Council,Adults,Independent Sector Placements,Social Services,13/03/2019,8000137918,5058.48,Revenue,Redacted Personal Data,Direct Payments
Peterborough City Council,Adults,Independent Sector Placements,Social Services,13/03/2019,8000137919,1617.00,Revenue,Redacted Personal Data,Direct Payments
Peterborough City Council,Adults,Independent Sector Placements,Social Services,13/03/2019,8000137920,2832.63,Revenue,Redacted Personal Data,Direct Payments
Peterborough City Council,Adults,Independent Sector Placements,Social Services,13/03/2019,8000137922,879.36,Revenue,Redacted Personal Data,Direct Payments
Peterborough City Council,Adults,Independent Sector Placements,Social Services,13/03/2019,8000137923,705.36,Revenue,Redacted Personal Data,Direct Payments
Peterborough City Council,Adults,Independent Sector Placements,Social Services,13/03/2019,8000137924,954.48,Revenue,Redacted Personal Data,Direct Payments
Peterborough City Council,Adults,Independent Sector Placements,Social Services,13/03/2019,8000137926,1091.92,Revenue,Redacted Personal Data,Direct Payments
Peterborough City Council,Adults,Independent Sector Placements,Social Services,13/03/2019,8000137927,2176.00,Revenue,Redacted Personal Data,Direct Payments
